Workbook

Sheet AVISO LEGAL
J23: www.ree.es

Sheet Precio final mensual
O1: 4
L4: Concepto
L5: Horizonte temporal
L6: Periodo
C8: Ene. | D8: Feb. | E8: Mar. | F8: Abr. | G8: May. | H8: Jun. | I8: Jul. | J8: Ago. | K8: Sep. | L8: Oct. | M8: Nov. | N8: Dic. | O8: =OFFSET(Año!B2,($O$1-1),0) -> 2013
B10: Mercado diario | C10: =OFFSET('Precios finales '!AP3,0,($O$1-1)*13) -> 53.21 | D10: =OFFSET('Precios finales '!AQ3,0,($O$1-1)*13) -> 46.9 | E10: =OFFSET('Precios finales '!AR3,0,($O$1-1)*13) -> 28.41 | F10: =OFFSET('Precios finales '!AS3,0,($O$1-1)*13) -> 19.33 | G10: =OFFSET('Precios finales '!AT3,0,($O$1-1)*13) -> 44.14 | H10: =OFFSET('Precios finales '!AU3,0,($O$1-1)*13) -> 42.14 | I10: =OFFSET('Precios finales '!AV3,0,($O$1-1)*13) -> 52.25 | J10: =OFFSET('Precios finales '!AW3,0,($O$1-1)*13) -> 49.01 | K10: =OFFSET('Precios finales '!AX3,0,($O$1-1)*13) -> 51.68 | L10: =OFFSET('Precios finales '!AY3,0,($O$1-1)*13) -> 52.78 | M10: =OFFSET('Precios finales '!AZ3,0,($O$1-1)*13) -> 43.48 | N10: =OFFSET('Precios finales '!BA3,0,($O$1-1)*13) -> 68.58 | O10: =OFFSET('Precios finales '!BB3,0,($O$1-1)*13) -> 46.23
B11: Mercado intradiario | C11: =OFFSET('Precios finales '!AP4,0,($O$1-1)*13) -> -0.01 | D11: =OFFSET('Precios finales '!AQ4,0,($O$1-1)*13) -> -0.08 | E11: =OFFSET('Precios finales '!AR4,0,($O$1-1)*13) -> -0.11 | F11: =OFFSET('Precios finales '!AS4,0,($O$1-1)*13) -> -0.02 | G11: =OFFSET('Precios finales '!AT4,0,($O$1-1)*13) -> -0.09 | H11: =OFFSET('Precios finales '!AU4,0,($O$1-1)*13) -> -0.14 | I11: =OFFSET('Precios finales '!AV4,0,($O$1-1)*13) -> 0.02 | J11: =OFFSET('Precios finales '!AW4,0,($O$1-1)*13) -> -0.02 | K11: =OFFSET('Precios finales '!AX4,0,($O$1-1)*13) -> -0.02 | L11: =OFFSET('Precios finales '!AY4,0,($O$1-1)*13) -> -0.16 | M11: =OFFSET('Precios finales '!AZ4,0,($O$1-1)*13) -> -0.04 | N11: =OFFSET('Precios finales '!BA4,0,($O$1-1)*13) -> -0.03 | O11: =OFFSET('Precios finales '!BB4,0,($O$1-1)*13) -> -0.06
B12: Servicio de interrumpibilidad | C12: =OFFSET('Precios finales '!AP5,0,($O$1-1)*13) -> - | D12: =OFFSET('Precios finales '!AQ5,0,($O$1-1)*13) -> - | E12: =OFFSET('Precios finales '!AR5,0,($O$1-1)*13) -> - | F12: =OFFSET('Precios finales '!AS5,0,($O$1-1)*13) -> - | G12: =OFFSET('Precios finales '!AT5,0,($O$1-1)*13) -> - | H12: =OFFSET('Precios finales '!AU5,0,($O$1-1)*13) -> - | I12: =OFFSET('Precios finales '!AV5,0,($O$1-1)*13) -> - | J12: =OFFSET('Precios finales '!AW5,0,($O$1-1)*13) -> - | K12: =OFFSET('Precios finales '!AX5,0,($O$1-1)*13) -> - | L12: =OFFSET('Precios finales '!AY5,0,($O$1-1)*13) -> - | M12: =OFFSET('Precios finales '!AZ5,0,($O$1-1)*13) -> - | N12: =OFFSET('Precios finales '!BA5,0,($O$1-1)*13) -> - | O12: =OFFSET('Precios finales '!BB5,0,($O$1-1)*13) -> -
B13: Pagos por capacidad | C13: =OFFSET('Precios finales '!AP6,0,($O$1-1)*13) -> 7.09 | D13: =OFFSET('Precios finales '!AQ6,0,($O$1-1)*13) -> 6.95 | E13: =OFFSET('Precios finales '!AR6,0,($O$1-1)*13) -> 5.71 | F13: =OFFSET('Precios finales '!AS6,0,($O$1-1)*13) -> 5.46 | G13: =OFFSET('Precios finales '!AT6,0,($O$1-1)*13) -> 5.36 | H13: =OFFSET('Precios finales '!AU6,0,($O$1-1)*13) -> 6.13 | I13: =OFFSET('Precios finales '!AV6,0,($O$1-1)*13) -> 7.29 | J13: =OFFSET('Precios finales '!AW6,0,($O$1-1)*13) -> 4.87 | K13: =OFFSET('Precios finales '!AX6,0,($O$1-1)*13) -> 5.48 | L13: =OFFSET('Precios finales '!AY6,0,($O$1-1)*13) -> 5.39 | M13: =OFFSET('Precios finales '!AZ6,0,($O$1-1)*13) -> 5.59 | N13: =OFFSET('Precios finales '!BA6,0,($O$1-1)*13) -> 6.89 | O13: =OFFSET('Precios finales '!BB6,0,($O$1-1)*13) -> 6.04
B14: Servicios ajustes del sistema | C14: =OFFSET('Precios finales '!AP7,0,($O$1-1)*13) -> 5.21 | D14: =OFFSET('Precios finales '!AQ7,0,($O$1-1)*13) -> 5.29 | E14: =OFFSET('Precios finales '!AR7,0,($O$1-1)*13) -> 7.57 | F14: =OFFSET('Precios finales '!AS7,0,($O$1-1)*13) -> 7.53 | G14: =OFFSET('Precios finales '!AT7,0,($O$1-1)*13) -> 5.21 | H14: =OFFSET('Precios finales '!AU7,0,($O$1-1)*13) -> 5.22 | I14: =OFFSET('Precios finales '!AV7,0,($O$1-1)*13) -> 2.87 | J14: =OFFSET('Precios finales '!AW7,0,($O$1-1)*13) -> 3.8 | K14: =OFFSET('Precios finales '!AX7,0,($O$1-1)*13) -> 4.18 | L14: =OFFSET('Precios finales '!AY7,0,($O$1-1)*13) -> 7.07 | M14: =OFFSET('Precios finales '!AZ7,0,($O$1-1)*13) -> 7.1 | N14: =OFFSET('Precios finales '!BA7,0,($O$1-1)*13) -> 6.23 | O14: =OFFSET('Precios finales '!BB7,0,($O$1-1)*13) -> 5.58
B15: Restricciones técnicas PDBF | C15: =OFFSET('Precios finales '!AP8,0,($O$1-1)*13) -> 2.27 | D15: =OFFSET('Precios finales '!AQ8,0,($O$1-1)*13) -> 2.42 | E15: =OFFSET('Precios finales '!AR8,0,($O$1-1)*13) -> 3.88 | F15: =OFFSET('Precios finales '!AS8,0,($O$1-1)*13) -> 4.16 | G15: =OFFSET('Precios finales '!AT8,0,($O$1-1)*13) -> 3.3 | H15: =OFFSET('Precios finales '!AU8,0,($O$1-1)*13) -> 3.19 | I15: =OFFSET('Precios finales '!AV8,0,($O$1-1)*13) -> 1.29 | J15: =OFFSET('Precios finales '!AW8,0,($O$1-1)*13) -> 1.92 | K15: =OFFSET('Precios finales '!AX8,0,($O$1-1)*13) -> 2.25 | L15: =OFFSET('Precios finales '!AY8,0,($O$1-1)*13) -> 3.3 | M15: =OFFSET('Precios finales '!AZ8,0,($O$1-1)*13) -> 3.38 | N15: =OFFSET('Precios finales '!BA8,0,($O$1-1)*13) -> 2.81 | O15: =OFFSET('Precios finales '!BB8,0,($O$1-1)*13) -> 2.83
B16: Banda de regulación secundaria | C16: =OFFSET('Precios finales '!AP9,0,($O$1-1)*13) -> 1.55 | D16: =OFFSET('Precios finales '!AQ9,0,($O$1-1)*13) -> 1.56 | E16: =OFFSET('Precios finales '!AR9,0,($O$1-1)*13) -> 1.81 | F16: =OFFSET('Precios finales '!AS9,0,($O$1-1)*13) -> 1.48 | G16: =OFFSET('Precios finales '!AT9,0,($O$1-1)*13) -> 1.08 | H16: =OFFSET('Precios finales '!AU9,0,($O$1-1)*13) -> 1.51 | I16: =OFFSET('Precios finales '!AV9,0,($O$1-1)*13) -> 1.24 | J16: =OFFSET('Precios finales '!AW9,0,($O$1-1)*13) -> 1.28 | K16: =OFFSET('Precios finales '!AX9,0,($O$1-1)*13) -> 1.21 | L16: =OFFSET('Precios finales '!AY9,0,($O$1-1)*13) -> 1.52 | M16: =OFFSET('Precios finales '!AZ9,0,($O$1-1)*13) -> 1.3 | N16: =OFFSET('Precios finales '!BA9,0,($O$1-1)*13) -> 1.87 | O16: =OFFSET('Precios finales '!BB9,0,($O$1-1)*13) -> 1.45
B17: Reserva de potencia adicional a subir | C17: =OFFSET('Precios finales '!AP10,0,($O$1-1)*13) -> 0.39 | D17: =OFFSET('Precios finales '!AQ10,0,($O$1-1)*13) -> 0.42 | E17: =OFFSET('Precios finales '!AR10,0,($O$1-1)*13) -> 0.84 | F17: =OFFSET('Precios finales '!AS10,0,($O$1-1)*13) -> 0.76 | G17: =OFFSET('Precios finales '!AT10,0,($O$1-1)*13) -> 0.19 | H17: =OFFSET('Precios finales '!AU10,0,($O$1-1)*13) -> 0 | I17: =OFFSET('Precios finales '!AV10,0,($O$1-1)*13) -> 0 | J17: =OFFSET('Precios finales '!AW10,0,($O$1-1)*13) -> 0.05 | K17: =OFFSET('Precios finales '!AX10,0,($O$1-1)*13) -> 0.21 | L17: =OFFSET('Precios finales '!AY10,0,($O$1-1)*13) -> 0.94 | M17: =OFFSET('Precios finales '!AZ10,0,($O$1-1)*13) -> 1.22 | N17: =OFFSET('Precios finales '!BA10,0,($O$1-1)*13) -> 0.34 | O17: =OFFSET('Precios finales '!BB10,0,($O$1-1)*13) -> 0.44
B18: Restricciones técnicas en tiempo real | C18: =OFFSET('Precios finales '!AP11,0,($O$1-1)*13) -> 0.4 | D18: =OFFSET('Precios finales '!AQ11,0,($O$1-1)*13) -> 0.41 | E18: =OFFSET('Precios finales '!AR11,0,($O$1-1)*13) -> 0.64 | F18: =OFFSET('Precios finales '!AS11,0,($O$1-1)*13) -> 0.77 | G18: =OFFSET('Precios finales '!AT11,0,($O$1-1)*13) -> 0.43 | H18: =OFFSET('Precios finales '!AU11,0,($O$1-1)*13) -> 0.24 | I18: =OFFSET('Precios finales '!AV11,0,($O$1-1)*13) -> 0.1 | J18: =OFFSET('Precios finales '!AW11,0,($O$1-1)*13) -> 0.32 | K18: =OFFSET('Precios finales '!AX11,0,($O$1-1)*13) -> 0.29 | L18: =OFFSET('Precios finales '!AY11,0,($O$1-1)*13) -> 0.84 | M18: =OFFSET('Precios finales '!AZ11,0,($O$1-1)*13) -> 0.72 | N18: =OFFSET('Precios finales '!BA11,0,($O$1-1)*13) -> 0.4 | O18: =OFFSET('Precios finales '!BB11,0,($O$1-1)*13) -> 0.46
B19: Restricciones intradiario | C19: =OFFSET('Precios finales '!AP12,0,($O$1-1)*13) -> 0 | D19: =OFFSET('Precios finales '!AQ12,0,($O$1-1)*13) -> 0 | E19: =OFFSET('Precios finales '!AR12,0,($O$1-1)*13) -> 0 | F19: =OFFSET('Precios finales '!AS12,0,($O$1-1)*13) -> 0 | G19: =OFFSET('Precios finales '!AT12,0,($O$1-1)*13) -> 0 | H19: =OFFSET('Precios finales '!AU12,0,($O$1-1)*13) -> 0 | I19: =OFFSET('Precios finales '!AV12,0,($O$1-1)*13) -> 0 | J19: =OFFSET('Precios finales '!AW12,0,($O$1-1)*13) -> 0 | K19: =OFFSET('Precios finales '!AX12,0,($O$1-1)*13) -> 0 | L19: =OFFSET('Precios finales '!AY12,0,($O$1-1)*13) -> 0 | M19: =OFFSET('Precios finales '!AZ12,0,($O$1-1)*13) -> 0 | N19: =OFFSET('Precios finales '!BA12,0,($O$1-1)*13) -> 0 | O19: =OFFSET('Precios finales '!BB12,0,($O$1-1)*13) -> 0
B20: Incumplimiento de energia de balance | C20: =OFFSET('Precios finales '!AP13,0,($O$1-1)*13) -> - | D20: =OFFSET('Precios finales '!AQ13,0,($O$1-1)*13) -> - | E20: =OFFSET('Precios finales '!AR13,0,($O$1-1)*13) -> - | F20: =OFFSET('Precios finales '!AS13,0,($O$1-1)*13) -> - | G20: =OFFSET('Precios finales '!AT13,0,($O$1-1)*13) -> - | H20: =OFFSET('Precios finales '!AU13,0,($O$1-1)*13) -> - | I20: =OFFSET('Precios finales '!AV13,0,($O$1-1)*13) -> - | J20: =OFFSET('Precios finales '!AW13,0,($O$1-1)*13) -> - | K20: =OFFSET('Precios finales '!AX13,0,($O$1-1)*13) -> - | L20: =OFFSET('Precios finales '!AY13,0,($O$1-1)*13) -> - | M20: =OFFSET('Precios finales '!AZ13,0,($O$1-1)*13) -> - | N20: =OFFSET('Precios finales '!BA13,0,($O$1-1)*13) -> - | O20: =OFFSET('Precios finales '!BB13,0,($O$1-1)*13) -> -
B21: Coste desvíos | C21: =OFFSET('Precios finales '!AP14,0,($O$1-1)*13) -> 0.58 | D21: =OFFSET('Precios finales '!AQ14,0,($O$1-1)*13) -> 0.47 | E21: =OFFSET('Precios finales '!AR14,0,($O$1-1)*13) -> 0.31 | F21: =OFFSET('Precios finales '!AS14,0,($O$1-1)*13) -> 0.23 | G21: =OFFSET('Precios finales '!AT14,0,($O$1-1)*13) -> 0.23 | H21: =OFFSET('Precios finales '!AU14,0,($O$1-1)*13) -> 0.23 | I21: =OFFSET('Precios finales '!AV14,0,($O$1-1)*13) -> 0.29 | J21: =OFFSET('Precios finales '!AW14,0,($O$1-1)*13) -> 0.19 | K21: =OFFSET('Precios finales '!AX14,0,($O$1-1)*13) -> 0.18 | L21: =OFFSET('Precios finales '!AY14,0,($O$1-1)*13) -> 0.32 | M21: =OFFSET('Precios finales '!AZ14,0,($O$1-1)*13) -> 0.24 | N21: =OFFSET('Precios finales '!BA14,0,($O$1-1)*13) -> 0.33 | O21: =OFFSET('Precios finales '!BB14,0,($O$1-1)*13) -> 0.3
B22: Saldo desvíos | C22: =OFFSET('Precios finales '!AP15,0,($O$1-1)*13) -> 0.03 | D22: =OFFSET('Precios finales '!AQ15,0,($O$1-1)*13) -> 0 | E22: =OFFSET('Precios finales '!AR15,0,($O$1-1)*13) -> 0.09 | F22: =OFFSET('Precios finales '!AS15,0,($O$1-1)*13) -> 0.13 | G22: =OFFSET('Precios finales '!AT15,0,($O$1-1)*13) -> -0.04 | H22: =OFFSET('Precios finales '!AU15,0,($O$1-1)*13) -> 0.06 | I22: =OFFSET('Precios finales '!AV15,0,($O$1-1)*13) -> -0.06 | J22: =OFFSET('Precios finales '!AW15,0,($O$1-1)*13) -> 0.04 | K22: =OFFSET('Precios finales '!AX15,0,($O$1-1)*13) -> 0.05 | L22: =OFFSET('Precios finales '!AY15,0,($O$1-1)*13) -> 0.15 | M22: =OFFSET('Precios finales '!AZ15,0,($O$1-1)*13) -> 0.23 | N22: =OFFSET('Precios finales '!BA15,0,($O$1-1)*13) -> 0.51 | O22: =OFFSET('Precios finales '!BB15,0,($O$1-1)*13) -> 0.1
B23: Control del factor de potencia | C23: =OFFSET('Precios finales '!AP16,0,($O$1-1)*13) -> - | D23: =OFFSET('Precios finales '!AQ16,0,($O$1-1)*13) -> - | E23: =OFFSET('Precios finales '!AR16,0,($O$1-1)*13) -> - | F23: =OFFSET('Precios finales '!AS16,0,($O$1-1)*13) -> - | G23: =OFFSET('Precios finales '!AT16,0,($O$1-1)*13) -> - | H23: =OFFSET('Precios finales '!AU16,0,($O$1-1)*13) -> - | I23: =OFFSET('Precios finales '!AV16,0,($O$1-1)*13) -> - | J23: =OFFSET('Precios finales '!AW16,0,($O$1-1)*13) -> 0 | K23: =OFFSET('Precios finales '!AX16,0,($O$1-1)*13) -> 0 | L23: =OFFSET('Precios finales '!AY16,0,($O$1-1)*13) -> 0 | M23: =OFFSET('Precios finales '!AZ16,0,($O$1-1)*13) -> 0 | N23: =OFFSET('Precios finales '!BA16,0,($O$1-1)*13) -> 0 | O23: =OFFSET('Precios finales '!BB16,0,($O$1-1)*13) -> -
B24: Saldo PO 14.6 | C24: =OFFSET('Precios finales '!AP17,0,($O$1-1)*13) -> -0.01 | D24: =OFFSET('Precios finales '!AQ17,0,($O$1-1)*13) -> 0.01 | E24: =OFFSET('Precios finales '!AR17,0,($O$1-1)*13) -> 0 | F24: =OFFSET('Precios finales '!AS17,0,($O$1-1)*13) -> 0 | G24: =OFFSET('Precios finales '!AT17,0,($O$1-1)*13) -> 0.02 | H24: =OFFSET('Precios finales '!AU17,0,($O$1-1)*13) -> -0.01 | I24: =OFFSET('Precios finales '!AV17,0,($O$1-1)*13) -> 0.01 | J24: =OFFSET('Precios finales '!AW17,0,($O$1-1)*13) -> 0 | K24: =OFFSET('Precios finales '!AX17,0,($O$1-1)*13) -> -0.01 | L24: =OFFSET('Precios finales '!AY17,0,($O$1-1)*13) -> 0 | M24: =OFFSET('Precios finales '!AZ17,0,($O$1-1)*13) -> 0.01 | N24: =OFFSET('Precios finales '!BA17,0,($O$1-1)*13) -> -0.03 | O24: =OFFSET('Precios finales '!BB17,0,($O$1-1)*13) -> 0
B25: Fallo nominación UPG | C25: =OFFSET('Precios finales '!AP18,0,($O$1-1)*13) -> 0 | D25: =OFFSET('Precios finales '!AQ18,0,($O$1-1)*13) -> 0 | E25: =OFFSET('Precios finales '!AR18,0,($O$1-1)*13) -> 0 | F25: =OFFSET('Precios finales '!AS18,0,($O$1-1)*13) -> 0 | G25: =OFFSET('Precios finales '!AT18,0,($O$1-1)*13) -> 0 | H25: =OFFSET('Precios finales '!AU18,0,($O$1-1)*13) -> 0 | I25: =OFFSET('Precios finales '!AV18,0,($O$1-1)*13) -> 0 | J25: =OFFSET('Precios finales '!AW18,0,($O$1-1)*13) -> 0 | K25: =OFFSET('Precios finales '!AX18,0,($O$1-1)*13) -> 0 | L25: =OFFSET('Precios finales '!AY18,0,($O$1-1)*13) -> 0 | M25: =OFFSET('Precios finales '!AZ18,0,($O$1-1)*13) -> 0 | N25: =OFFSET('Precios finales '!BA18,0,($O$1-1)*13) -> 0 | O25: =OFFSET('Precios finales '!BB18,0,($O$1-1)*13) -> 0
B26: Precio total (€/MWh) | C26: =OFFSET('Precios finales '!AP19,0,($O$1-1)*13) -> 65.5 | D26: =OFFSET('Precios finales '!AQ19,0,($O$1-1)*13) -> 59.06 | E26: =OFFSET('Precios finales '!AR19,0,($O$1-1)*13) -> 41.58 | F26: =OFFSET('Precios finales '!AS19,0,($O$1-1)*13) -> 32.3 | G26: =OFFSET('Precios finales '!AT19,0,($O$1-1)*13) -> 54.62 | H26: =OFFSET('Precios finales '!AU19,0,($O$1-1)*13) -> 53.35 | I26: =OFFSET('Precios finales '!AV19,0,($O$1-1)*13) -> 62.43 | J26: =OFFSET('Precios finales '!AW19,0,($O$1-1)*13) -> 57.66 | K26: =OFFSET('Precios finales '!AX19,0,($O$1-1)*13) -> 61.32 | L26: =OFFSET('Precios finales '!AY19,0,($O$1-1)*13) -> 65.08 | M26: =OFFSET('Precios finales '!AZ19,0,($O$1-1)*13) -> 56.13 | N26: =OFFSET('Precios finales '!BA19,0,($O$1-1)*13) -> 81.67 | O26: =OFFSET('Precios finales '!BB19,0,($O$1-1)*13) -> 57.79
B27: Energía cierre (GWh) | C27: =IF(OFFSET('Precios finales '!AP20,0,($O$1-1)*13)="-","-",OFFSET('Precios finales '!AP20,0,($O$1-1)*13)/1000) -> 22057.32088 | D27: =IF(OFFSET('Precios finales '!AQ20,0,($O$1-1)*13)="-","-",OFFSET('Precios finales '!AQ20,0,($O$1-1)*13)/1000) -> 19810.46717 | E27: =IF(OFFSET('Precios finales '!AR20,0,($O$1-1)*13)="-","-",OFFSET('Precios finales '!AR20,0,($O$1-1)*13)/1000) -> 20603.10678 | F27: =IF(OFFSET('Precios finales '!AS20,0,($O$1-1)*13)="-","-",OFFSET('Precios finales '!AS20,0,($O$1-1)*13)/1000) -> 18943.4458 | G27: =IF(OFFSET('Precios finales '!AT20,0,($O$1-1)*13)="-","-",OFFSET('Precios finales '!AT20,0,($O$1-1)*13)/1000) -> 19141.52352 | H27: =IF(OFFSET('Precios finales '!AU20,0,($O$1-1)*13)="-","-",OFFSET('Precios finales '!AU20,0,($O$1-1)*13)/1000) -> 19066.23542 | I27: =IF(OFFSET('Precios finales '!AV20,0,($O$1-1)*13)="-","-",OFFSET('Precios finales '!AV20,0,($O$1-1)*13)/1000) -> 21395.77811 | J27: =IF(OFFSET('Precios finales '!AW20,0,($O$1-1)*13)="-","-",OFFSET('Precios finales '!AW20,0,($O$1-1)*13)/1000) -> 20118.98564 | K27: =IF(OFFSET('Precios finales '!AX20,0,($O$1-1)*13)="-","-",OFFSET('Precios finales '!AX20,0,($O$1-1)*13)/1000) -> 19517.03224 | L27: =IF(OFFSET('Precios finales '!AY20,0,($O$1-1)*13)="-","-",OFFSET('Precios finales '!AY20,0,($O$1-1)*13)/1000) -> 19552.30044 | M27: =IF(OFFSET('Precios finales '!AZ20,0,($O$1-1)*13)="-","-",OFFSET('Precios finales '!AZ20,0,($O$1-1)*13)/1000) -> 19791.86499 | N27: =IF(OFFSET('Precios finales '!BA20,0,($O$1-1)*13)="-","-",OFFSET('Precios finales '!BA20,0,($O$1-1)*13)/1000) -> 20662.85265 | O27: =IF(OFFSET('Precios finales '!BB20,0,($O$1-1)*13)="-","-",OFFSET('Precios finales '!BB20,0,($O$1-1)*13)/1000) -> 240660.9137

Sheet Precio final anual
O1: 1
I4: Concepto
I5: Horizonte temporal
I6: Periodo
C8: =OFFSET('Precios finales '!F24,0,($O$1-1)*10) -> 2010 | D8: =OFFSET('Precios finales '!G24,0,($O$1-1)*10) -> 2011 | E8: =OFFSET('Precios finales '!H24,0,($O$1-1)*10) -> 2012 | F8: =OFFSET('Precios finales '!I24,0,($O$1-1)*10) -> 2013 | G8: =OFFSET('Precios finales '!J24,0,($O$1-1)*10) -> 2014 | H8: =OFFSET('Precios finales '!K24,0,($O$1-1)*10) -> 2015 | I8: =OFFSET('Precios finales '!L24,0,($O$1-1)*10) -> 2016 | J8: =OFFSET('Precios finales '!M24,0,($O$1-1)*10) -> 2017 | K8: =OFFSET('Precios finales '!N24,0,($O$1-1)*10) -> 2018 | L8: =OFFSET('Precios finales '!O24,0,($O$1-1)*10) -> 2019
C9: =OFFSET('Precios finales '!C25,0,($O$1-1)*10) -> 0 | D9: =OFFSET('Precios finales '!D25,0,($O$1-1)*10) -> 0 | E9: =OFFSET('Precios finales '!E25,0,($O$1-1)*10) -> 0 | F9: =OFFSET('Precios finales '!F25,0,($O$1-1)*10) -> 38.46 | G9: =OFFSET('Precios finales '!G25,0,($O$1-1)*10) -> 50.97 | H9: =OFFSET('Precios finales '!H25,0,($O$1-1)*10) -> 48.88 | I9: =OFFSET('Precios finales '!I25,0,($O$1-1)*10) -> 46.23 | J9: =OFFSET('Precios finales '!J25,0,($O$1-1)*10) -> - | K9: =OFFSET('Precios finales '!K25,0,($O$1-1)*10) -> - | L9: =OFFSET('Precios finales '!L25,0,($O$1-1)*10) -> -
B10: Mercado diario | C10: =OFFSET('Precios finales '!F25,0,($O$1-1)*10) -> 38.46 | D10: =OFFSET('Precios finales '!G25,0,($O$1-1)*10) -> 50.97 | E10: =OFFSET('Precios finales '!H25,0,($O$1-1)*10) -> 48.88 | F10: =OFFSET('Precios finales '!I25,0,($O$1-1)*10) -> 46.23 | G10: =OFFSET('Precios finales '!J25,0,($O$1-1)*10) -> - | H10: =OFFSET('Precios finales '!K25,0,($O$1-1)*10) -> - | I10: =OFFSET('Precios finales '!L25,0,($O$1-1)*10) -> - | J10: =OFFSET('Precios finales '!M25,0,($O$1-1)*10) -> - | K10: =OFFSET('Precios finales '!N25,0,($O$1-1)*10) -> - | L10: =OFFSET('Precios finales '!O25,0,($O$1-1)*10) -> -
B11: Mercado intradiario | C11: =OFFSET('Precios finales '!F26,0,($O$1-1)*10) -> -0.02 | D11: =OFFSET('Precios finales '!G26,0,($O$1-1)*10) -> -0.06 | E11: =OFFSET('Precios finales '!H26,0,($O$1-1)*10) -> -0.04 | F11: =OFFSET('Precios finales '!I26,0,($O$1-1)*10) -> -0.06 | G11: =OFFSET('Precios finales '!J26,0,($O$1-1)*10) -> - | H11: =OFFSET('Precios finales '!K26,0,($O$1-1)*10) -> - | I11: =OFFSET('Precios finales '!L26,0,($O$1-1)*10) -> - | J11: =OFFSET('Precios finales '!M26,0,($O$1-1)*10) -> - | K11: =OFFSET('Precios finales '!N26,0,($O$1-1)*10) -> - | L11: =OFFSET('Precios finales '!O26,0,($O$1-1)*10) -> -
B12: Servicio de interrumpibilidad | C12: =OFFSET('Precios finales '!F27,0,($O$1-1)*10) -> - | D12: =OFFSET('Precios finales '!G27,0,($O$1-1)*10) -> - | E12: =OFFSET('Precios finales '!H27,0,($O$1-1)*10) -> - | F12: =OFFSET('Precios finales '!I27,0,($O$1-1)*10) -> - | G12: =OFFSET('Precios finales '!J27,0,($O$1-1)*10) -> - | H12: =OFFSET('Precios finales '!K27,0,($O$1-1)*10) -> - | I12: =OFFSET('Precios finales '!L27,0,($O$1-1)*10) -> - | J12: =OFFSET('Precios finales '!M27,0,($O$1-1)*10) -> - | K12: =OFFSET('Precios finales '!N27,0,($O$1-1)*10) -> - | L12: =OFFSET('Precios finales '!O27,0,($O$1-1)*10) -> -
B13: Pagos por capacidad | C13: =OFFSET('Precios finales '!F28,0,($O$1-1)*10) -> 3.63 | D13: =OFFSET('Precios finales '!G28,0,($O$1-1)*10) -> 6.1 | E13: =OFFSET('Precios finales '!H28,0,($O$1-1)*10) -> 6.1 | F13: =OFFSET('Precios finales '!I28,0,($O$1-1)*10) -> 6.04 | G13: =OFFSET('Precios finales '!J28,0,($O$1-1)*10) -> - | H13: =OFFSET('Precios finales '!K28,0,($O$1-1)*10) -> - | I13: =OFFSET('Precios finales '!L28,0,($O$1-1)*10) -> - | J13: =OFFSET('Precios finales '!M28,0,($O$1-1)*10) -> - | K13: =OFFSET('Precios finales '!N28,0,($O$1-1)*10) -> - | L13: =OFFSET('Precios finales '!O28,0,($O$1-1)*10) -> -
B14: Servicios ajustes del sistema | C14: =OFFSET('Precios finales '!F29,0,($O$1-1)*10) -> 3.76 | D14: =OFFSET('Precios finales '!G29,0,($O$1-1)*10) -> 3.21 | E14: =OFFSET('Precios finales '!H29,0,($O$1-1)*10) -> 4.63 | F14: =OFFSET('Precios finales '!I29,0,($O$1-1)*10) -> 5.58 | G14: =OFFSET('Precios finales '!J29,0,($O$1-1)*10) -> - | H14: =OFFSET('Precios finales '!K29,0,($O$1-1)*10) -> - | I14: =OFFSET('Precios finales '!L29,0,($O$1-1)*10) -> - | J14: =OFFSET('Precios finales '!M29,0,($O$1-1)*10) -> - | K14: =OFFSET('Precios finales '!N29,0,($O$1-1)*10) -> - | L14: =OFFSET('Precios finales '!O29,0,($O$1-1)*10) -> -
B15: Restricciones técnicas PDBF | C15: =OFFSET('Precios finales '!F30,0,($O$1-1)*10) -> 2.29 | D15: =OFFSET('Precios finales '!G30,0,($O$1-1)*10) -> 1.85 | E15: =OFFSET('Precios finales '!H30,0,($O$1-1)*10) -> 2.11 | F15: =OFFSET('Precios finales '!I30,0,($O$1-1)*10) -> 2.83 | G15: =OFFSET('Precios finales '!J30,0,($O$1-1)*10) -> - | H15: =OFFSET('Precios finales '!K30,0,($O$1-1)*10) -> - | I15: =OFFSET('Precios finales '!L30,0,($O$1-1)*10) -> - | J15: =OFFSET('Precios finales '!M30,0,($O$1-1)*10) -> - | K15: =OFFSET('Precios finales '!N30,0,($O$1-1)*10) -> - | L15: =OFFSET('Precios finales '!O30,0,($O$1-1)*10) -> -
B16: Banda de regulación secundaria | C16: =OFFSET('Precios finales '!F31,0,($O$1-1)*10) -> 0.7 | D16: =OFFSET('Precios finales '!G31,0,($O$1-1)*10) -> 0.76 | E16: =OFFSET('Precios finales '!H31,0,($O$1-1)*10) -> 1.37 | F16: =OFFSET('Precios finales '!I31,0,($O$1-1)*10) -> 1.45 | G16: =OFFSET('Precios finales '!J31,0,($O$1-1)*10) -> - | H16: =OFFSET('Precios finales '!K31,0,($O$1-1)*10) -> - | I16: =OFFSET('Precios finales '!L31,0,($O$1-1)*10) -> - | J16: =OFFSET('Precios finales '!M31,0,($O$1-1)*10) -> - | K16: =OFFSET('Precios finales '!N31,0,($O$1-1)*10) -> - | L16: =OFFSET('Precios finales '!O31,0,($O$1-1)*10) -> -
B17: Reserva de potencia adicional a subir | C17: =OFFSET('Precios finales '!F32,0,($O$1-1)*10) -> - | D17: =OFFSET('Precios finales '!G32,0,($O$1-1)*10) -> 0 | E17: =OFFSET('Precios finales '!H32,0,($O$1-1)*10) -> 0.25 | F17: =OFFSET('Precios finales '!I32,0,($O$1-1)*10) -> 0.44 | G17: =OFFSET('Precios finales '!J32,0,($O$1-1)*10) -> - | H17: =OFFSET('Precios finales '!K32,0,($O$1-1)*10) -> - | I17: =OFFSET('Precios finales '!L32,0,($O$1-1)*10) -> - | J17: =OFFSET('Precios finales '!M32,0,($O$1-1)*10) -> - | K17: =OFFSET('Precios finales '!N32,0,($O$1-1)*10) -> - | L17: =OFFSET('Precios finales '!O32,0,($O$1-1)*10) -> -
B18: Restricciones técnicas en tiempo real | C18: =OFFSET('Precios finales '!F33,0,($O$1-1)*10) -> 0.26 | D18: =OFFSET('Precios finales '!G33,0,($O$1-1)*10) -> 0.24 | E18: =OFFSET('Precios finales '!H33,0,($O$1-1)*10) -> 0.48 | F18: =OFFSET('Precios finales '!I33,0,($O$1-1)*10) -> 0.46 | G18: =OFFSET('Precios finales '!J33,0,($O$1-1)*10) -> - | H18: =OFFSET('Precios finales '!K33,0,($O$1-1)*10) -> - | I18: =OFFSET('Precios finales '!L33,0,($O$1-1)*10) -> - | J18: =OFFSET('Precios finales '!M33,0,($O$1-1)*10) -> - | K18: =OFFSET('Precios finales '!N33,0,($O$1-1)*10) -> - | L18: =OFFSET('Precios finales '!O33,0,($O$1-1)*10) -> -
B19: Restricciones intradiario | C19: =OFFSET('Precios finales '!F34,0,($O$1-1)*10) -> 0 | D19: =OFFSET('Precios finales '!G34,0,($O$1-1)*10) -> 0 | E19: =OFFSET('Precios finales '!H34,0,($O$1-1)*10) -> 0 | F19: =OFFSET('Precios finales '!I34,0,($O$1-1)*10) -> 0 | G19: =OFFSET('Precios finales '!J34,0,($O$1-1)*10) -> - | H19: =OFFSET('Precios finales '!K34,0,($O$1-1)*10) -> - | I19: =OFFSET('Precios finales '!L34,0,($O$1-1)*10) -> - | J19: =OFFSET('Precios finales '!M34,0,($O$1-1)*10) -> - | K19: =OFFSET('Precios finales '!N34,0,($O$1-1)*10) -> - | L19: =OFFSET('Precios finales '!O34,0,($O$1-1)*10) -> -
B20: Incumplimiento de energia de balance | C20: =OFFSET('Precios finales '!F35,0,($O$1-1)*10) -> - | D20: =OFFSET('Precios finales '!G35,0,($O$1-1)*10) -> - | E20: =OFFSET('Precios finales '!H35,0,($O$1-1)*10) -> - | F20: =OFFSET('Precios finales '!I35,0,($O$1-1)*10) -> - | G20: =OFFSET('Precios finales '!J35,0,($O$1-1)*10) -> - | H20: =OFFSET('Precios finales '!K35,0,($O$1-1)*10) -> - | I20: =OFFSET('Precios finales '!L35,0,($O$1-1)*10) -> - | J20: =OFFSET('Precios finales '!M35,0,($O$1-1)*10) -> - | K20: =OFFSET('Precios finales '!N35,0,($O$1-1)*10) -> - | L20: =OFFSET('Precios finales '!O35,0,($O$1-1)*10) -> -
B21: Coste desvíos | C21: =OFFSET('Precios finales '!F36,0,($O$1-1)*10) -> 0.38 | D21: =OFFSET('Precios finales '!G36,0,($O$1-1)*10) -> 0.33 | E21: =OFFSET('Precios finales '!H36,0,($O$1-1)*10) -> 0.28 | F21: =OFFSET('Precios finales '!I36,0,($O$1-1)*10) -> 0.3 | G21: =OFFSET('Precios finales '!J36,0,($O$1-1)*10) -> - | H21: =OFFSET('Precios finales '!K36,0,($O$1-1)*10) -> - | I21: =OFFSET('Precios finales '!L36,0,($O$1-1)*10) -> - | J21: =OFFSET('Precios finales '!M36,0,($O$1-1)*10) -> - | K21: =OFFSET('Precios finales '!N36,0,($O$1-1)*10) -> - | L21: =OFFSET('Precios finales '!O36,0,($O$1-1)*10) -> -
B22: Saldo desvíos | C22: =OFFSET('Precios finales '!F37,0,($O$1-1)*10) -> 0.13 | D22: =OFFSET('Precios finales '!G37,0,($O$1-1)*10) -> 0.03 | E22: =OFFSET('Precios finales '!H37,0,($O$1-1)*10) -> 0.14 | F22: =OFFSET('Precios finales '!I37,0,($O$1-1)*10) -> 0.1 | G22: =OFFSET('Precios finales '!J37,0,($O$1-1)*10) -> - | H22: =OFFSET('Precios finales '!K37,0,($O$1-1)*10) -> - | I22: =OFFSET('Precios finales '!L37,0,($O$1-1)*10) -> - | J22: =OFFSET('Precios finales '!M37,0,($O$1-1)*10) -> - | K22: =OFFSET('Precios finales '!N37,0,($O$1-1)*10) -> - | L22: =OFFSET('Precios finales '!O37,0,($O$1-1)*10) -> -
B23: Control del factor de potencia | C23: =OFFSET('Precios finales '!F38,0,($O$1-1)*10) -> - | D23: =OFFSET('Precios finales '!G38,0,($O$1-1)*10) -> - | E23: =OFFSET('Precios finales '!H38,0,($O$1-1)*10) -> - | F23: =OFFSET('Precios finales '!I38,0,($O$1-1)*10) -> - | G23: =OFFSET('Precios finales '!J38,0,($O$1-1)*10) -> - | H23: =OFFSET('Precios finales '!K38,0,($O$1-1)*10) -> - | I23: =OFFSET('Precios finales '!L38,0,($O$1-1)*10) -> - | J23: =OFFSET('Precios finales '!M38,0,($O$1-1)*10) -> - | K23: =OFFSET('Precios finales '!N38,0,($O$1-1)*10) -> - | L23: =OFFSET('Precios finales '!O38,0,($O$1-1)*10) -> -
B24: Saldo PO 14.6 | C24: =OFFSET('Precios finales '!F39,0,($O$1-1)*10) -> 0 | D24: =OFFSET('Precios finales '!G39,0,($O$1-1)*10) -> 0 | E24: =OFFSET('Precios finales '!H39,0,($O$1-1)*10) -> 0 | F24: =OFFSET('Precios finales '!I39,0,($O$1-1)*10) -> 0 | G24: =OFFSET('Precios finales '!J39,0,($O$1-1)*10) -> - | H24: =OFFSET('Precios finales '!K39,0,($O$1-1)*10) -> - | I24: =OFFSET('Precios finales '!L39,0,($O$1-1)*10) -> - | J24: =OFFSET('Precios finales '!M39,0,($O$1-1)*10) -> - | K24: =OFFSET('Precios finales '!N39,0,($O$1-1)*10) -> - | L24: =OFFSET('Precios finales '!O39,0,($O$1-1)*10) -> -
B25: Fallo nominación UPG | C25: =OFFSET('Precios finales '!F40,0,($O$1-1)*10) -> 0 | D25: =OFFSET('Precios finales '!G40,0,($O$1-1)*10) -> 0 | E25: =OFFSET('Precios finales '!H40,0,($O$1-1)*10) -> 0 | F25: =OFFSET('Precios finales '!I40,0,($O$1-1)*10) -> 0 | G25: =OFFSET('Precios finales '!J40,0,($O$1-1)*10) -> - | H25: =OFFSET('Precios finales '!K40,0,($O$1-1)*10) -> - | I25: =OFFSET('Precios finales '!L40,0,($O$1-1)*10) -> - | J25: =OFFSET('Precios finales '!M40,0,($O$1-1)*10) -> - | K25: =OFFSET('Precios finales '!N40,0,($O$1-1)*10) -> - | L25: =OFFSET('Precios finales '!O40,0,($O$1-1)*10) -> -
B26: Precio total (€/MWh) | C26: =OFFSET('Precios finales '!F41,0,($O$1-1)*10) -> 45.83 | D26: =OFFSET('Precios finales '!G41,0,($O$1-1)*10) -> 60.22 | E26: =OFFSET('Precios finales '!H41,0,($O$1-1)*10) -> 59.57 | F26: =OFFSET('Precios finales '!I41,0,($O$1-1)*10) -> 57.79 | G26: =OFFSET('Precios finales '!J41,0,($O$1-1)*10) -> - | H26: =OFFSET('Precios finales '!K41,0,($O$1-1)*10) -> - | I26: =OFFSET('Precios finales '!L41,0,($O$1-1)*10) -> - | J26: =OFFSET('Precios finales '!M41,0,($O$1-1)*10) -> - | K26: =OFFSET('Precios finales '!N41,0,($O$1-1)*10) -> - | L26: =OFFSET('Precios finales '!O41,0,($O$1-1)*10) -> -
B27: Energía final (GWh) | C27: =IF(OFFSET('Precios finales '!F42,0,($O$1-1)*10)="-","-",OFFSET('Precios finales '!F42,0,($O$1-1)*10)/1000) -> 259577.0167 | D27: =IF(OFFSET('Precios finales '!G42,0,($O$1-1)*10)="-","-",OFFSET('Precios finales '!G42,0,($O$1-1)*10)/1000) -> 253050.1423 | E27: =IF(OFFSET('Precios finales '!H42,0,($O$1-1)*10)="-","-",OFFSET('Precios finales '!H42,0,($O$1-1)*10)/1000) -> 247643.5775 | F27: =IF(OFFSET('Precios finales '!I42,0,($O$1-1)*10)="-","-",OFFSET('Precios finales '!I42,0,($O$1-1)*10)/1000) -> 240660.9137 | G27: =IF(OFFSET('Precios finales '!J42,0,($O$1-1)*10)="-","-",OFFSET('Precios finales '!J42,0,($O$1-1)*10)/1000) -> - | H27: =IF(OFFSET('Precios finales '!K42,0,($O$1-1)*10)="-","-",OFFSET('Precios finales '!K42,0,($O$1-1)*10)/1000) -> - | I27: =IF(OFFSET('Precios finales '!L42,0,($O$1-1)*10)="-","-",OFFSET('Precios finales '!L42,0,($O$1-1)*10)/1000) -> - | J27: =IF(OFFSET('Precios finales '!M42,0,($O$1-1)*10)="-","-",OFFSET('Precios finales '!M42,0,($O$1-1)*10)/1000) -> - | K27: =IF(OFFSET('Precios finales '!N42,0,($O$1-1)*10)="-","-",OFFSET('Precios finales '!N42,0,($O$1-1)*10)/1000) -> - | L27: =IF(OFFSET('Precios finales '!O42,0,($O$1-1)*10)="-","-",OFFSET('Precios finales '!O42,0,($O$1-1)*10)/1000) -> -

Sheet Energía gestionada SA mensual
O1: 4
L4: Concepto
L5: Horizonte temporal
L6: Periodo
C8: Ene. | D8: Feb. | E8: Mar. | F8: Abr. | G8: May. | H8: Jun. | I8: Jul. | J8: Ago. | K8: Sep. | L8: Oct. | M8: Nov. | N8: Dic. | O8: =OFFSET(Año!B2,($O$1-1),0) -> 2013
B10: Subir
B11: Restricciones garantía de suministro | C11: =OFFSET('Precios finales '!AP118,0,($O$1-1)*13) -> - | D11: =OFFSET('Precios finales '!AQ118,0,($O$1-1)*13) -> 76.6399 | E11: =OFFSET('Precios finales '!AR118,0,($O$1-1)*13) -> 21.8684 | F11: =OFFSET('Precios finales '!AS118,0,($O$1-1)*13) -> 42.4633 | G11: =OFFSET('Precios finales '!AT118,0,($O$1-1)*13) -> 283.6204 | H11: =OFFSET('Precios finales '!AU118,0,($O$1-1)*13) -> 739.9203 | I11: =OFFSET('Precios finales '!AV118,0,($O$1-1)*13) -> 741.8104 | J11: =OFFSET('Precios finales '!AW118,0,($O$1-1)*13) -> 862.3616 | K11: =OFFSET('Precios finales '!AX118,0,($O$1-1)*13) -> 696.4146 | L11: =OFFSET('Precios finales '!AY118,0,($O$1-1)*13) -> 344.079 | M11: =OFFSET('Precios finales '!AZ118,0,($O$1-1)*13) -> 226.1154 | N11: =OFFSET('Precios finales '!BA118,0,($O$1-1)*13) -> 50.0934 | O11: =OFFSET('Precios finales '!BB118,0,($O$1-1)*13) -> 4085.3867
B12: Restricciones técnicas al PDBF | C12: =OFFSET('Precios finales '!AP119,0,($O$1-1)*13) -> 422.7793 | D12: =OFFSET('Precios finales '!AQ119,0,($O$1-1)*13) -> 578.4982 | E12: =OFFSET('Precios finales '!AR119,0,($O$1-1)*13) -> 1034.7455 | F12: =OFFSET('Precios finales '!AS119,0,($O$1-1)*13) -> 1006.4628 | G12: =OFFSET('Precios finales '!AT119,0,($O$1-1)*13) -> 944.2459 | H12: =OFFSET('Precios finales '!AU119,0,($O$1-1)*13) -> 762.761 | I12: =OFFSET('Precios finales '!AV119,0,($O$1-1)*13) -> 202.0059 | J12: =OFFSET('Precios finales '!AW119,0,($O$1-1)*13) -> 199.3874 | K12: =OFFSET('Precios finales '!AX119,0,($O$1-1)*13) -> 210.8465 | L12: =OFFSET('Precios finales '!AY119,0,($O$1-1)*13) -> 563.0017 | M12: =OFFSET('Precios finales '!AZ119,0,($O$1-1)*13) -> 630.2775 | N12: =OFFSET('Precios finales '!BA119,0,($O$1-1)*13) -> 684.7898 | O12: =OFFSET('Precios finales '!BB119,0,($O$1-1)*13) -> 7239.8015
B13: Regulación secundaria | C13: =OFFSET('Precios finales '!AP120,0,($O$1-1)*13) -> 171.797297 | D13: =OFFSET('Precios finales '!AQ120,0,($O$1-1)*13) -> 146.232013 | E13: =OFFSET('Precios finales '!AR120,0,($O$1-1)*13) -> 176.833415 | F13: =OFFSET('Precios finales '!AS120,0,($O$1-1)*13) -> 192.209758 | G13: =OFFSET('Precios finales '!AT120,0,($O$1-1)*13) -> 170.306426 | H13: =OFFSET('Precios finales '!AU120,0,($O$1-1)*13) -> 149.065025 | I13: =OFFSET('Precios finales '!AV120,0,($O$1-1)*13) -> 124.773447 | J13: =OFFSET('Precios finales '!AW120,0,($O$1-1)*13) -> 125.844602 | K13: =OFFSET('Precios finales '!AX120,0,($O$1-1)*13) -> 111.608235 | L13: =OFFSET('Precios finales '!AY120,0,($O$1-1)*13) -> 133.014772 | M13: =OFFSET('Precios finales '!AZ120,0,($O$1-1)*13) -> 153.516442 | N13: =OFFSET('Precios finales '!BA120,0,($O$1-1)*13) -> 150.426562 | O13: =OFFSET('Precios finales '!BB120,0,($O$1-1)*13) -> 1805.627994
B14: Regulación terciaria | C14: =OFFSET('Precios finales '!AP121,0,($O$1-1)*13) -> 321.3479 | D14: =OFFSET('Precios finales '!AQ121,0,($O$1-1)*13) -> 357.9102 | E14: =OFFSET('Precios finales '!AR121,0,($O$1-1)*13) -> 221.207 | F14: =OFFSET('Precios finales '!AS121,0,($O$1-1)*13) -> 187.1326 | G14: =OFFSET('Precios finales '!AT121,0,($O$1-1)*13) -> 252.4547 | H14: =OFFSET('Precios finales '!AU121,0,($O$1-1)*13) -> 215.8065 | I14: =OFFSET('Precios finales '!AV121,0,($O$1-1)*13) -> 298.5499 | J14: =OFFSET('Precios finales '!AW121,0,($O$1-1)*13) -> 307.2236 | K14: =OFFSET('Precios finales '!AX121,0,($O$1-1)*13) -> 235.2833 | L14: =OFFSET('Precios finales '!AY121,0,($O$1-1)*13) -> 274.0867 | M14: =OFFSET('Precios finales '!AZ121,0,($O$1-1)*13) -> 305.5878 | N14: =OFFSET('Precios finales '!BA121,0,($O$1-1)*13) -> 353.716 | O14: =OFFSET('Precios finales '!BB121,0,($O$1-1)*13) -> 3330.3062
B15: Gestión de desvíos | C15: =OFFSET('Precios finales '!AP122,0,($O$1-1)*13) -> 219.4743 | D15: =OFFSET('Precios finales '!AQ122,0,($O$1-1)*13) -> 231.1867 | E15: =OFFSET('Precios finales '!AR122,0,($O$1-1)*13) -> 173.4352 | F15: =OFFSET('Precios finales '!AS122,0,($O$1-1)*13) -> 91.9174 | G15: =OFFSET('Precios finales '!AT122,0,($O$1-1)*13) -> 121.3096 | H15: =OFFSET('Precios finales '!AU122,0,($O$1-1)*13) -> 113.4507 | I15: =OFFSET('Precios finales '!AV122,0,($O$1-1)*13) -> 140.9461 | J15: =OFFSET('Precios finales '!AW122,0,($O$1-1)*13) -> 235.1692 | K15: =OFFSET('Precios finales '!AX122,0,($O$1-1)*13) -> 113.0881 | L15: =OFFSET('Precios finales '!AY122,0,($O$1-1)*13) -> 145.9054 | M15: =OFFSET('Precios finales '!AZ122,0,($O$1-1)*13) -> 374.1256 | N15: =OFFSET('Precios finales '!BA122,0,($O$1-1)*13) -> 386.6676 | O15: =OFFSET('Precios finales '!BB122,0,($O$1-1)*13) -> 2346.6759
B16: Restricciones en tiempo real | C16: =OFFSET('Precios finales '!AP123,0,($O$1-1)*13) -> 41.3003 | D16: =OFFSET('Precios finales '!AQ123,0,($O$1-1)*13) -> 29.8341 | E16: =OFFSET('Precios finales '!AR123,0,($O$1-1)*13) -> 92.6575 | F16: =OFFSET('Precios finales '!AS123,0,($O$1-1)*13) -> 95.0147 | G16: =OFFSET('Precios finales '!AT123,0,($O$1-1)*13) -> 33.7418 | H16: =OFFSET('Precios finales '!AU123,0,($O$1-1)*13) -> 27.0409 | I16: =OFFSET('Precios finales '!AV123,0,($O$1-1)*13) -> 16.8729 | J16: =OFFSET('Precios finales '!AW123,0,($O$1-1)*13) -> 47.5491 | K16: =OFFSET('Precios finales '!AX123,0,($O$1-1)*13) -> 34.8312 | L16: =OFFSET('Precios finales '!AY123,0,($O$1-1)*13) -> 45.7015 | M16: =OFFSET('Precios finales '!AZ123,0,($O$1-1)*13) -> 53.0301 | N16: =OFFSET('Precios finales '!BA123,0,($O$1-1)*13) -> 40.758 | O16: =OFFSET('Precios finales '!BB123,0,($O$1-1)*13) -> 558.3321
B17: Energía a subir | C17: =IF(SUM(C11:C16)=0,"-",SUM(C11:C16)) -> 1176.699097 | D17: =IF(SUM(D11:D16)=0,"-",SUM(D11:D16)) -> 1420.301113 | E17: =IF(SUM(E11:E16)=0,"-",SUM(E11:E16)) -> 1720.747015 | F17: =IF(SUM(F11:F16)=0,"-",SUM(F11:F16)) -> 1615.200558 | G17: =IF(SUM(G11:G16)=0,"-",SUM(G11:G16)) -> 1805.678826 | H17: =IF(SUM(H11:H16)=0,"-",SUM(H11:H16)) -> 2008.044425 | I17: =IF(SUM(I11:I16)=0,"-",SUM(I11:I16)) -> 1524.958647 | J17: =IF(SUM(J11:J16)=0,"-",SUM(J11:J16)) -> 1777.535502 | K17: 1402.071935 | L17: 1505.789072 | M17: 1742.652842 | N17: 1666.451362 | O17: =SUM(O11:O16) -> 19366.13039
B19: Bajar
B20: Restricciones garantía de suministro | C20: =OFFSET('Precios finales '!AP126,0,($O$1-1)*13) -> - | D20: =OFFSET('Precios finales '!AQ126,0,($O$1-1)*13) -> - | E20: =OFFSET('Precios finales '!AR126,0,($O$1-1)*13) -> - | F20: =OFFSET('Precios finales '!AS126,0,($O$1-1)*13) -> - | G20: =OFFSET('Precios finales '!AT126,0,($O$1-1)*13) -> - | H20: =OFFSET('Precios finales '!AU126,0,($O$1-1)*13) -> - | I20: =OFFSET('Precios finales '!AV126,0,($O$1-1)*13) -> - | J20: =OFFSET('Precios finales '!AW126,0,($O$1-1)*13) -> - | K20: =OFFSET('Precios finales '!AX126,0,($O$1-1)*13) -> - | L20: =OFFSET('Precios finales '!AY126,0,($O$1-1)*13) -> - | M20: =OFFSET('Precios finales '!AZ126,0,($O$1-1)*13) -> - | N20: =OFFSET('Precios finales '!BA126,0,($O$1-1)*13) -> - | O20: =OFFSET('Precios finales '!BB126,0,($O$1-1)*13) -> -
B21: Restricciones técnicas al PDBF | C21: =OFFSET('Precios finales '!AP127,0,($O$1-1)*13) -> 4.8518 | D21: =OFFSET('Precios finales '!AQ127,0,($O$1-1)*13) -> 0.6488 | E21: =OFFSET('Precios finales '!AR127,0,($O$1-1)*13) -> 1.6876 | F21: =OFFSET('Precios finales '!AS127,0,($O$1-1)*13) -> 0.4573 | G21: =OFFSET('Precios finales '!AT127,0,($O$1-1)*13) -> 1.4307 | H21: =OFFSET('Precios finales '!AU127,0,($O$1-1)*13) -> 6.0181 | I21: =OFFSET('Precios finales '!AV127,0,($O$1-1)*13) -> 27.6272 | J21: =OFFSET('Precios finales '!AW127,0,($O$1-1)*13) -> 56.8951 | K21: =OFFSET('Precios finales '!AX127,0,($O$1-1)*13) -> 26.0924 | L21: =OFFSET('Precios finales '!AY127,0,($O$1-1)*13) -> 23.3988 | M21: =OFFSET('Precios finales '!AZ127,0,($O$1-1)*13) -> 2.2016 | N21: =OFFSET('Precios finales '!BA127,0,($O$1-1)*13) -> 42.0387 | O21: =OFFSET('Precios finales '!BB127,0,($O$1-1)*13) -> 193.3481
B22: Regulación secundaria | C22: =OFFSET('Precios finales '!AP128,0,($O$1-1)*13) -> 94.28603 | D22: =OFFSET('Precios finales '!AQ128,0,($O$1-1)*13) -> 81.404216 | E22: =OFFSET('Precios finales '!AR128,0,($O$1-1)*13) -> 98.453813 | F22: =OFFSET('Precios finales '!AS128,0,($O$1-1)*13) -> 86.494075 | G22: =OFFSET('Precios finales '!AT128,0,($O$1-1)*13) -> 76.51819 | H22: =OFFSET('Precios finales '!AU128,0,($O$1-1)*13) -> 77.887855 | I22: =OFFSET('Precios finales '!AV128,0,($O$1-1)*13) -> 87.973297 | J22: =OFFSET('Precios finales '!AW128,0,($O$1-1)*13) -> 92.756681 | K22: =OFFSET('Precios finales '!AX128,0,($O$1-1)*13) -> 100.823924 | L22: =OFFSET('Precios finales '!AY128,0,($O$1-1)*13) -> 101.598428 | M22: =OFFSET('Precios finales '!AZ128,0,($O$1-1)*13) -> 84.130255 | N22: =OFFSET('Precios finales '!BA128,0,($O$1-1)*13) -> 87.995928 | O22: =OFFSET('Precios finales '!BB128,0,($O$1-1)*13) -> 1070.322692
B23: Regulación terciaria | C23: =OFFSET('Precios finales '!AP129,0,($O$1-1)*13) -> 220.8507 | D23: =OFFSET('Precios finales '!AQ129,0,($O$1-1)*13) -> 135.4076 | E23: =OFFSET('Precios finales '!AR129,0,($O$1-1)*13) -> 208.6698 | F23: =OFFSET('Precios finales '!AS129,0,($O$1-1)*13) -> 170.5397 | G23: =OFFSET('Precios finales '!AT129,0,($O$1-1)*13) -> 153.6566 | H23: =OFFSET('Precios finales '!AU129,0,($O$1-1)*13) -> 152.2126 | I23: =OFFSET('Precios finales '!AV129,0,($O$1-1)*13) -> 129.5262 | J23: =OFFSET('Precios finales '!AW129,0,($O$1-1)*13) -> 93.7404 | K23: =OFFSET('Precios finales '!AX129,0,($O$1-1)*13) -> 126.3302 | L23: =OFFSET('Precios finales '!AY129,0,($O$1-1)*13) -> 192.603 | M23: =OFFSET('Precios finales '!AZ129,0,($O$1-1)*13) -> 103.0528 | N23: =OFFSET('Precios finales '!BA129,0,($O$1-1)*13) -> 125.0324 | O23: =OFFSET('Precios finales '!BB129,0,($O$1-1)*13) -> 1811.622
B24: Gestión de desvíos | C24: =OFFSET('Precios finales '!AP130,0,($O$1-1)*13) -> 181.8346 | D24: =OFFSET('Precios finales '!AQ130,0,($O$1-1)*13) -> 90.7751 | E24: =OFFSET('Precios finales '!AR130,0,($O$1-1)*13) -> 112.4418 | F24: =OFFSET('Precios finales '!AS130,0,($O$1-1)*13) -> 124.3272 | G24: =OFFSET('Precios finales '!AT130,0,($O$1-1)*13) -> 51.1136 | H24: =OFFSET('Precios finales '!AU130,0,($O$1-1)*13) -> 58.6826 | I24: =OFFSET('Precios finales '!AV130,0,($O$1-1)*13) -> 58.374 | J24: =OFFSET('Precios finales '!AW130,0,($O$1-1)*13) -> 9.6 | K24: =OFFSET('Precios finales '!AX130,0,($O$1-1)*13) -> 34.4513 | L24: =OFFSET('Precios finales '!AY130,0,($O$1-1)*13) -> 110.1372 | M24: =OFFSET('Precios finales '!AZ130,0,($O$1-1)*13) -> 28.9923 | N24: =OFFSET('Precios finales '!BA130,0,($O$1-1)*13) -> 44.2702 | O24: =OFFSET('Precios finales '!BB130,0,($O$1-1)*13) -> 904.9999
B25: Restricciones en tiempo real | C25: =OFFSET('Precios finales '!AP131,0,($O$1-1)*13) -> 99.4863 | D25: =OFFSET('Precios finales '!AQ131,0,($O$1-1)*13) -> 58.0301 | E25: =OFFSET('Precios finales '!AR131,0,($O$1-1)*13) -> 544.5603 | F25: =OFFSET('Precios finales '!AS131,0,($O$1-1)*13) -> 559.5229 | G25: =OFFSET('Precios finales '!AT131,0,($O$1-1)*13) -> 76.3318 | H25: =OFFSET('Precios finales '!AU131,0,($O$1-1)*13) -> 61.5489 | I25: =OFFSET('Precios finales '!AV131,0,($O$1-1)*13) -> 13.8866 | J25: =OFFSET('Precios finales '!AW131,0,($O$1-1)*13) -> 50.9002 | K25: =OFFSET('Precios finales '!AX131,0,($O$1-1)*13) -> 13.2068 | L25: =OFFSET('Precios finales '!AY131,0,($O$1-1)*13) -> 45.1316 | M25: =OFFSET('Precios finales '!AZ131,0,($O$1-1)*13) -> 60.6258 | N25: =OFFSET('Precios finales '!BA131,0,($O$1-1)*13) -> 118.2344 | O25: =OFFSET('Precios finales '!BB131,0,($O$1-1)*13) -> 1701.4657
B26: Energía a Bajar | C26: =IF(SUM(C20:C25)=0,"-",SUM(C20:C25)) -> 601.30943 | D26: =IF(SUM(D20:D25)=0,"-",SUM(D20:D25)) -> 366.265816 | E26: =IF(SUM(E20:E25)=0,"-",SUM(E20:E25)) -> 965.813313 | F26: =IF(SUM(F20:F25)=0,"-",SUM(F20:F25)) -> 941.341175 | G26: =IF(SUM(G20:G25)=0,"-",SUM(G20:G25)) -> 359.05089 | H26: =IF(SUM(H20:H25)=0,"-",SUM(H20:H25)) -> 356.350055 | I26: =IF(SUM(I20:I25)=0,"-",SUM(I20:I25)) -> 317.387297 | J26: =IF(SUM(J20:J25)=0,"-",SUM(J20:J25)) -> 303.892381 | K26: =IF(SUM(K20:K25)=0,"-",SUM(K20:K25)) -> 300.904624 | L26: =IF(SUM(L20:L25)=0,"-",SUM(L20:L25)) -> 472.869028 | M26: =IF(SUM(M20:M25)=0,"-",SUM(M20:M25)) -> 279.002755 | N26: =IF(SUM(N20:N25)=0,"-",SUM(N20:N25)) -> 417.571628 | O26: =SUM(O20:O25) -> 5681.758392
B28: Volumen
B29: Restricciones garantía de suministro | C29: =OFFSET('Precios finales '!AP134,0,($O$1-1)*13) -> - | D29: =OFFSET('Precios finales '!AQ134,0,($O$1-1)*13) -> 76.6399 | E29: =OFFSET('Precios finales '!AR134,0,($O$1-1)*13) -> 21.8684 | F29: =OFFSET('Precios finales '!AS134,0,($O$1-1)*13) -> 42.4633 | G29: =OFFSET('Precios finales '!AT134,0,($O$1-1)*13) -> 283.6204 | H29: =OFFSET('Precios finales '!AU134,0,($O$1-1)*13) -> 739.9203 | I29: =OFFSET('Precios finales '!AV134,0,($O$1-1)*13) -> 741.8104 | J29: =OFFSET('Precios finales '!AW134,0,($O$1-1)*13) -> 862.3616 | K29: =OFFSET('Precios finales '!AX134,0,($O$1-1)*13) -> 696.4146 | L29: =OFFSET('Precios finales '!AY134,0,($O$1-1)*13) -> 344.079 | M29: =OFFSET('Precios finales '!AZ134,0,($O$1-1)*13) -> 226.1154 | N29: =OFFSET('Precios finales '!BA134,0,($O$1-1)*13) -> 50.0934 | O29: =OFFSET('Precios finales '!BB134,0,($O$1-1)*13) -> 4085.3867
B30: Restricciones técnicas al PDBF | C30: =OFFSET('Precios finales '!AP135,0,($O$1-1)*13) -> 427.6311 | D30: =OFFSET('Precios finales '!AQ135,0,($O$1-1)*13) -> 579.147 | E30: =OFFSET('Precios finales '!AR135,0,($O$1-1)*13) -> 1036.4331 | F30: =OFFSET('Precios finales '!AS135,0,($O$1-1)*13) -> 1006.9201 | G30: =OFFSET('Precios finales '!AT135,0,($O$1-1)*13) -> 945.6766 | H30: =OFFSET('Precios finales '!AU135,0,($O$1-1)*13) -> 768.7791 | I30: =OFFSET('Precios finales '!AV135,0,($O$1-1)*13) -> 229.6331 | J30: =OFFSET('Precios finales '!AW135,0,($O$1-1)*13) -> 256.2825 | K30: =OFFSET('Precios finales '!AX135,0,($O$1-1)*13) -> 236.9389 | L30: =OFFSET('Precios finales '!AY135,0,($O$1-1)*13) -> 586.4005 | M30: =OFFSET('Precios finales '!AZ135,0,($O$1-1)*13) -> 632.4791 | N30: =OFFSET('Precios finales '!BA135,0,($O$1-1)*13) -> 726.8285 | O30: =OFFSET('Precios finales '!BB135,0,($O$1-1)*13) -> 7433.1496
B31: Regulación secundaria | C31: =OFFSET('Precios finales '!AP136,0,($O$1-1)*13) -> 266.083327 | D31: =OFFSET('Precios finales '!AQ136,0,($O$1-1)*13) -> 227.636229 | E31: =OFFSET('Precios finales '!AR136,0,($O$1-1)*13) -> 275.287228 | F31: =OFFSET('Precios finales '!AS136,0,($O$1-1)*13) -> 278.703833 | G31: =OFFSET('Precios finales '!AT136,0,($O$1-1)*13) -> 246.824616 | H31: =OFFSET('Precios finales '!AU136,0,($O$1-1)*13) -> 226.95288 | I31: =OFFSET('Precios finales '!AV136,0,($O$1-1)*13) -> 212.746744 | J31: =OFFSET('Precios finales '!AW136,0,($O$1-1)*13) -> 218.601283 | K31: =OFFSET('Precios finales '!AX136,0,($O$1-1)*13) -> 212.432159 | L31: =OFFSET('Precios finales '!AY136,0,($O$1-1)*13) -> 234.6132 | M31: =OFFSET('Precios finales '!AZ136,0,($O$1-1)*13) -> 237.646697 | N31: =OFFSET('Precios finales '!BA136,0,($O$1-1)*13) -> 238.42249 | O31: =OFFSET('Precios finales '!BB136,0,($O$1-1)*13) -> 2875.950686
B32: Regulación terciaria | C32: =OFFSET('Precios finales '!AP137,0,($O$1-1)*13) -> 542.1986 | D32: =OFFSET('Precios finales '!AQ137,0,($O$1-1)*13) -> 493.3178 | E32: =OFFSET('Precios finales '!AR137,0,($O$1-1)*13) -> 429.8768 | F32: =OFFSET('Precios finales '!AS137,0,($O$1-1)*13) -> 357.6723 | G32: =OFFSET('Precios finales '!AT137,0,($O$1-1)*13) -> 406.1113 | H32: =OFFSET('Precios finales '!AU137,0,($O$1-1)*13) -> 368.0191 | I32: =OFFSET('Precios finales '!AV137,0,($O$1-1)*13) -> 428.0761 | J32: =OFFSET('Precios finales '!AW137,0,($O$1-1)*13) -> 400.964 | K32: =OFFSET('Precios finales '!AX137,0,($O$1-1)*13) -> 361.6135 | L32: =OFFSET('Precios finales '!AY137,0,($O$1-1)*13) -> 466.6897 | M32: =OFFSET('Precios finales '!AZ137,0,($O$1-1)*13) -> 408.6406 | N32: =OFFSET('Precios finales '!BA137,0,($O$1-1)*13) -> 478.7484 | O32: =OFFSET('Precios finales '!BB137,0,($O$1-1)*13) -> 5141.9282
B33: Gestión de desvíos | C33: =OFFSET('Precios finales '!AP138,0,($O$1-1)*13) -> 401.3089 | D33: =OFFSET('Precios finales '!AQ138,0,($O$1-1)*13) -> 321.9618 | E33: =OFFSET('Precios finales '!AR138,0,($O$1-1)*13) -> 285.877 | F33: =OFFSET('Precios finales '!AS138,0,($O$1-1)*13) -> 216.2446 | G33: =OFFSET('Precios finales '!AT138,0,($O$1-1)*13) -> 172.4232 | H33: =OFFSET('Precios finales '!AU138,0,($O$1-1)*13) -> 172.1333 | I33: =OFFSET('Precios finales '!AV138,0,($O$1-1)*13) -> 199.3201 | J33: =OFFSET('Precios finales '!AW138,0,($O$1-1)*13) -> 244.7692 | K33: =OFFSET('Precios finales '!AX138,0,($O$1-1)*13) -> 147.5394 | L33: =OFFSET('Precios finales '!AY138,0,($O$1-1)*13) -> 256.0426 | M33: =OFFSET('Precios finales '!AZ138,0,($O$1-1)*13) -> 403.1179 | N33: =OFFSET('Precios finales '!BA138,0,($O$1-1)*13) -> 430.9378 | O33: =OFFSET('Precios finales '!BB138,0,($O$1-1)*13) -> 3251.6758
B34: Restricciones en tiempo real | C34: =OFFSET('Precios finales '!AP139,0,($O$1-1)*13) -> 140.7866 | D34: =OFFSET('Precios finales '!AQ139,0,($O$1-1)*13) -> 87.8642 | E34: =OFFSET('Precios finales '!AR139,0,($O$1-1)*13) -> 637.2178 | F34: =OFFSET('Precios finales '!AS139,0,($O$1-1)*13) -> 654.5376 | G34: =OFFSET('Precios finales '!AT139,0,($O$1-1)*13) -> 110.0736 | H34: =OFFSET('Precios finales '!AU139,0,($O$1-1)*13) -> 88.5898 | I34: =OFFSET('Precios finales '!AV139,0,($O$1-1)*13) -> 30.7595 | J34: =OFFSET('Precios finales '!AW139,0,($O$1-1)*13) -> 98.4493 | K34: =OFFSET('Precios finales '!AX139,0,($O$1-1)*13) -> 48.038 | L34: =OFFSET('Precios finales '!AY139,0,($O$1-1)*13) -> 90.8331 | M34: =OFFSET('Precios finales '!AZ139,0,($O$1-1)*13) -> 113.6559 | N34: =OFFSET('Precios finales '!BA139,0,($O$1-1)*13) -> 158.9924 | O34: =OFFSET('Precios finales '!BB139,0,($O$1-1)*13) -> 2259.7978
B35: Volumen total de energía | C35: =IF(SUM(C29:C34)=0,"-",SUM(C29:C34)) -> 1778.008527 | D35: =IF(SUM(D29:D34)=0,"-",SUM(D29:D34)) -> 1786.566929 | E35: =IF(SUM(E29:E34)=0,"-",SUM(E29:E34)) -> 2686.560328 | F35: =IF(SUM(F29:F34)=0,"-",SUM(F29:F34)) -> 2556.541733 | G35: =IF(SUM(G29:G34)=0,"-",SUM(G29:G34)) -> 2164.729716 | H35: =IF(SUM(H29:H34)=0,"-",SUM(H29:H34)) -> 2364.39448 | I35: =IF(SUM(I29:I34)=0,"-",SUM(I29:I34)) -> 1842.345944 | J35: =IF(SUM(J29:J34)=0,"-",SUM(J29:J34)) -> 2081.427883 | K35: =IF(SUM(K29:K34)=0,"-",SUM(K29:K34)) -> 1702.976559 | L35: =IF(SUM(L29:L34)=0,"-",SUM(L29:L34)) -> 1978.6581 | M35: =IF(SUM(M29:M34)=0,"-",SUM(M29:M34)) -> 2021.655597 | N35: =IF(SUM(N29:N34)=0,"-",SUM(N29:N34)) -> 2084.02299 | O35: =SUM(O29:O34) -> 25047.88879

Sheet Energía gestionada SA anual
O1: 1
I4: Concepto
I5: Horizonte temporal
I6: Periodo
C8: =OFFSET('Precios finales '!F24,0,($O$1-1)*10) -> 2010 | D8: =OFFSET('Precios finales '!G24,0,($O$1-1)*10) -> 2011 | E8: =OFFSET('Precios finales '!H24,0,($O$1-1)*10) -> 2012 | F8: =OFFSET('Precios finales '!I24,0,($O$1-1)*10) -> 2013 | G8: =OFFSET('Precios finales '!J24,0,($O$1-1)*10) -> 2014 | H8: =OFFSET('Precios finales '!K24,0,($O$1-1)*10) -> 2015 | I8: =OFFSET('Precios finales '!L24,0,($O$1-1)*10) -> 2016 | J8: =OFFSET('Precios finales '!M24,0,($O$1-1)*10) -> 2017 | K8: =OFFSET('Precios finales '!N24,0,($O$1-1)*10) -> 2018 | L8: =OFFSET('Precios finales '!O24,0,($O$1-1)*10) -> 2019
C9: =OFFSET('Precios finales '!C25,0,($O$1-1)*10) -> 0 | D9: =OFFSET('Precios finales '!D25,0,($O$1-1)*10) -> 0 | E9: =OFFSET('Precios finales '!E25,0,($O$1-1)*10) -> 0 | F9: =OFFSET('Precios finales '!F25,0,($O$1-1)*10) -> 38.46 | G9: =OFFSET('Precios finales '!G25,0,($O$1-1)*10) -> 50.97 | H9: =OFFSET('Precios finales '!H25,0,($O$1-1)*10) -> 48.88 | I9: =OFFSET('Precios finales '!I25,0,($O$1-1)*10) -> 46.23 | J9: =OFFSET('Precios finales '!J25,0,($O$1-1)*10) -> - | K9: =OFFSET('Precios finales '!K25,0,($O$1-1)*10) -> - | L9: =OFFSET('Precios finales '!L25,0,($O$1-1)*10) -> -
B10: Subir
B11: Restricciones garantía de suministro | C11: =OFFSET('Precios finales '!F145,0,($O$1-1)*10) -> - | D11: =OFFSET('Precios finales '!G145,0,($O$1-1)*10) -> 12773.1949 | E11: =OFFSET('Precios finales '!H145,0,($O$1-1)*10) -> 12008.1666 | F11: =OFFSET('Precios finales '!I145,0,($O$1-1)*10) -> 4085.3867 | G11: =OFFSET('Precios finales '!J145,0,($O$1-1)*10) -> - | H11: =OFFSET('Precios finales '!K145,0,($O$1-1)*10) -> - | I11: =OFFSET('Precios finales '!L145,0,($O$1-1)*10) -> - | J11: =OFFSET('Precios finales '!M145,0,($O$1-1)*10) -> - | K11: =OFFSET('Precios finales '!N145,0,($O$1-1)*10) -> - | L11: =OFFSET('Precios finales '!O145,0,($O$1-1)*10) -> -
B12: Restricciones técnicas al PDBF | C12: =OFFSET('Precios finales '!F146,0,($O$1-1)*10) -> 12509.2726 | D12: =OFFSET('Precios finales '!G146,0,($O$1-1)*10) -> 9997.6438 | E12: =OFFSET('Precios finales '!H146,0,($O$1-1)*10) -> 6162.0611 | F12: =OFFSET('Precios finales '!I146,0,($O$1-1)*10) -> 7239.8015 | G12: =OFFSET('Precios finales '!J146,0,($O$1-1)*10) -> - | H12: =OFFSET('Precios finales '!K146,0,($O$1-1)*10) -> - | I12: =OFFSET('Precios finales '!L146,0,($O$1-1)*10) -> - | J12: =OFFSET('Precios finales '!M146,0,($O$1-1)*10) -> - | K12: =OFFSET('Precios finales '!N146,0,($O$1-1)*10) -> - | L12: =OFFSET('Precios finales '!O146,0,($O$1-1)*10) -> -
B13: Regulación secundaria | C13: =OFFSET('Precios finales '!F147,0,($O$1-1)*10) -> 1165.09063 | D13: =OFFSET('Precios finales '!G147,0,($O$1-1)*10) -> 1212.507541 | E13: =OFFSET('Precios finales '!H147,0,($O$1-1)*10) -> 1510.36508 | F13: =OFFSET('Precios finales '!I147,0,($O$1-1)*10) -> 1805.627994 | G13: =OFFSET('Precios finales '!J147,0,($O$1-1)*10) -> - | H13: =OFFSET('Precios finales '!K147,0,($O$1-1)*10) -> - | I13: =OFFSET('Precios finales '!L147,0,($O$1-1)*10) -> - | J13: =OFFSET('Precios finales '!M147,0,($O$1-1)*10) -> - | K13: =OFFSET('Precios finales '!N147,0,($O$1-1)*10) -> - | L13: =OFFSET('Precios finales '!O147,0,($O$1-1)*10) -> -
B14: Regulación terciaria | C14: =OFFSET('Precios finales '!F148,0,($O$1-1)*10) -> 2725.7446 | D14: =OFFSET('Precios finales '!G148,0,($O$1-1)*10) -> 2693.8277 | E14: =OFFSET('Precios finales '!H148,0,($O$1-1)*10) -> 2991.6152 | F14: =OFFSET('Precios finales '!I148,0,($O$1-1)*10) -> 3330.3062 | G14: =OFFSET('Precios finales '!J148,0,($O$1-1)*10) -> - | H14: =OFFSET('Precios finales '!K148,0,($O$1-1)*10) -> - | I14: =OFFSET('Precios finales '!L148,0,($O$1-1)*10) -> - | J14: =OFFSET('Precios finales '!M148,0,($O$1-1)*10) -> - | K14: =OFFSET('Precios finales '!N148,0,($O$1-1)*10) -> - | L14: =OFFSET('Precios finales '!O148,0,($O$1-1)*10) -> -
B15: Gestión de desvíos | C15: =OFFSET('Precios finales '!F149,0,($O$1-1)*10) -> 2198.4272 | D15: =OFFSET('Precios finales '!G149,0,($O$1-1)*10) -> 1774.5753 | E15: =OFFSET('Precios finales '!H149,0,($O$1-1)*10) -> 2658.2959 | F15: =OFFSET('Precios finales '!I149,0,($O$1-1)*10) -> 2346.6759 | G15: =OFFSET('Precios finales '!J149,0,($O$1-1)*10) -> - | H15: =OFFSET('Precios finales '!K149,0,($O$1-1)*10) -> - | I15: =OFFSET('Precios finales '!L149,0,($O$1-1)*10) -> - | J15: =OFFSET('Precios finales '!M149,0,($O$1-1)*10) -> - | K15: =OFFSET('Precios finales '!N149,0,($O$1-1)*10) -> - | L15: =OFFSET('Precios finales '!O149,0,($O$1-1)*10) -> -
B16: Restricciones en tiempo real | C16: =OFFSET('Precios finales '!F150,0,($O$1-1)*10) -> 887.0243 | D16: =OFFSET('Precios finales '!G150,0,($O$1-1)*10) -> 657.3699 | E16: =OFFSET('Precios finales '!H150,0,($O$1-1)*10) -> 635.1718 | F16: =OFFSET('Precios finales '!I150,0,($O$1-1)*10) -> 558.3321 | G16: =OFFSET('Precios finales '!J150,0,($O$1-1)*10) -> - | H16: =OFFSET('Precios finales '!K150,0,($O$1-1)*10) -> - | I16: =OFFSET('Precios finales '!L150,0,($O$1-1)*10) -> - | J16: =OFFSET('Precios finales '!M150,0,($O$1-1)*10) -> - | K16: =OFFSET('Precios finales '!N150,0,($O$1-1)*10) -> - | L16: =OFFSET('Precios finales '!O150,0,($O$1-1)*10) -> -
B17: Energía a subir | C17: =IF(SUM(C11:C16)=0,"-",SUM(C11:C16)) -> 19485.55933 | D17: 29109.11914 | E17: 25965.67568 | F17: 19366.13039 | G17: - | H17: - | I17: - | J17: - | K17: - | L17: -
B19: Bajar
B20: Restricciones garantía de suministro | C20: =OFFSET('Precios finales '!F153,0,($O$1-1)*10) -> - | D20: =OFFSET('Precios finales '!G153,0,($O$1-1)*10) -> - | E20: =OFFSET('Precios finales '!H153,0,($O$1-1)*10) -> - | F20: =OFFSET('Precios finales '!I153,0,($O$1-1)*10) -> - | G20: =OFFSET('Precios finales '!J153,0,($O$1-1)*10) -> - | H20: =OFFSET('Precios finales '!K153,0,($O$1-1)*10) -> - | I20: =OFFSET('Precios finales '!L153,0,($O$1-1)*10) -> - | J20: =OFFSET('Precios finales '!M153,0,($O$1-1)*10) -> - | K20: =OFFSET('Precios finales '!N153,0,($O$1-1)*10) -> - | L20: =OFFSET('Precios finales '!O153,0,($O$1-1)*10) -> -
B21: Restricciones técnicas al PDBF | C21: =OFFSET('Precios finales '!F154,0,($O$1-1)*10) -> 446.6936 | D21: =OFFSET('Precios finales '!G154,0,($O$1-1)*10) -> 228.4256 | E21: =OFFSET('Precios finales '!H154,0,($O$1-1)*10) -> 60.8891 | F21: =OFFSET('Precios finales '!I154,0,($O$1-1)*10) -> 193.3481 | G21: =OFFSET('Precios finales '!J154,0,($O$1-1)*10) -> - | H21: =OFFSET('Precios finales '!K154,0,($O$1-1)*10) -> - | I21: =OFFSET('Precios finales '!L154,0,($O$1-1)*10) -> - | J21: =OFFSET('Precios finales '!M154,0,($O$1-1)*10) -> - | K21: =OFFSET('Precios finales '!N154,0,($O$1-1)*10) -> - | L21: =OFFSET('Precios finales '!O154,0,($O$1-1)*10) -> -
B22: Regulación secundaria | C22: =OFFSET('Precios finales '!F155,0,($O$1-1)*10) -> 1723.829504 | D22: =OFFSET('Precios finales '!G155,0,($O$1-1)*10) -> 1514.341644 | E22: =OFFSET('Precios finales '!H155,0,($O$1-1)*10) -> 1262.416674 | F22: =OFFSET('Precios finales '!I155,0,($O$1-1)*10) -> 1070.322692 | G22: =OFFSET('Precios finales '!J155,0,($O$1-1)*10) -> - | H22: =OFFSET('Precios finales '!K155,0,($O$1-1)*10) -> - | I22: =OFFSET('Precios finales '!L155,0,($O$1-1)*10) -> - | J22: =OFFSET('Precios finales '!M155,0,($O$1-1)*10) -> - | K22: =OFFSET('Precios finales '!N155,0,($O$1-1)*10) -> - | L22: =OFFSET('Precios finales '!O155,0,($O$1-1)*10) -> -
B23: Regulación terciaria | C23: =OFFSET('Precios finales '!F156,0,($O$1-1)*10) -> 2982.6402 | D23: =OFFSET('Precios finales '!G156,0,($O$1-1)*10) -> 2804.8267 | E23: =OFFSET('Precios finales '!H156,0,($O$1-1)*10) -> 2330.193 | F23: =OFFSET('Precios finales '!I156,0,($O$1-1)*10) -> 1811.622 | G23: =OFFSET('Precios finales '!J156,0,($O$1-1)*10) -> - | H23: =OFFSET('Precios finales '!K156,0,($O$1-1)*10) -> - | I23: =OFFSET('Precios finales '!L156,0,($O$1-1)*10) -> - | J23: =OFFSET('Precios finales '!M156,0,($O$1-1)*10) -> - | K23: =OFFSET('Precios finales '!N156,0,($O$1-1)*10) -> - | L23: =OFFSET('Precios finales '!O156,0,($O$1-1)*10) -> -
B24: Gestión de desvíos | C24: =OFFSET('Precios finales '!F157,0,($O$1-1)*10) -> 2674.5384 | D24: =OFFSET('Precios finales '!G157,0,($O$1-1)*10) -> 2238.4268 | E24: =OFFSET('Precios finales '!H157,0,($O$1-1)*10) -> 1231.8156 | F24: =OFFSET('Precios finales '!I157,0,($O$1-1)*10) -> 904.9999 | G24: =OFFSET('Precios finales '!J157,0,($O$1-1)*10) -> - | H24: =OFFSET('Precios finales '!K157,0,($O$1-1)*10) -> - | I24: =OFFSET('Precios finales '!L157,0,($O$1-1)*10) -> - | J24: =OFFSET('Precios finales '!M157,0,($O$1-1)*10) -> - | K24: =OFFSET('Precios finales '!N157,0,($O$1-1)*10) -> - | L24: =OFFSET('Precios finales '!O157,0,($O$1-1)*10) -> -
B25: Restricciones en tiempo real | C25: =OFFSET('Precios finales '!F158,0,($O$1-1)*10) -> 900.8324 | D25: =OFFSET('Precios finales '!G158,0,($O$1-1)*10) -> 509.3206 | E25: =OFFSET('Precios finales '!H158,0,($O$1-1)*10) -> 483.8271 | F25: =OFFSET('Precios finales '!I158,0,($O$1-1)*10) -> 1701.4657 | G25: =OFFSET('Precios finales '!J158,0,($O$1-1)*10) -> - | H25: =OFFSET('Precios finales '!K158,0,($O$1-1)*10) -> - | I25: =OFFSET('Precios finales '!L158,0,($O$1-1)*10) -> - | J25: =OFFSET('Precios finales '!M158,0,($O$1-1)*10) -> - | K25: =OFFSET('Precios finales '!N158,0,($O$1-1)*10) -> - | L25: =OFFSET('Precios finales '!O158,0,($O$1-1)*10) -> -
B26: Energía a Bajar | C26: =IF(SUM(C20:C25)=0,"-",SUM(C20:C25)) -> 8728.534104 | D26: 7295.341344 | E26: 5369.141474 | F26: 5681.758392 | G26: - | H26: - | I26: - | J26: - | K26: - | L26: -
B28: Volumen
B29: Restricciones garantía de suministro | C29: =OFFSET('Precios finales '!F161,0,($O$1-1)*10) -> - | D29: =OFFSET('Precios finales '!G161,0,($O$1-1)*10) -> 12773.1949 | E29: =OFFSET('Precios finales '!H161,0,($O$1-1)*10) -> 12008.1666 | F29: =OFFSET('Precios finales '!I161,0,($O$1-1)*10) -> 4085.3867 | G29: =OFFSET('Precios finales '!J161,0,($O$1-1)*10) -> - | H29: =OFFSET('Precios finales '!K161,0,($O$1-1)*10) -> - | I29: =OFFSET('Precios finales '!L161,0,($O$1-1)*10) -> - | J29: =OFFSET('Precios finales '!M161,0,($O$1-1)*10) -> - | K29: =OFFSET('Precios finales '!N161,0,($O$1-1)*10) -> - | L29: =OFFSET('Precios finales '!O161,0,($O$1-1)*10) -> -
B30: Restricciones técnicas al PDBF | C30: =OFFSET('Precios finales '!F162,0,($O$1-1)*10) -> 12955.9662 | D30: =OFFSET('Precios finales '!G162,0,($O$1-1)*10) -> 10226.0694 | E30: =OFFSET('Precios finales '!H162,0,($O$1-1)*10) -> 6222.9502 | F30: =OFFSET('Precios finales '!I162,0,($O$1-1)*10) -> 7433.1496 | G30: =OFFSET('Precios finales '!J162,0,($O$1-1)*10) -> - | H30: =OFFSET('Precios finales '!K162,0,($O$1-1)*10) -> - | I30: =OFFSET('Precios finales '!L162,0,($O$1-1)*10) -> - | J30: =OFFSET('Precios finales '!M162,0,($O$1-1)*10) -> - | K30: =OFFSET('Precios finales '!N162,0,($O$1-1)*10) -> - | L30: =OFFSET('Precios finales '!O162,0,($O$1-1)*10) -> -
B31: Regulación secundaria | C31: =OFFSET('Precios finales '!F163,0,($O$1-1)*10) -> 2888.920134 | D31: =OFFSET('Precios finales '!G163,0,($O$1-1)*10) -> 2726.849185 | E31: =OFFSET('Precios finales '!H163,0,($O$1-1)*10) -> 2772.781754 | F31: =OFFSET('Precios finales '!I163,0,($O$1-1)*10) -> 2875.950686 | G31: =OFFSET('Precios finales '!J163,0,($O$1-1)*10) -> - | H31: =OFFSET('Precios finales '!K163,0,($O$1-1)*10) -> - | I31: =OFFSET('Precios finales '!L163,0,($O$1-1)*10) -> - | J31: =OFFSET('Precios finales '!M163,0,($O$1-1)*10) -> - | K31: =OFFSET('Precios finales '!N163,0,($O$1-1)*10) -> - | L31: =OFFSET('Precios finales '!O163,0,($O$1-1)*10) -> -
B32: Regulación terciaria | C32: =OFFSET('Precios finales '!F164,0,($O$1-1)*10) -> 5708.3848 | D32: =OFFSET('Precios finales '!G164,0,($O$1-1)*10) -> 5498.6544 | E32: =OFFSET('Precios finales '!H164,0,($O$1-1)*10) -> 5321.8082 | F32: =OFFSET('Precios finales '!I164,0,($O$1-1)*10) -> 5141.9282 | G32: =OFFSET('Precios finales '!J164,0,($O$1-1)*10) -> - | H32: =OFFSET('Precios finales '!K164,0,($O$1-1)*10) -> - | I32: =OFFSET('Precios finales '!L164,0,($O$1-1)*10) -> - | J32: =OFFSET('Precios finales '!M164,0,($O$1-1)*10) -> - | K32: =OFFSET('Precios finales '!N164,0,($O$1-1)*10) -> - | L32: =OFFSET('Precios finales '!O164,0,($O$1-1)*10) -> -
B33: Gestión de desvíos | C33: =OFFSET('Precios finales '!F165,0,($O$1-1)*10) -> 4872.9656 | D33: =OFFSET('Precios finales '!G165,0,($O$1-1)*10) -> 4013.0021 | E33: =OFFSET('Precios finales '!H165,0,($O$1-1)*10) -> 3890.1115 | F33: =OFFSET('Precios finales '!I165,0,($O$1-1)*10) -> 3251.6758 | G33: =OFFSET('Precios finales '!J165,0,($O$1-1)*10) -> - | H33: =OFFSET('Precios finales '!K165,0,($O$1-1)*10) -> - | I33: =OFFSET('Precios finales '!L165,0,($O$1-1)*10) -> - | J33: =OFFSET('Precios finales '!M165,0,($O$1-1)*10) -> - | K33: =OFFSET('Precios finales '!N165,0,($O$1-1)*10) -> - | L33: =OFFSET('Precios finales '!O165,0,($O$1-1)*10) -> -
B34: Restricciones en tiempo real | C34: =OFFSET('Precios finales '!F166,0,($O$1-1)*10) -> 1787.8567 | D34: =OFFSET('Precios finales '!G166,0,($O$1-1)*10) -> 1166.6905 | E34: =OFFSET('Precios finales '!H166,0,($O$1-1)*10) -> 1118.9989 | F34: =OFFSET('Precios finales '!I166,0,($O$1-1)*10) -> 2259.7978 | G34: =OFFSET('Precios finales '!J166,0,($O$1-1)*10) -> - | H34: =OFFSET('Precios finales '!K166,0,($O$1-1)*10) -> - | I34: =OFFSET('Precios finales '!L166,0,($O$1-1)*10) -> - | J34: =OFFSET('Precios finales '!M166,0,($O$1-1)*10) -> - | K34: =OFFSET('Precios finales '!N166,0,($O$1-1)*10) -> - | L34: =OFFSET('Precios finales '!O166,0,($O$1-1)*10) -> -
B35: Volumen total de energía | C35: =IF(SUM(C29:C34)=0,"-",SUM(C29:C34)) -> 28214.09343 | D35: 36404.46048 | E35: 31334.81715 | F35: 25047.88879 | G35: - | H35: - | I35: - | J35: - | K35: - | L35: -

Sheet Restricciones PBF mensual
O1: 4
L4: Concepto
L5: Horizonte temporal
L6: Periodo
C8: Ene. | D8: Feb. | E8: Mar. | F8: Abr. | G8: May. | H8: Jun. | I8: Jul. | J8: Ago. | K8: Sep. | L8: Oct. | M8: Nov. | N8: Dic. | O8: =OFFSET(Año!B2,($O$1-1),0) -> 2013
B10: Energía a subir fase I (GWh) | C10: =OFFSET('Precios finales '!AP47,0,($O$1-1)*13) -> 422.7793 | D10: =OFFSET('Precios finales '!AQ47,0,($O$1-1)*13) -> 578.4982 | E10: =OFFSET('Precios finales '!AR47,0,($O$1-1)*13) -> 1034.7455 | F10: =OFFSET('Precios finales '!AS47,0,($O$1-1)*13) -> 1006.4628 | G10: =OFFSET('Precios finales '!AT47,0,($O$1-1)*13) -> 944.2459 | H10: =OFFSET('Precios finales '!AU47,0,($O$1-1)*13) -> 762.761 | I10: =OFFSET('Precios finales '!AV47,0,($O$1-1)*13) -> 202.0059 | J10: =OFFSET('Precios finales '!AW47,0,($O$1-1)*13) -> 199.3874 | K10: =OFFSET('Precios finales '!AX47,0,($O$1-1)*13) -> 210.8465 | L10: =OFFSET('Precios finales '!AY47,0,($O$1-1)*13) -> 563.0017 | M10: =OFFSET('Precios finales '!AZ47,0,($O$1-1)*13) -> 630.2775 | N10: =OFFSET('Precios finales '!BA47,0,($O$1-1)*13) -> 684.7898 | O10: =OFFSET('Precios finales '!BB47,0,($O$1-1)*13) -> 7239.8015
B11: Precio a subir (€/MWh) | C11: =OFFSET('Precios finales '!AP49,0,($O$1-1)*13) -> 165.9370716 | D11: =OFFSET('Precios finales '!AQ49,0,($O$1-1)*13) -> 124.2752143 | E11: =OFFSET('Precios finales '!AR49,0,($O$1-1)*13) -> 96.75431356 | F11: =OFFSET('Precios finales '!AS49,0,($O$1-1)*13) -> 90.72455849 | G11: =OFFSET('Precios finales '!AT49,0,($O$1-1)*13) -> 102.4246301 | H11: =OFFSET('Precios finales '!AU49,0,($O$1-1)*13) -> 111.7444781 | I11: =OFFSET('Precios finales '!AV49,0,($O$1-1)*13) -> 182.1860251 | J11: =OFFSET('Precios finales '!AW49,0,($O$1-1)*13) -> 244.8022605 | K11: =OFFSET('Precios finales '!AX49,0,($O$1-1)*13) -> 256.8240031 | L11: =OFFSET('Precios finales '!AY49,0,($O$1-1)*13) -> 156.7742409 | M11: =OFFSET('Precios finales '!AZ49,0,($O$1-1)*13) -> 142.7155208 | N11: =OFFSET('Precios finales '!BA49,0,($O$1-1)*13) -> 128.5622856 | O11: =OFFSET('Precios finales '!BB49,0,($O$1-1)*13) -> 127.399839
B13: Energía a bajar fase I (GWh) | C13: =OFFSET('Precios finales '!AP48,0,($O$1-1)*13) -> 4.8518 | D13: =OFFSET('Precios finales '!AQ48,0,($O$1-1)*13) -> 0.6488 | E13: =OFFSET('Precios finales '!AR48,0,($O$1-1)*13) -> 1.6876 | F13: =OFFSET('Precios finales '!AS48,0,($O$1-1)*13) -> 0.4573 | G13: =OFFSET('Precios finales '!AT48,0,($O$1-1)*13) -> 1.4307 | H13: =OFFSET('Precios finales '!AU48,0,($O$1-1)*13) -> 6.0181 | I13: =OFFSET('Precios finales '!AV48,0,($O$1-1)*13) -> 27.6272 | J13: =OFFSET('Precios finales '!AW48,0,($O$1-1)*13) -> 56.8951 | K13: =OFFSET('Precios finales '!AX48,0,($O$1-1)*13) -> 26.0924 | L13: =OFFSET('Precios finales '!AY48,0,($O$1-1)*13) -> 23.3988 | M13: =OFFSET('Precios finales '!AZ48,0,($O$1-1)*13) -> 2.2016 | N13: =OFFSET('Precios finales '!BA48,0,($O$1-1)*13) -> 42.0387 | O13: =OFFSET('Precios finales '!BB48,0,($O$1-1)*13) -> 193.3481
B14: Precio a bajar (€/MWh) | C14: =OFFSET('Precios finales '!AP50,0,($O$1-1)*13) -> 47.38075685 | D14: =OFFSET('Precios finales '!AQ50,0,($O$1-1)*13) -> 41.05677995 | E14: =OFFSET('Precios finales '!AR50,0,($O$1-1)*13) -> 18.70624486 | F14: =OFFSET('Precios finales '!AS50,0,($O$1-1)*13) -> 11.68381101 | G14: =OFFSET('Precios finales '!AT50,0,($O$1-1)*13) -> 35.46150388 | H14: =OFFSET('Precios finales '!AU50,0,($O$1-1)*13) -> 31.36628051 | I14: =OFFSET('Precios finales '!AV50,0,($O$1-1)*13) -> 48.19627741 | J14: =OFFSET('Precios finales '!AW50,0,($O$1-1)*13) -> 46.17682063 | K14: =OFFSET('Precios finales '!AX50,0,($O$1-1)*13) -> 44.08277112 | L14: =OFFSET('Precios finales '!AY50,0,($O$1-1)*13) -> 40.75538152 | M14: =OFFSET('Precios finales '!AZ50,0,($O$1-1)*13) -> 35.86530109 | N14: =OFFSET('Precios finales '!BA50,0,($O$1-1)*13) -> 45.41317948 | O14: =OFFSET('Precios finales '!BB50,0,($O$1-1)*13) -> 32.8802697

Sheet Restricciones PBF anual
O1: 1
I4: Concepto
I5: Horizonte temporal
I6: Periodo
C8: =OFFSET('Precios finales '!F53,0,($O$1-1)*10) -> 2010 | D8: =OFFSET('Precios finales '!G24,0,($O$1-1)*10) -> 2011 | E8: =OFFSET('Precios finales '!H24,0,($O$1-1)*10) -> 2012 | F8: =OFFSET('Precios finales '!I24,0,($O$1-1)*10) -> 2013 | G8: =OFFSET('Precios finales '!J24,0,($O$1-1)*10) -> 2014 | H8: =OFFSET('Precios finales '!K24,0,($O$1-1)*10) -> 2015 | I8: =OFFSET('Precios finales '!L24,0,($O$1-1)*10) -> 2016 | J8: =OFFSET('Precios finales '!M24,0,($O$1-1)*10) -> 2017 | K8: =OFFSET('Precios finales '!N24,0,($O$1-1)*10) -> 2018 | L8: =OFFSET('Precios finales '!O24,0,($O$1-1)*10) -> 2019
C9: =OFFSET('Precios finales '!C25,0,($O$1-1)*10) -> 0
B10: Energía a subir fase I (GWh) | C10: =OFFSET('Precios finales '!F54,0,($O$1-1)*10) -> 12509.2726 | D10: =OFFSET('Precios finales '!G54,0,($O$1-1)*10) -> 9997.6438 | E10: =OFFSET('Precios finales '!H54,0,($O$1-1)*10) -> 6162.0611 | F10: =OFFSET('Precios finales '!I54,0,($O$1-1)*10) -> 7239.8015 | G10: =OFFSET('Precios finales '!J54,0,($O$1-1)*10) -> - | H10: =OFFSET('Precios finales '!K54,0,($O$1-1)*10) -> - | I10: =OFFSET('Precios finales '!L54,0,($O$1-1)*10) -> - | J10: =OFFSET('Precios finales '!M54,0,($O$1-1)*10) -> - | K10: =OFFSET('Precios finales '!N54,0,($O$1-1)*10) -> - | L10: =OFFSET('Precios finales '!O54,0,($O$1-1)*10) -> -
B11: Precio a subir (€/MWh) | C11: =OFFSET('Precios finales '!F56,0,($O$1-1)*10) -> 80.49792412 | D11: =OFFSET('Precios finales '!G56,0,($O$1-1)*10) -> 94.11184696 | E11: =OFFSET('Precios finales '!H56,0,($O$1-1)*10) -> 129.9352769 | F11: =OFFSET('Precios finales '!I56,0,($O$1-1)*10) -> 127.399839 | G11: =OFFSET('Precios finales '!J56,0,($O$1-1)*10) -> - | H11: =OFFSET('Precios finales '!K56,0,($O$1-1)*10) -> - | I11: =OFFSET('Precios finales '!L56,0,($O$1-1)*10) -> - | J11: =OFFSET('Precios finales '!M56,0,($O$1-1)*10) -> - | K11: =OFFSET('Precios finales '!N56,0,($O$1-1)*10) -> - | L11: =OFFSET('Precios finales '!O56,0,($O$1-1)*10) -> -
B13: Energía a bajar fase I (GWh) | C13: =OFFSET('Precios finales '!F55,0,($O$1-1)*10) -> 446.6936 | D13: =OFFSET('Precios finales '!G55,0,($O$1-1)*10) -> 228.4256 | E13: =OFFSET('Precios finales '!H55,0,($O$1-1)*10) -> 60.8891 | F13: =OFFSET('Precios finales '!I55,0,($O$1-1)*10) -> 193.3481 | G13: =OFFSET('Precios finales '!J55,0,($O$1-1)*10) -> - | H13: =OFFSET('Precios finales '!K55,0,($O$1-1)*10) -> - | I13: =OFFSET('Precios finales '!L55,0,($O$1-1)*10) -> - | J13: =OFFSET('Precios finales '!M55,0,($O$1-1)*10) -> - | K13: =OFFSET('Precios finales '!N55,0,($O$1-1)*10) -> - | L13: =OFFSET('Precios finales '!O55,0,($O$1-1)*10) -> -
B14: Precio a bajar (€/MWh) | C14: =OFFSET('Precios finales '!F57,0,($O$1-1)*10) -> 32.41921309 | D14: =OFFSET('Precios finales '!G57,0,($O$1-1)*10) -> 46.71754011 | E14: =OFFSET('Precios finales '!H57,0,($O$1-1)*10) -> 44.36393489 | F14: =OFFSET('Precios finales '!I57,0,($O$1-1)*10) -> 32.8802697 | G14: =OFFSET('Precios finales '!J57,0,($O$1-1)*10) -> - | H14: =OFFSET('Precios finales '!K57,0,($O$1-1)*10) -> - | I14: =OFFSET('Precios finales '!L57,0,($O$1-1)*10) -> - | J14: =OFFSET('Precios finales '!M57,0,($O$1-1)*10) -> - | K14: =OFFSET('Precios finales '!N57,0,($O$1-1)*10) -> - | L14: =OFFSET('Precios finales '!O57,0,($O$1-1)*10) -> -

Sheet Regulación secundaria mensual
O1: 4
L4: Concepto
L5: Horizonte temporal
L6: Periodo
C8: Ene. | D8: Feb. | E8: Mar. | F8: Abr. | G8: May. | H8: Jun. | I8: Jul. | J8: Ago. | K8: Sep. | L8: Oct. | M8: Nov. | N8: Dic. | O8: =OFFSET(Año!B2,($O$1-1),0) -> 2013
B10: Energía a subir (GWh) | C10: =OFFSET('Precios finales '!AP61,0,($O$1-1)*13) -> 171.797297 | D10: =OFFSET('Precios finales '!AQ61,0,($O$1-1)*13) -> 146.232013 | E10: =OFFSET('Precios finales '!AR61,0,($O$1-1)*13) -> 176.833415 | F10: =OFFSET('Precios finales '!AS61,0,($O$1-1)*13) -> 192.209758 | G10: =OFFSET('Precios finales '!AT61,0,($O$1-1)*13) -> 170.306426 | H10: =OFFSET('Precios finales '!AU61,0,($O$1-1)*13) -> 149.065025 | I10: =OFFSET('Precios finales '!AV61,0,($O$1-1)*13) -> 124.773447 | J10: =OFFSET('Precios finales '!AW61,0,($O$1-1)*13) -> 125.844602 | K10: =OFFSET('Precios finales '!AX61,0,($O$1-1)*13) -> 111.608235 | L10: =OFFSET('Precios finales '!AY61,0,($O$1-1)*13) -> 133.014772 | M10: =OFFSET('Precios finales '!AZ61,0,($O$1-1)*13) -> 153.516442 | N10: =OFFSET('Precios finales '!BA61,0,($O$1-1)*13) -> 150.426562 | O10: =OFFSET('Precios finales '!BB61,0,($O$1-1)*13) -> 1805.627994
B11: Precio a subir (€/MWh) | C11: =OFFSET('Precios finales '!AP63,0,($O$1-1)*13) -> 58.92673917 | D11: =OFFSET('Precios finales '!AQ63,0,($O$1-1)*13) -> 53.96301198 | E11: =OFFSET('Precios finales '!AR63,0,($O$1-1)*13) -> 33.56233747 | F11: =OFFSET('Precios finales '!AS63,0,($O$1-1)*13) -> 31.19797362 | G11: =OFFSET('Precios finales '!AT63,0,($O$1-1)*13) -> 49.69381813 | H11: =OFFSET('Precios finales '!AU63,0,($O$1-1)*13) -> 47.04082524 | I11: =OFFSET('Precios finales '!AV63,0,($O$1-1)*13) -> 56.26631987 | J11: =OFFSET('Precios finales '!AW63,0,($O$1-1)*13) -> 52.07140081 | K11: =OFFSET('Precios finales '!AX63,0,($O$1-1)*13) -> 53.19528501 | L11: =OFFSET('Precios finales '!AY63,0,($O$1-1)*13) -> 52.43041795 | M11: =OFFSET('Precios finales '!AZ63,0,($O$1-1)*13) -> 50.47670145 | N11: =OFFSET('Precios finales '!BA63,0,($O$1-1)*13) -> 77.19751821 | O11: =OFFSET('Precios finales '!BB63,0,($O$1-1)*13) -> 50.54609862
B13: Energía a bajar (GWh) | C13: =OFFSET('Precios finales '!AP62,0,($O$1-1)*13) -> 94.28603 | D13: =OFFSET('Precios finales '!AQ62,0,($O$1-1)*13) -> 81.404216 | E13: =OFFSET('Precios finales '!AR62,0,($O$1-1)*13) -> 98.453813 | F13: =OFFSET('Precios finales '!AS62,0,($O$1-1)*13) -> 86.494075 | G13: =OFFSET('Precios finales '!AT62,0,($O$1-1)*13) -> 76.51819 | H13: =OFFSET('Precios finales '!AU62,0,($O$1-1)*13) -> 77.887855 | I13: =OFFSET('Precios finales '!AV62,0,($O$1-1)*13) -> 87.973297 | J13: =OFFSET('Precios finales '!AW62,0,($O$1-1)*13) -> 92.756681 | K13: =OFFSET('Precios finales '!AX62,0,($O$1-1)*13) -> 100.823924 | L13: =OFFSET('Precios finales '!AY62,0,($O$1-1)*13) -> 101.598428 | M13: =OFFSET('Precios finales '!AZ62,0,($O$1-1)*13) -> 84.130255 | N13: =OFFSET('Precios finales '!BA62,0,($O$1-1)*13) -> 87.995928 | O13: =OFFSET('Precios finales '!BB62,0,($O$1-1)*13) -> 1070.322692
B14: Precio a bajar (€/MWh) | C14: =OFFSET('Precios finales '!AP64,0,($O$1-1)*13) -> 35.44296138 | D14: =OFFSET('Precios finales '!AQ64,0,($O$1-1)*13) -> 30.15885013 | E14: =OFFSET('Precios finales '!AR64,0,($O$1-1)*13) -> 12.8897797 | F14: =OFFSET('Precios finales '!AS64,0,($O$1-1)*13) -> 10.30120329 | G14: =OFFSET('Precios finales '!AT64,0,($O$1-1)*13) -> 24.80783706 | H14: =OFFSET('Precios finales '!AU64,0,($O$1-1)*13) -> 23.97600807 | I14: =OFFSET('Precios finales '!AV64,0,($O$1-1)*13) -> 35.68874371 | J14: =OFFSET('Precios finales '!AW64,0,($O$1-1)*13) -> 33.56987568 | K14: =OFFSET('Precios finales '!AX64,0,($O$1-1)*13) -> 33.01326132 | L14: =OFFSET('Precios finales '!AY64,0,($O$1-1)*13) -> 30.09534252 | M14: =OFFSET('Precios finales '!AZ64,0,($O$1-1)*13) -> 27.9561184 | N14: =OFFSET('Precios finales '!BA64,0,($O$1-1)*13) -> 44.96014781 | O14: =OFFSET('Precios finales '!BB64,0,($O$1-1)*13) -> 28.65536121

Sheet Regulación secundaria anual
O1: 1
I4: Concepto
I5: Horizonte temporal
I6: Periodo
C8: =OFFSET('Precios finales '!F53,0,($O$1-1)*10) -> 2010 | D8: =OFFSET('Precios finales '!G24,0,($O$1-1)*10) -> 2011 | E8: =OFFSET('Precios finales '!H24,0,($O$1-1)*10) -> 2012 | F8: =OFFSET('Precios finales '!I24,0,($O$1-1)*10) -> 2013 | G8: =OFFSET('Precios finales '!J24,0,($O$1-1)*10) -> 2014 | H8: =OFFSET('Precios finales '!K24,0,($O$1-1)*10) -> 2015 | I8: =OFFSET('Precios finales '!L24,0,($O$1-1)*10) -> 2016 | J8: =OFFSET('Precios finales '!M24,0,($O$1-1)*10) -> 2017 | K8: =OFFSET('Precios finales '!N24,0,($O$1-1)*10) -> 2018 | L8: =OFFSET('Precios finales '!O24,0,($O$1-1)*10) -> 2019
C9: =OFFSET('Precios finales '!C25,0,($O$1-1)*10) -> 0
B10: Energía a subir (GWh) | C10: =OFFSET('Precios finales '!F68,0,($O$1-1)*10) -> 1165.09063 | D10: =OFFSET('Precios finales '!G68,0,($O$1-1)*10) -> 1212.507541 | E10: =OFFSET('Precios finales '!H68,0,($O$1-1)*10) -> 1510.36508 | F10: =OFFSET('Precios finales '!I68,0,($O$1-1)*10) -> 1805.627994 | G10: =OFFSET('Precios finales '!J68,0,($O$1-1)*10) -> - | H10: =OFFSET('Precios finales '!K68,0,($O$1-1)*10) -> - | I10: =OFFSET('Precios finales '!L68,0,($O$1-1)*10) -> - | J10: =OFFSET('Precios finales '!M68,0,($O$1-1)*10) -> - | K10: =OFFSET('Precios finales '!N68,0,($O$1-1)*10) -> - | L10: =OFFSET('Precios finales '!O68,0,($O$1-1)*10) -> -
B11: Precio a subir (€/MWh) | C11: =OFFSET('Precios finales '!F70,0,($O$1-1)*10) -> 40.36460357 | D11: =OFFSET('Precios finales '!G70,0,($O$1-1)*10) -> 51.57979881 | E11: =OFFSET('Precios finales '!H70,0,($O$1-1)*10) -> 50.97878464 | F11: =OFFSET('Precios finales '!I70,0,($O$1-1)*10) -> 50.54609862 | G11: =OFFSET('Precios finales '!J70,0,($O$1-1)*10) -> - | H11: =OFFSET('Precios finales '!K70,0,($O$1-1)*10) -> - | I11: =OFFSET('Precios finales '!L70,0,($O$1-1)*10) -> - | J11: =OFFSET('Precios finales '!M70,0,($O$1-1)*10) -> - | K11: =OFFSET('Precios finales '!N70,0,($O$1-1)*10) -> - | L11: =OFFSET('Precios finales '!O70,0,($O$1-1)*10) -> -
B13: Energía a bajar (GWh) | C13: =OFFSET('Precios finales '!F69,0,($O$1-1)*10) -> 1723.829504 | D13: =OFFSET('Precios finales '!G69,0,($O$1-1)*10) -> 1514.341644 | E13: =OFFSET('Precios finales '!H69,0,($O$1-1)*10) -> 1262.416674 | F13: =OFFSET('Precios finales '!I69,0,($O$1-1)*10) -> 1070.322692 | G13: =OFFSET('Precios finales '!J69,0,($O$1-1)*10) -> - | H13: =OFFSET('Precios finales '!K69,0,($O$1-1)*10) -> - | I13: =OFFSET('Precios finales '!L69,0,($O$1-1)*10) -> - | J13: =OFFSET('Precios finales '!M69,0,($O$1-1)*10) -> - | K13: =OFFSET('Precios finales '!N69,0,($O$1-1)*10) -> - | L13: =OFFSET('Precios finales '!O69,0,($O$1-1)*10) -> -
B14: Precio a bajar (€/MWh) | C14: =OFFSET('Precios finales '!F71,0,($O$1-1)*10) -> 24.68443616 | D14: =OFFSET('Precios finales '!G71,0,($O$1-1)*10) -> 33.32316954 | E14: =OFFSET('Precios finales '!H71,0,($O$1-1)*10) -> 32.8599998 | F14: =OFFSET('Precios finales '!I71,0,($O$1-1)*10) -> 28.65536121 | G14: =OFFSET('Precios finales '!J71,0,($O$1-1)*10) -> - | H14: =OFFSET('Precios finales '!K71,0,($O$1-1)*10) -> - | I14: =OFFSET('Precios finales '!L71,0,($O$1-1)*10) -> - | J14: =OFFSET('Precios finales '!M71,0,($O$1-1)*10) -> - | K14: =OFFSET('Precios finales '!N71,0,($O$1-1)*10) -> - | L14: =OFFSET('Precios finales '!O71,0,($O$1-1)*10) -> -

Sheet Regulación terciaria mensual
O1: 4
L4: Concepto
L5: Horizonte temporal
L6: Periodo
C8: Ene. | D8: Feb. | E8: Mar. | F8: Abr. | G8: May. | H8: Jun. | I8: Jul. | J8: Ago. | K8: Sep. | L8: Oct. | M8: Nov. | N8: Dic. | O8: =OFFSET(Año!B2,($O$1-1),0) -> 2013
B10: Energía a subir (GWh) | C10: =OFFSET('Precios finales '!AP75,0,($O$1-1)*13) -> 321.3479 | D10: =OFFSET('Precios finales '!AQ75,0,($O$1-1)*13) -> 357.9102 | E10: =OFFSET('Precios finales '!AR75,0,($O$1-1)*13) -> 221.207 | F10: =OFFSET('Precios finales '!AS75,0,($O$1-1)*13) -> 187.1326 | G10: =OFFSET('Precios finales '!AT75,0,($O$1-1)*13) -> 252.4547 | H10: =OFFSET('Precios finales '!AU75,0,($O$1-1)*13) -> 215.8065 | I10: =OFFSET('Precios finales '!AV75,0,($O$1-1)*13) -> 298.5499 | J10: =OFFSET('Precios finales '!AW75,0,($O$1-1)*13) -> 307.2236 | K10: =OFFSET('Precios finales '!AX75,0,($O$1-1)*13) -> 235.2833 | L10: =OFFSET('Precios finales '!AY75,0,($O$1-1)*13) -> 274.0867 | M10: =OFFSET('Precios finales '!AZ75,0,($O$1-1)*13) -> 305.5878 | N10: =OFFSET('Precios finales '!BA75,0,($O$1-1)*13) -> 353.716 | O10: =OFFSET('Precios finales '!BB75,0,($O$1-1)*13) -> 3330.3062
B11: Precio a subir (€/MWh) | C11: =OFFSET('Precios finales '!AP77,0,($O$1-1)*13) -> 70.83837523 | D11: =OFFSET('Precios finales '!AQ77,0,($O$1-1)*13) -> 62.8998643 | E11: =OFFSET('Precios finales '!AR77,0,($O$1-1)*13) -> 53.13026383 | F11: =OFFSET('Precios finales '!AS77,0,($O$1-1)*13) -> 46.02616818 | G11: =OFFSET('Precios finales '!AT77,0,($O$1-1)*13) -> 54.02750608 | H11: =OFFSET('Precios finales '!AU77,0,($O$1-1)*13) -> 51.64115636 | I11: =OFFSET('Precios finales '!AV77,0,($O$1-1)*13) -> 61.16369612 | J11: =OFFSET('Precios finales '!AW77,0,($O$1-1)*13) -> 60.83009362 | K11: =OFFSET('Precios finales '!AX77,0,($O$1-1)*13) -> 61.53600081 | L11: =OFFSET('Precios finales '!AY77,0,($O$1-1)*13) -> 63.05516517 | M11: =OFFSET('Precios finales '!AZ77,0,($O$1-1)*13) -> 56.85422802 | N11: =OFFSET('Precios finales '!BA77,0,($O$1-1)*13) -> 89.49575439 | O11: =OFFSET('Precios finales '!BB77,0,($O$1-1)*13) -> 62.50653885
B13: Energía a bajar (GWh) | C13: =OFFSET('Precios finales '!AP76,0,($O$1-1)*13) -> 220.8507 | D13: =OFFSET('Precios finales '!AQ76,0,($O$1-1)*13) -> 135.4076 | E13: =OFFSET('Precios finales '!AR76,0,($O$1-1)*13) -> 208.6698 | F13: =OFFSET('Precios finales '!AS76,0,($O$1-1)*13) -> 170.5397 | G13: =OFFSET('Precios finales '!AT76,0,($O$1-1)*13) -> 153.6566 | H13: =OFFSET('Precios finales '!AU76,0,($O$1-1)*13) -> 152.2126 | I13: =OFFSET('Precios finales '!AV76,0,($O$1-1)*13) -> 129.5262 | J13: =OFFSET('Precios finales '!AW76,0,($O$1-1)*13) -> 93.7404 | K13: =OFFSET('Precios finales '!AX76,0,($O$1-1)*13) -> 126.3302 | L13: =OFFSET('Precios finales '!AY76,0,($O$1-1)*13) -> 192.603 | M13: =OFFSET('Precios finales '!AZ76,0,($O$1-1)*13) -> 103.0528 | N13: =OFFSET('Precios finales '!BA76,0,($O$1-1)*13) -> 125.0324 | O13: =OFFSET('Precios finales '!BB76,0,($O$1-1)*13) -> 1811.622
B14: Precio a bajar (€/MWh) | C14: =OFFSET('Precios finales '!AP78,0,($O$1-1)*13) -> 22.07497495 | D14: =OFFSET('Precios finales '!AQ78,0,($O$1-1)*13) -> 23.06109997 | E14: =OFFSET('Precios finales '!AR78,0,($O$1-1)*13) -> 6.440657153 | F14: =OFFSET('Precios finales '!AS78,0,($O$1-1)*13) -> 5.35391167 | G14: =OFFSET('Precios finales '!AT78,0,($O$1-1)*13) -> 14.17744887 | H14: =OFFSET('Precios finales '!AU78,0,($O$1-1)*13) -> 13.48322688 | I14: =OFFSET('Precios finales '!AV78,0,($O$1-1)*13) -> 24.86643328 | J14: =OFFSET('Precios finales '!AW78,0,($O$1-1)*13) -> 22.69598828 | K14: =OFFSET('Precios finales '!AX78,0,($O$1-1)*13) -> 19.69801504 | L14: =OFFSET('Precios finales '!AY78,0,($O$1-1)*13) -> 15.91244524 | M14: =OFFSET('Precios finales '!AZ78,0,($O$1-1)*13) -> 13.01860706 | N14: =OFFSET('Precios finales '!BA78,0,($O$1-1)*13) -> 30.13275967 | O14: =OFFSET('Precios finales '!BB78,0,($O$1-1)*13) -> 16.833822

Sheet Regulación terciaria anual
O1: 1
I4: Concepto
I5: Horizonte temporal
I6: Periodo
C8: =OFFSET('Precios finales '!F53,0,($O$1-1)*10) -> 2010 | D8: =OFFSET('Precios finales '!G24,0,($O$1-1)*10) -> 2011 | E8: =OFFSET('Precios finales '!H24,0,($O$1-1)*10) -> 2012 | F8: =OFFSET('Precios finales '!I24,0,($O$1-1)*10) -> 2013 | G8: =OFFSET('Precios finales '!J24,0,($O$1-1)*10) -> 2014 | H8: =OFFSET('Precios finales '!K24,0,($O$1-1)*10) -> 2015 | I8: =OFFSET('Precios finales '!L24,0,($O$1-1)*10) -> 2016 | J8: =OFFSET('Precios finales '!M24,0,($O$1-1)*10) -> 2017 | K8: =OFFSET('Precios finales '!N24,0,($O$1-1)*10) -> 2018 | L8: =OFFSET('Precios finales '!O24,0,($O$1-1)*10) -> 2019
C9: =OFFSET('Precios finales '!C25,0,($O$1-1)*10) -> 0
B10: Energía a subir (GWh) | C10: =OFFSET('Precios finales '!F82,0,($O$1-1)*10) -> 2725.7446 | D10: =OFFSET('Precios finales '!G82,0,($O$1-1)*10) -> 2693.8277 | E10: =OFFSET('Precios finales '!H82,0,($O$1-1)*10) -> 2991.6152 | F10: =OFFSET('Precios finales '!I82,0,($O$1-1)*10) -> 3330.3062 | G10: =OFFSET('Precios finales '!J82,0,($O$1-1)*10) -> - | H10: =OFFSET('Precios finales '!K82,0,($O$1-1)*10) -> - | I10: =OFFSET('Precios finales '!L82,0,($O$1-1)*10) -> - | J10: =OFFSET('Precios finales '!M82,0,($O$1-1)*10) -> - | K10: =OFFSET('Precios finales '!N82,0,($O$1-1)*10) -> - | L10: =OFFSET('Precios finales '!O82,0,($O$1-1)*10) -> -
B11: Precio a subir (€/MWh) | C11: =OFFSET('Precios finales '!F84,0,($O$1-1)*10) -> 50.4106099 | D11: =OFFSET('Precios finales '!G84,0,($O$1-1)*10) -> 57.97133776 | E11: =OFFSET('Precios finales '!H84,0,($O$1-1)*10) -> 59.72870424 | F11: =OFFSET('Precios finales '!I84,0,($O$1-1)*10) -> 62.50653885 | G11: =OFFSET('Precios finales '!J84,0,($O$1-1)*10) -> - | H11: =OFFSET('Precios finales '!K84,0,($O$1-1)*10) -> - | I11: =OFFSET('Precios finales '!L84,0,($O$1-1)*10) -> - | J11: =OFFSET('Precios finales '!M84,0,($O$1-1)*10) -> - | K11: =OFFSET('Precios finales '!N84,0,($O$1-1)*10) -> - | L11: =OFFSET('Precios finales '!O84,0,($O$1-1)*10) -> -
B13: Energía a bajar (GWh) | C13: =OFFSET('Precios finales '!F83,0,($O$1-1)*10) -> 2982.6402 | D13: =OFFSET('Precios finales '!G83,0,($O$1-1)*10) -> 2804.8267 | E13: =OFFSET('Precios finales '!H83,0,($O$1-1)*10) -> 2330.193 | F13: =OFFSET('Precios finales '!I83,0,($O$1-1)*10) -> 1811.622 | G13: =OFFSET('Precios finales '!J83,0,($O$1-1)*10) -> - | H13: =OFFSET('Precios finales '!K83,0,($O$1-1)*10) -> - | I13: =OFFSET('Precios finales '!L83,0,($O$1-1)*10) -> - | J13: =OFFSET('Precios finales '!M83,0,($O$1-1)*10) -> - | K13: =OFFSET('Precios finales '!N83,0,($O$1-1)*10) -> - | L13: =OFFSET('Precios finales '!O83,0,($O$1-1)*10) -> -
B14: Precio a bajar (€/MWh) | C14: =OFFSET('Precios finales '!F85,0,($O$1-1)*10) -> 17.87816248 | D14: =OFFSET('Precios finales '!G85,0,($O$1-1)*10) -> 24.45667554 | E14: =OFFSET('Precios finales '!H85,0,($O$1-1)*10) -> 22.16972604 | F14: =OFFSET('Precios finales '!I85,0,($O$1-1)*10) -> 16.833822 | G14: =OFFSET('Precios finales '!J85,0,($O$1-1)*10) -> - | H14: =OFFSET('Precios finales '!K85,0,($O$1-1)*10) -> - | I14: =OFFSET('Precios finales '!L85,0,($O$1-1)*10) -> - | J14: =OFFSET('Precios finales '!M85,0,($O$1-1)*10) -> - | K14: =OFFSET('Precios finales '!N85,0,($O$1-1)*10) -> - | L14: =OFFSET('Precios finales '!O85,0,($O$1-1)*10) -> -

Sheet Gestión de desvíos mensual
O1: 4
L4: Concepto
L5: Horizonte temporal
L6: Periodo
C8: Ene. | D8: Feb. | E8: Mar. | F8: Abr. | G8: May. | H8: Jun. | I8: Jul. | J8: Ago. | K8: Sep. | L8: Oct. | M8: Nov. | N8: Dic. | O8: =OFFSET(Año!B2,($O$1-1),0) -> 2013
B10: Energía a subir (GWh) | C10: =OFFSET('Precios finales '!AP89,0,($O$1-1)*13) -> 219.4743 | D10: =OFFSET('Precios finales '!AQ89,0,($O$1-1)*13) -> 231.1867 | E10: =OFFSET('Precios finales '!AR89,0,($O$1-1)*13) -> 173.4352 | F10: =OFFSET('Precios finales '!AS89,0,($O$1-1)*13) -> 91.9174 | G10: =OFFSET('Precios finales '!AT89,0,($O$1-1)*13) -> 121.3096 | H10: =OFFSET('Precios finales '!AU89,0,($O$1-1)*13) -> 113.4507 | I10: =OFFSET('Precios finales '!AV89,0,($O$1-1)*13) -> 140.9461 | J10: =OFFSET('Precios finales '!AW89,0,($O$1-1)*13) -> 235.1692 | K10: =OFFSET('Precios finales '!AX89,0,($O$1-1)*13) -> 113.0881 | L10: =OFFSET('Precios finales '!AY89,0,($O$1-1)*13) -> 145.9054 | M10: =OFFSET('Precios finales '!AZ89,0,($O$1-1)*13) -> 374.1256 | N10: =OFFSET('Precios finales '!BA89,0,($O$1-1)*13) -> 386.6676 | O10: =OFFSET('Precios finales '!BB89,0,($O$1-1)*13) -> 2346.6759
B11: Precio a subir (€/MWh) | C11: =OFFSET('Precios finales '!AP91,0,($O$1-1)*13) -> 65.48347515 | D11: =OFFSET('Precios finales '!AQ91,0,($O$1-1)*13) -> 56.20139372 | E11: =OFFSET('Precios finales '!AR91,0,($O$1-1)*13) -> 51.2783454 | F11: =OFFSET('Precios finales '!AS91,0,($O$1-1)*13) -> 50.19988892 | G11: =OFFSET('Precios finales '!AT91,0,($O$1-1)*13) -> 49.86809453 | H11: =OFFSET('Precios finales '!AU91,0,($O$1-1)*13) -> 47.48346568 | I11: =OFFSET('Precios finales '!AV91,0,($O$1-1)*13) -> 65.34343334 | J11: =OFFSET('Precios finales '!AW91,0,($O$1-1)*13) -> 56.85428755 | K11: =OFFSET('Precios finales '!AX91,0,($O$1-1)*13) -> 58.77726993 | L11: =OFFSET('Precios finales '!AY91,0,($O$1-1)*13) -> 60.28785713 | M11: =OFFSET('Precios finales '!AZ91,0,($O$1-1)*13) -> 58.26256134 | N11: =OFFSET('Precios finales '!BA91,0,($O$1-1)*13) -> 74.73767275 | O11: =OFFSET('Precios finales '!BB91,0,($O$1-1)*13) -> 60.09732506
B13: Energía a bajar (GWh) | C13: =OFFSET('Precios finales '!AP90,0,($O$1-1)*13) -> 181.8346 | D13: =OFFSET('Precios finales '!AQ90,0,($O$1-1)*13) -> 90.7751 | E13: =OFFSET('Precios finales '!AR90,0,($O$1-1)*13) -> 112.4418 | F13: =OFFSET('Precios finales '!AS90,0,($O$1-1)*13) -> 124.3272 | G13: =OFFSET('Precios finales '!AT90,0,($O$1-1)*13) -> 51.1136 | H13: =OFFSET('Precios finales '!AU90,0,($O$1-1)*13) -> 58.6826 | I13: =OFFSET('Precios finales '!AV90,0,($O$1-1)*13) -> 58.374 | J13: =OFFSET('Precios finales '!AW90,0,($O$1-1)*13) -> 9.6 | K13: =OFFSET('Precios finales '!AX90,0,($O$1-1)*13) -> 34.4513 | L13: =OFFSET('Precios finales '!AY90,0,($O$1-1)*13) -> 110.1372 | M13: =OFFSET('Precios finales '!AZ90,0,($O$1-1)*13) -> 28.9923 | N13: =OFFSET('Precios finales '!BA90,0,($O$1-1)*13) -> 44.2702 | O13: =OFFSET('Precios finales '!BB90,0,($O$1-1)*13) -> 904.9999
B14: Precio a bajar (€/MWh) | C14: =OFFSET('Precios finales '!AP92,0,($O$1-1)*13) -> 31.26688903 | D14: =OFFSET('Precios finales '!AQ92,0,($O$1-1)*13) -> 25.87423093 | E14: =OFFSET('Precios finales '!AR92,0,($O$1-1)*13) -> 6.833716198 | F14: =OFFSET('Precios finales '!AS92,0,($O$1-1)*13) -> 2.608488328 | G14: =OFFSET('Precios finales '!AT92,0,($O$1-1)*13) -> 21.56355823 | H14: =OFFSET('Precios finales '!AU92,0,($O$1-1)*13) -> 20.47699659 | I14: =OFFSET('Precios finales '!AV92,0,($O$1-1)*13) -> 32.20436067 | J14: =OFFSET('Precios finales '!AW92,0,($O$1-1)*13) -> 25.37333646 | K14: =OFFSET('Precios finales '!AX92,0,($O$1-1)*13) -> 31.33011062 | L14: =OFFSET('Precios finales '!AY92,0,($O$1-1)*13) -> 27.17499846 | M14: =OFFSET('Precios finales '!AZ92,0,($O$1-1)*13) -> 14.11347289 | N14: =OFFSET('Precios finales '!BA92,0,($O$1-1)*13) -> 53.57240401 | O14: =OFFSET('Precios finales '!BB92,0,($O$1-1)*13) -> 22.54954922

Sheet Gestión de desvíos anual
O1: 1
I4: Concepto
I5: Horizonte temporal
I6: Periodo
C8: =OFFSET('Precios finales '!F53,0,($O$1-1)*10) -> 2010 | D8: =OFFSET('Precios finales '!G24,0,($O$1-1)*10) -> 2011 | E8: =OFFSET('Precios finales '!H24,0,($O$1-1)*10) -> 2012 | F8: =OFFSET('Precios finales '!I24,0,($O$1-1)*10) -> 2013 | G8: =OFFSET('Precios finales '!J24,0,($O$1-1)*10) -> 2014 | H8: =OFFSET('Precios finales '!K24,0,($O$1-1)*10) -> 2015 | I8: =OFFSET('Precios finales '!L24,0,($O$1-1)*10) -> 2016 | J8: =OFFSET('Precios finales '!M24,0,($O$1-1)*10) -> 2017 | K8: =OFFSET('Precios finales '!N24,0,($O$1-1)*10) -> 2018 | L8: =OFFSET('Precios finales '!O24,0,($O$1-1)*10) -> 2019
C9: =OFFSET('Precios finales '!C25,0,($O$1-1)*10) -> 0
B10: Energía a subir (GWh) | C10: =OFFSET('Precios finales '!F96,0,($O$1-1)*10) -> 2198.4272 | D10: =OFFSET('Precios finales '!G96,0,($O$1-1)*10) -> 1774.5753 | E10: =OFFSET('Precios finales '!H96,0,($O$1-1)*10) -> 2658.2959 | F10: =OFFSET('Precios finales '!I96,0,($O$1-1)*10) -> 2346.6759 | G10: =OFFSET('Precios finales '!J96,0,($O$1-1)*10) -> - | H10: =OFFSET('Precios finales '!K96,0,($O$1-1)*10) -> - | I10: =OFFSET('Precios finales '!L96,0,($O$1-1)*10) -> - | J10: =OFFSET('Precios finales '!M96,0,($O$1-1)*10) -> - | K10: =OFFSET('Precios finales '!N96,0,($O$1-1)*10) -> - | L10: =OFFSET('Precios finales '!O96,0,($O$1-1)*10) -> -
B11: Precio a subir (€/MWh) | C11: =OFFSET('Precios finales '!F98,0,($O$1-1)*10) -> 51.00571597 | D11: =OFFSET('Precios finales '!G98,0,($O$1-1)*10) -> 54.29540261 | E11: =OFFSET('Precios finales '!H98,0,($O$1-1)*10) -> 60.24289665 | F11: =OFFSET('Precios finales '!I98,0,($O$1-1)*10) -> 60.09732506 | G11: =OFFSET('Precios finales '!J98,0,($O$1-1)*10) -> - | H11: =OFFSET('Precios finales '!K98,0,($O$1-1)*10) -> - | I11: =OFFSET('Precios finales '!L98,0,($O$1-1)*10) -> - | J11: =OFFSET('Precios finales '!M98,0,($O$1-1)*10) -> - | K11: =OFFSET('Precios finales '!N98,0,($O$1-1)*10) -> - | L11: =OFFSET('Precios finales '!O98,0,($O$1-1)*10) -> -
B13: Energía a bajar (GWh) | C13: =OFFSET('Precios finales '!F97,0,($O$1-1)*10) -> 2674.5384 | D13: =OFFSET('Precios finales '!G97,0,($O$1-1)*10) -> 2238.4268 | E13: =OFFSET('Precios finales '!H97,0,($O$1-1)*10) -> 1231.8156 | F13: =OFFSET('Precios finales '!I97,0,($O$1-1)*10) -> 904.9999 | G13: =OFFSET('Precios finales '!J97,0,($O$1-1)*10) -> - | H13: =OFFSET('Precios finales '!K97,0,($O$1-1)*10) -> - | I13: =OFFSET('Precios finales '!L97,0,($O$1-1)*10) -> - | J13: =OFFSET('Precios finales '!M97,0,($O$1-1)*10) -> - | K13: =OFFSET('Precios finales '!N97,0,($O$1-1)*10) -> - | L13: =OFFSET('Precios finales '!O97,0,($O$1-1)*10) -> -
B14: Precio a bajar (€/MWh) | C14: =OFFSET('Precios finales '!F99,0,($O$1-1)*10) -> 20.6995867 | D14: =OFFSET('Precios finales '!G99,0,($O$1-1)*10) -> 29.83335407 | E14: =OFFSET('Precios finales '!H99,0,($O$1-1)*10) -> 27.38838562 | F14: =OFFSET('Precios finales '!I99,0,($O$1-1)*10) -> 22.54954922 | G14: =OFFSET('Precios finales '!J99,0,($O$1-1)*10) -> - | H14: =OFFSET('Precios finales '!K99,0,($O$1-1)*10) -> - | I14: =OFFSET('Precios finales '!L99,0,($O$1-1)*10) -> - | J14: =OFFSET('Precios finales '!M99,0,($O$1-1)*10) -> - | K14: =OFFSET('Precios finales '!N99,0,($O$1-1)*10) -> - | L14: =OFFSET('Precios finales '!O99,0,($O$1-1)*10) -> -

Sheet Restricciones TReal mensual
O1: 4
L4: Concepto
L5: Horizonte temporal
L6: Periodo
C8: Ene. | D8: Feb. | E8: Mar. | F8: Abr. | G8: May. | H8: Jun. | I8: Jul. | J8: Ago. | K8: Sep. | L8: Oct. | M8: Nov. | N8: Dic. | O8: =OFFSET(Año!B2,($O$1-1),0) -> 2013
B10: Energía a subir (GWh) | C10: =OFFSET('Precios finales '!AP103,0,($O$1-1)*13) -> 41.3003 | D10: =OFFSET('Precios finales '!AQ103,0,($O$1-1)*13) -> 29.8341 | E10: =OFFSET('Precios finales '!AR103,0,($O$1-1)*13) -> 92.6575 | F10: =OFFSET('Precios finales '!AS103,0,($O$1-1)*13) -> 95.0147 | G10: =OFFSET('Precios finales '!AT103,0,($O$1-1)*13) -> 33.7418 | H10: =OFFSET('Precios finales '!AU103,0,($O$1-1)*13) -> 27.0409 | I10: =OFFSET('Precios finales '!AV103,0,($O$1-1)*13) -> 16.8729 | J10: =OFFSET('Precios finales '!AW103,0,($O$1-1)*13) -> 47.5491 | K10: =OFFSET('Precios finales '!AX103,0,($O$1-1)*13) -> 34.8312 | L10: =OFFSET('Precios finales '!AY103,0,($O$1-1)*13) -> 45.7015 | M10: =OFFSET('Precios finales '!AZ103,0,($O$1-1)*13) -> 53.0301 | N10: =OFFSET('Precios finales '!BA103,0,($O$1-1)*13) -> 40.758 | O10: =OFFSET('Precios finales '!BB103,0,($O$1-1)*13) -> 558.3321
B11: Precio a subir (€/MWh) | C11: =OFFSET('Precios finales '!AP105,0,($O$1-1)*13) -> 239.7775072 | D11: =OFFSET('Precios finales '!AQ105,0,($O$1-1)*13) -> 311.658284 | E11: =OFFSET('Precios finales '!AR105,0,($O$1-1)*13) -> 151.0395813 | F11: =OFFSET('Precios finales '!AS105,0,($O$1-1)*13) -> 168.8364627 | G11: =OFFSET('Precios finales '!AT105,0,($O$1-1)*13) -> 275.072764 | H11: =OFFSET('Precios finales '!AU105,0,($O$1-1)*13) -> 208.0629938 | I11: =OFFSET('Precios finales '!AV105,0,($O$1-1)*13) -> 160.3535391 | J11: =OFFSET('Precios finales '!AW105,0,($O$1-1)*13) -> 173.0373395 | K11: =OFFSET('Precios finales '!AX105,0,($O$1-1)*13) -> 219.7500342 | L11: =OFFSET('Precios finales '!AY105,0,($O$1-1)*13) -> 416.8095717 | M11: =OFFSET('Precios finales '!AZ105,0,($O$1-1)*13) -> 320.6485006 | N11: =OFFSET('Precios finales '!BA105,0,($O$1-1)*13) -> 250.7461676 | O11: =OFFSET('Precios finales '!BB105,0,($O$1-1)*13) -> 231.0556699
B13: Energía a bajar (GWh) | C13: =OFFSET('Precios finales '!AP104,0,($O$1-1)*13) -> 99.4863 | D13: =OFFSET('Precios finales '!AQ104,0,($O$1-1)*13) -> 58.0301 | E13: =OFFSET('Precios finales '!AR104,0,($O$1-1)*13) -> 544.5603 | F13: =OFFSET('Precios finales '!AS104,0,($O$1-1)*13) -> 559.5229 | G13: =OFFSET('Precios finales '!AT104,0,($O$1-1)*13) -> 76.3318 | H13: =OFFSET('Precios finales '!AU104,0,($O$1-1)*13) -> 61.5489 | I13: =OFFSET('Precios finales '!AV104,0,($O$1-1)*13) -> 13.8866 | J13: =OFFSET('Precios finales '!AW104,0,($O$1-1)*13) -> 50.9002 | K13: =OFFSET('Precios finales '!AX104,0,($O$1-1)*13) -> 13.2068 | L13: =OFFSET('Precios finales '!AY104,0,($O$1-1)*13) -> 45.1316 | M13: =OFFSET('Precios finales '!AZ104,0,($O$1-1)*13) -> 60.6258 | N13: =OFFSET('Precios finales '!BA104,0,($O$1-1)*13) -> 118.2344 | O13: =OFFSET('Precios finales '!BB104,0,($O$1-1)*13) -> 1701.4657
B14: Precio a bajar (€/MWh) | C14: =OFFSET('Precios finales '!AP106,0,($O$1-1)*13) -> 14.13730775 | D14: =OFFSET('Precios finales '!AQ106,0,($O$1-1)*13) -> 14.87012354 | E14: =OFFSET('Precios finales '!AR106,0,($O$1-1)*13) -> 1.488886114 | F14: =OFFSET('Precios finales '!AS106,0,($O$1-1)*13) -> 1.351950302 | G14: =OFFSET('Precios finales '!AT106,0,($O$1-1)*13) -> 19.92531703 | H14: =OFFSET('Precios finales '!AU106,0,($O$1-1)*13) -> 17.87539452 | I14: =OFFSET('Precios finales '!AV106,0,($O$1-1)*13) -> 26.38154478 | J14: =OFFSET('Precios finales '!AW106,0,($O$1-1)*13) -> 28.5797671 | K14: =OFFSET('Precios finales '!AX106,0,($O$1-1)*13) -> 22.92308743 | L14: =OFFSET('Precios finales '!AY106,0,($O$1-1)*13) -> 20.18174116 | M14: =OFFSET('Precios finales '!AZ106,0,($O$1-1)*13) -> 14.37444856 | N14: =OFFSET('Precios finales '!BA106,0,($O$1-1)*13) -> 14.18024452 | O14: =OFFSET('Precios finales '!BB106,0,($O$1-1)*13) -> 7.933398424

Sheet Restricciones TReal anual
O1: 1
I4: Concepto
I5: Horizonte temporal
I6: Periodo
C8: =OFFSET('Precios finales '!F53,0,($O$1-1)*10) -> 2010 | D8: =OFFSET('Precios finales '!G24,0,($O$1-1)*10) -> 2011 | E8: =OFFSET('Precios finales '!H24,0,($O$1-1)*10) -> 2012 | F8: =OFFSET('Precios finales '!I24,0,($O$1-1)*10) -> 2013 | G8: =OFFSET('Precios finales '!J24,0,($O$1-1)*10) -> 2014 | H8: =OFFSET('Precios finales '!K24,0,($O$1-1)*10) -> 2015 | I8: =OFFSET('Precios finales '!L24,0,($O$1-1)*10) -> 2016 | J8: =OFFSET('Precios finales '!M24,0,($O$1-1)*10) -> 2017 | K8: =OFFSET('Precios finales '!N24,0,($O$1-1)*10) -> 2018 | L8: =OFFSET('Precios finales '!O24,0,($O$1-1)*10) -> 2019
C9: =OFFSET('Precios finales '!C25,0,($O$1-1)*10) -> 0
B10: Energía a subir (GWh) | C10: =OFFSET('Precios finales '!F110,0,($O$1-1)*10) -> 887.0243 | D10: =OFFSET('Precios finales '!G110,0,($O$1-1)*10) -> 657.3699 | E10: =OFFSET('Precios finales '!H110,0,($O$1-1)*10) -> 635.1718 | F10: =OFFSET('Precios finales '!I110,0,($O$1-1)*10) -> 558.3321 | G10: =OFFSET('Precios finales '!J110,0,($O$1-1)*10) -> - | H10: =OFFSET('Precios finales '!K110,0,($O$1-1)*10) -> - | I10: =OFFSET('Precios finales '!L110,0,($O$1-1)*10) -> - | J10: =OFFSET('Precios finales '!M110,0,($O$1-1)*10) -> - | K10: =OFFSET('Precios finales '!N110,0,($O$1-1)*10) -> - | L10: =OFFSET('Precios finales '!O110,0,($O$1-1)*10) -> -
B11: Precio a subir (€/MWh) | C11: =OFFSET('Precios finales '!F112,0,($O$1-1)*10) -> 104.6922555 | D11: =OFFSET('Precios finales '!G112,0,($O$1-1)*10) -> 129.9514392 | E11: =OFFSET('Precios finales '!H112,0,($O$1-1)*10) -> 230.6581604 | F11: =OFFSET('Precios finales '!I112,0,($O$1-1)*10) -> 231.0556699 | G11: =OFFSET('Precios finales '!J112,0,($O$1-1)*10) -> - | H11: =OFFSET('Precios finales '!K112,0,($O$1-1)*10) -> - | I11: =OFFSET('Precios finales '!L112,0,($O$1-1)*10) -> - | J11: =OFFSET('Precios finales '!M112,0,($O$1-1)*10) -> - | K11: =OFFSET('Precios finales '!N112,0,($O$1-1)*10) -> - | L11: =OFFSET('Precios finales '!O112,0,($O$1-1)*10) -> -
B13: Energía a bajar (GWh) | C13: =OFFSET('Precios finales '!F111,0,($O$1-1)*10) -> 900.8324 | D13: =OFFSET('Precios finales '!G111,0,($O$1-1)*10) -> 509.3206 | E13: =OFFSET('Precios finales '!H111,0,($O$1-1)*10) -> 483.8271 | F13: =OFFSET('Precios finales '!I111,0,($O$1-1)*10) -> 1701.4657 | G13: =OFFSET('Precios finales '!J111,0,($O$1-1)*10) -> - | H13: =OFFSET('Precios finales '!K111,0,($O$1-1)*10) -> - | I13: =OFFSET('Precios finales '!L111,0,($O$1-1)*10) -> - | J13: =OFFSET('Precios finales '!M111,0,($O$1-1)*10) -> - | K13: =OFFSET('Precios finales '!N111,0,($O$1-1)*10) -> - | L13: =OFFSET('Precios finales '!O111,0,($O$1-1)*10) -> -
B14: Precio a bajar (€/MWh) | C14: =OFFSET('Precios finales '!F113,0,($O$1-1)*10) -> 8.781558517 | D14: =OFFSET('Precios finales '!G113,0,($O$1-1)*10) -> 17.63919491 | E14: =OFFSET('Precios finales '!H113,0,($O$1-1)*10) -> 16.95126369 | F14: =OFFSET('Precios finales '!I113,0,($O$1-1)*10) -> 7.933398424 | G14: =OFFSET('Precios finales '!J113,0,($O$1-1)*10) -> - | H14: =OFFSET('Precios finales '!K113,0,($O$1-1)*10) -> - | I14: =OFFSET('Precios finales '!L113,0,($O$1-1)*10) -> - | J14: =OFFSET('Precios finales '!M113,0,($O$1-1)*10) -> - | K14: =OFFSET('Precios finales '!N113,0,($O$1-1)*10) -> - | L14: =OFFSET('Precios finales '!O113,0,($O$1-1)*10) -> -

Sheet Reserva adic subir mensual
O1: 4
L4: Concepto
L5: Horizonte temporal
L6: Periodo
C8: Ene. | D8: Feb. | E8: Mar. | F8: Abr. | G8: May. | H8: Jun. | I8: Jul. | J8: Ago. | K8: Sep. | L8: Oct. | M8: Nov. | N8: Dic. | O8: =OFFSET(Año!B2,($O$1-1),0) -> 2013
B10: Potencia a subir (GW) | C10: =OFFSET('Precios finales '!AP171,0,($O$1-1)*13) -> 364.8037 | D10: =OFFSET('Precios finales '!AQ171,0,($O$1-1)*13) -> 273.7203 | E10: =OFFSET('Precios finales '!AR171,0,($O$1-1)*13) -> 354.8549 | F10: =OFFSET('Precios finales '!AS171,0,($O$1-1)*13) -> 251.0849 | G10: =OFFSET('Precios finales '!AT171,0,($O$1-1)*13) -> 106.2975 | H10: =OFFSET('Precios finales '!AU171,0,($O$1-1)*13) -> 0 | I10: =OFFSET('Precios finales '!AV171,0,($O$1-1)*13) -> 1.5 | J10: =OFFSET('Precios finales '!AW171,0,($O$1-1)*13) -> 43.448 | K10: =OFFSET('Precios finales '!AX171,0,($O$1-1)*13) -> 134.6922 | L10: =OFFSET('Precios finales '!AY171,0,($O$1-1)*13) -> 440.0684 | M10: =OFFSET('Precios finales '!AZ171,0,($O$1-1)*13) -> 778.8737 | N10: =OFFSET('Precios finales '!BA171,0,($O$1-1)*13) -> 260.5668 | O10: =OFFSET('Precios finales '!BB171,0,($O$1-1)*13) -> 3009.9104
B11: Precio a subir (€/MW) | C11: =OFFSET('Precios finales '!AP172,0,($O$1-1)*13) -> 24.49297866 | D11: =OFFSET('Precios finales '!AQ172,0,($O$1-1)*13) -> 31.39343768 | E11: =OFFSET('Precios finales '!AR172,0,($O$1-1)*13) -> 49.3207646 | F11: =OFFSET('Precios finales '!AS172,0,($O$1-1)*13) -> 59.91673163 | G11: =OFFSET('Precios finales '!AT172,0,($O$1-1)*13) -> 38.90397159 | H11: =OFFSET('Precios finales '!AU172,0,($O$1-1)*13) -> - | I11: =OFFSET('Precios finales '!AV172,0,($O$1-1)*13) -> 9.98 | J11: =OFFSET('Precios finales '!AW172,0,($O$1-1)*13) -> 26.38650018 | K11: =OFFSET('Precios finales '!AX172,0,($O$1-1)*13) -> 32.15253586 | L11: =OFFSET('Precios finales '!AY172,0,($O$1-1)*13) -> 43.39225155 | M11: =OFFSET('Precios finales '!AZ172,0,($O$1-1)*13) -> 32.0828915 | N11: =OFFSET('Precios finales '!BA172,0,($O$1-1)*13) -> 28.35156674 | O11: =OFFSET('Precios finales '!BB172,0,($O$1-1)*13) -> 36.93568735

Sheet Reserva adic subir anual
O1: 1
I4: Concepto
I5: Horizonte temporal
I6: Periodo
C8: =OFFSET('Precios finales '!F175,0,($O$1-1)) -> 2010 | D8: =OFFSET('Precios finales '!G175,0,($O$1-1)*10) -> 2011 | E8: =OFFSET('Precios finales '!H175,0,($O$1-1)*10) -> 2012 | F8: =OFFSET('Precios finales '!I175,0,($O$1-1)*10) -> 2013 | G8: =OFFSET('Precios finales '!J175,0,($O$1-1)*10) -> 2014 | H8: =OFFSET('Precios finales '!K175,0,($O$1-1)*10) -> 2015 | I8: =OFFSET('Precios finales '!L175,0,($O$1-1)*10) -> 2016 | J8: =OFFSET('Precios finales '!M175,0,($O$1-1)*10) -> 2017 | K8: =OFFSET('Precios finales '!N175,0,($O$1-1)*10) -> 2018 | L8: =OFFSET('Precios finales '!O175,0,($O$1-1)*10) -> 2019
B10: Potencia a subir (GW) | C10: =OFFSET('Precios finales '!F176,0,($O$1-1)*10) -> - | D10: =OFFSET('Precios finales '!G176,0,($O$1-1)*10) -> - | E10: =OFFSET('Precios finales '!H176,0,($O$1-1)*10) -> 1635.6699 | F10: =OFFSET('Precios finales '!I176,0,($O$1-1)*10) -> 3009.9104 | G10: =OFFSET('Precios finales '!J176,0,($O$1-1)*10) -> - | H10: =OFFSET('Precios finales '!K176,0,($O$1-1)*10) -> - | I10: =OFFSET('Precios finales '!L176,0,($O$1-1)*10) -> - | J10: =OFFSET('Precios finales '!M176,0,($O$1-1)*10) -> - | K10: =OFFSET('Precios finales '!N176,0,($O$1-1)*10) -> - | L10: =OFFSET('Precios finales '!O176,0,($O$1-1)*10) -> -
B11: Precio a subir (€/MW) | C11: =OFFSET('Precios finales '!F177,0,($O$1-1)*10) -> - | D11: =OFFSET('Precios finales '!G177,0,($O$1-1)*10) -> - | E11: =OFFSET('Precios finales '!H177,0,($O$1-1)*10) -> 39.67558632 | F11: =OFFSET('Precios finales '!I177,0,($O$1-1)*10) -> 36.93568735 | G11: =OFFSET('Precios finales '!J177,0,($O$1-1)*10) -> - | H11: =OFFSET('Precios finales '!K177,0,($O$1-1)*10) -> - | I11: =OFFSET('Precios finales '!L177,0,($O$1-1)*10) -> - | J11: =OFFSET('Precios finales '!M177,0,($O$1-1)*10) -> - | K11: =OFFSET('Precios finales '!N177,0,($O$1-1)*10) -> - | L11: =OFFSET('Precios finales '!O177,0,($O$1-1)*10) -> -

Sheet Banda mensual
O1: 4
L4: Concepto
L5: Horizonte temporal
L6: Periodo
C8: Ene. | D8: Feb. | E8: Mar. | F8: Abr. | G8: May. | H8: Jun. | I8: Jul. | J8: Ago. | K8: Sep. | L8: Oct. | M8: Nov. | N8: Dic. | O8: =OFFSET(Año!B2,($O$1-1),0) -> 2013
B10: Potencia a subir (MW) | C10: =OFFSET('Precios finales '!AP181,0,($O$1-1)*13) -> 722.3158602 | D10: =OFFSET('Precios finales '!AQ181,0,($O$1-1)*13) -> 703.2708333 | E10: =OFFSET('Precios finales '!AR181,0,($O$1-1)*13) -> 697.9273217 | F10: =OFFSET('Precios finales '!AS181,0,($O$1-1)*13) -> 679.3208333 | G10: =OFFSET('Precios finales '!AT181,0,($O$1-1)*13) -> 678.9126344 | H10: =OFFSET('Precios finales '!AU181,0,($O$1-1)*13) -> 676.8555556 | I10: =OFFSET('Precios finales '!AV181,0,($O$1-1)*13) -> 698.0201613 | J10: =OFFSET('Precios finales '!AW181,0,($O$1-1)*13) -> 693.6801075 | K10: =OFFSET('Precios finales '!AX181,0,($O$1-1)*13) -> 666.4527778 | L10: =OFFSET('Precios finales '!AY181,0,($O$1-1)*13) -> 685.7167785 | M10: =OFFSET('Precios finales '!AZ181,0,($O$1-1)*13) -> 697.7763889 | N10: =OFFSET('Precios finales '!BA181,0,($O$1-1)*13) -> 695.7715054 | O10: =OFFSET('Precios finales '!BB181,0,($O$1-1)*13) -> 691.3586758
B11: Potencia a bajar (MW) | C11: =OFFSET('Precios finales '!AP182,0,($O$1-1)*13) -> 529.3064516 | D11: =OFFSET('Precios finales '!AQ182,0,($O$1-1)*13) -> 526.5089286 | E11: =OFFSET('Precios finales '!AR182,0,($O$1-1)*13) -> 516.9959623 | F11: =OFFSET('Precios finales '!AS182,0,($O$1-1)*13) -> 504.975 | G11: =OFFSET('Precios finales '!AT182,0,($O$1-1)*13) -> 506.0255376 | H11: =OFFSET('Precios finales '!AU182,0,($O$1-1)*13) -> 506.3375 | I11: =OFFSET('Precios finales '!AV182,0,($O$1-1)*13) -> 519.8454301 | J11: =OFFSET('Precios finales '!AW182,0,($O$1-1)*13) -> 509.6129032 | K11: =OFFSET('Precios finales '!AX182,0,($O$1-1)*13) -> 491.8416667 | L11: =OFFSET('Precios finales '!AY182,0,($O$1-1)*13) -> 505.5248322 | M11: =OFFSET('Precios finales '!AZ182,0,($O$1-1)*13) -> 509.2 | N11: =OFFSET('Precios finales '!BA182,0,($O$1-1)*13) -> 516.1438172 | O11: =OFFSET('Precios finales '!BB182,0,($O$1-1)*13) -> 511.8342466
B12: Precio (€/MW) | C12: =OFFSET('Precios finales '!AP183,0,($O$1-1)*13) -> 32.41057332 | D12: =OFFSET('Precios finales '!AQ183,0,($O$1-1)*13) -> 32.67322323 | E12: =OFFSET('Precios finales '!AR183,0,($O$1-1)*13) -> 36.42895093 | F12: =OFFSET('Precios finales '!AS183,0,($O$1-1)*13) -> 28.52025416 | G12: =OFFSET('Precios finales '!AT183,0,($O$1-1)*13) -> 20.77698021 | H12: =OFFSET('Precios finales '!AU183,0,($O$1-1)*13) -> 30.34919404 | I12: =OFFSET('Precios finales '!AV183,0,($O$1-1)*13) -> 26.83415193 | J12: =OFFSET('Precios finales '!AW183,0,($O$1-1)*13) -> 26.29147137 | K12: =OFFSET('Precios finales '!AX183,0,($O$1-1)*13) -> 25.43311745 | L12: =OFFSET('Precios finales '!AY183,0,($O$1-1)*13) -> 30.12122383 | M12: =OFFSET('Precios finales '!AZ183,0,($O$1-1)*13) -> 26.1115121 | N12: =OFFSET('Precios finales '!BA183,0,($O$1-1)*13) -> 38.19459173 | O12: =OFFSET('Precios finales '!BB183,0,($O$1-1)*13) -> 29.55221243

Sheet Banda anual
O1: 1
I4: Concepto
I5: Horizonte temporal
I6: Periodo
C8: =OFFSET('Precios finales '!F175,0,($O$1-1)) -> 2010 | D8: =OFFSET('Precios finales '!G175,0,($O$1-1)*10) -> 2011 | E8: =OFFSET('Precios finales '!H175,0,($O$1-1)*10) -> 2012 | F8: =OFFSET('Precios finales '!I175,0,($O$1-1)*10) -> 2013 | G8: =OFFSET('Precios finales '!J175,0,($O$1-1)*10) -> 2014 | H8: =OFFSET('Precios finales '!K175,0,($O$1-1)*10) -> 2015 | I8: =OFFSET('Precios finales '!L175,0,($O$1-1)*10) -> 2016 | J8: =OFFSET('Precios finales '!M175,0,($O$1-1)*10) -> 2017 | K8: =OFFSET('Precios finales '!N175,0,($O$1-1)*10) -> 2018 | L8: =OFFSET('Precios finales '!O175,0,($O$1-1)*10) -> 2019
B10: Potencia a subir (MW) | C10: =OFFSET('Precios finales '!F187,0,($O$1-1)*10) -> 727.1406393 | D10: =OFFSET('Precios finales '!G187,0,($O$1-1)*10) -> 716.1834475 | E10: =OFFSET('Precios finales '!H187,0,($O$1-1)*10) -> 708.8869536 | F10: =OFFSET('Precios finales '!I187,0,($O$1-1)*10) -> 691.3586758 | G10: =OFFSET('Precios finales '!J187,0,($O$1-1)*10) -> - | H10: =OFFSET('Precios finales '!K187,0,($O$1-1)*10) -> - | I10: =OFFSET('Precios finales '!L187,0,($O$1-1)*10) -> - | J10: =OFFSET('Precios finales '!M187,0,($O$1-1)*10) -> - | K10: =OFFSET('Precios finales '!N187,0,($O$1-1)*10) -> - | L10: =OFFSET('Precios finales '!O187,0,($O$1-1)*10) -> -
B11: Potencia a bajar (MW) | C11: =OFFSET('Precios finales '!F188,0,($O$1-1)*10) -> 531.097032 | D11: =OFFSET('Precios finales '!G188,0,($O$1-1)*10) -> 526.3908676 | E11: =OFFSET('Precios finales '!H188,0,($O$1-1)*10) -> 522.3331056 | F11: =OFFSET('Precios finales '!I188,0,($O$1-1)*10) -> 511.8342466 | G11: =OFFSET('Precios finales '!J188,0,($O$1-1)*10) -> - | H11: =OFFSET('Precios finales '!K188,0,($O$1-1)*10) -> - | I11: =OFFSET('Precios finales '!L188,0,($O$1-1)*10) -> - | J11: =OFFSET('Precios finales '!M188,0,($O$1-1)*10) -> - | K11: =OFFSET('Precios finales '!N188,0,($O$1-1)*10) -> - | L11: =OFFSET('Precios finales '!O188,0,($O$1-1)*10) -> -
B12: Precio (€/MW) | C12: =OFFSET('Precios finales '!F189,0,($O$1-1)*10) -> 14.71631043 | D12: =OFFSET('Precios finales '!G189,0,($O$1-1)*10) -> 15.8733909 | E12: =OFFSET('Precios finales '!H189,0,($O$1-1)*10) -> 28.05767823 | F12: =OFFSET('Precios finales '!I189,0,($O$1-1)*10) -> 29.55221243 | G12: =OFFSET('Precios finales '!J189,0,($O$1-1)*10) -> - | H12: =OFFSET('Precios finales '!K189,0,($O$1-1)*10) -> - | I12: =OFFSET('Precios finales '!L189,0,($O$1-1)*10) -> - | J12: =OFFSET('Precios finales '!M189,0,($O$1-1)*10) -> - | K12: =OFFSET('Precios finales '!N189,0,($O$1-1)*10) -> - | L12: =OFFSET('Precios finales '!O189,0,($O$1-1)*10) -> -

Sheet BALIT mensual
O1: 4
L4: Concepto
L5: Horizonte temporal
L6: Periodo
C8: Ene. | D8: Feb. | E8: Mar. | F8: Abr. | G8: May. | H8: Jun. | I8: Jul. | J8: Ago. | K8: Sep. | L8: Oct. | M8: Nov. | N8: Dic. | O8: =OFFSET(Año!B2,($O$1-1),0) -> 2013
B10: Energía y precios ofertados desde el sistema eléctrico español y activado por operadores externos
B11: Ofertada por el sistema eléctrico español
B12: Capacidad ofertada importación (GWh) | C12: =OFFSET('Precios finales '!AP195,0,($O$1-1)*13) -> - | D12: =OFFSET('Precios finales '!AQ195,0,($O$1-1)*13) -> - | E12: =OFFSET('Precios finales '!AR195,0,($O$1-1)*13) -> - | F12: =OFFSET('Precios finales '!AS195,0,($O$1-1)*13) -> - | G12: =OFFSET('Precios finales '!AT195,0,($O$1-1)*13) -> - | H12: =OFFSET('Precios finales '!AU195,0,($O$1-1)*13) -> - | I12: =OFFSET('Precios finales '!AV195,0,($O$1-1)*13) -> - | J12: =OFFSET('Precios finales '!AW195,0,($O$1-1)*13) -> - | K12: =OFFSET('Precios finales '!AX195,0,($O$1-1)*13) -> - | L12: =OFFSET('Precios finales '!AY195,0,($O$1-1)*13) -> - | M12: =OFFSET('Precios finales '!AZ195,0,($O$1-1)*13) -> - | N12: =OFFSET('Precios finales '!BA195,0,($O$1-1)*13) -> - | O12: =OFFSET('Precios finales '!BB195,0,($O$1-1)*13) -> -
B13: Precio ofertado importación (€/MWh) | C13: =OFFSET('Precios finales '!AP196,0,($O$1-1)*13) -> - | D13: =OFFSET('Precios finales '!AQ196,0,($O$1-1)*13) -> - | E13: =OFFSET('Precios finales '!AR196,0,($O$1-1)*13) -> - | F13: =OFFSET('Precios finales '!AS196,0,($O$1-1)*13) -> - | G13: =OFFSET('Precios finales '!AT196,0,($O$1-1)*13) -> - | H13: =OFFSET('Precios finales '!AU196,0,($O$1-1)*13) -> - | I13: =OFFSET('Precios finales '!AV196,0,($O$1-1)*13) -> - | J13: =OFFSET('Precios finales '!AW196,0,($O$1-1)*13) -> - | K13: =OFFSET('Precios finales '!AX196,0,($O$1-1)*13) -> - | L13: =OFFSET('Precios finales '!AY196,0,($O$1-1)*13) -> - | M13: =OFFSET('Precios finales '!AZ196,0,($O$1-1)*13) -> - | N13: =OFFSET('Precios finales '!BA196,0,($O$1-1)*13) -> - | O13: =OFFSET('Precios finales '!BB196,0,($O$1-1)*13) -> -
B14: Capacidad ofertada exportación (GWh) | C14: =OFFSET('Precios finales '!AP197,0,($O$1-1)*13) -> - | D14: =OFFSET('Precios finales '!AQ197,0,($O$1-1)*13) -> - | E14: =OFFSET('Precios finales '!AR197,0,($O$1-1)*13) -> - | F14: =OFFSET('Precios finales '!AS197,0,($O$1-1)*13) -> - | G14: =OFFSET('Precios finales '!AT197,0,($O$1-1)*13) -> - | H14: =OFFSET('Precios finales '!AU197,0,($O$1-1)*13) -> - | I14: =OFFSET('Precios finales '!AV197,0,($O$1-1)*13) -> - | J14: =OFFSET('Precios finales '!AW197,0,($O$1-1)*13) -> - | K14: =OFFSET('Precios finales '!AX197,0,($O$1-1)*13) -> - | L14: =OFFSET('Precios finales '!AY197,0,($O$1-1)*13) -> - | M14: =OFFSET('Precios finales '!AZ197,0,($O$1-1)*13) -> - | N14: =OFFSET('Precios finales '!BA197,0,($O$1-1)*13) -> - | O14: =OFFSET('Precios finales '!BB197,0,($O$1-1)*13) -> -
B15: Precio ofertado exportación (€/MWh) | C15: =OFFSET('Precios finales '!AP198,0,($O$1-1)*13) -> - | D15: =OFFSET('Precios finales '!AQ198,0,($O$1-1)*13) -> - | E15: =OFFSET('Precios finales '!AR198,0,($O$1-1)*13) -> - | F15: =OFFSET('Precios finales '!AS198,0,($O$1-1)*13) -> - | G15: =OFFSET('Precios finales '!AT198,0,($O$1-1)*13) -> - | H15: =OFFSET('Precios finales '!AU198,0,($O$1-1)*13) -> - | I15: =OFFSET('Precios finales '!AV198,0,($O$1-1)*13) -> - | J15: =OFFSET('Precios finales '!AW198,0,($O$1-1)*13) -> - | K15: =OFFSET('Precios finales '!AX198,0,($O$1-1)*13) -> - | L15: =OFFSET('Precios finales '!AY198,0,($O$1-1)*13) -> - | M15: =OFFSET('Precios finales '!AZ198,0,($O$1-1)*13) -> - | N15: =OFFSET('Precios finales '!BA198,0,($O$1-1)*13) -> - | O15: =OFFSET('Precios finales '!BB198,0,($O$1-1)*13) -> -
B16: Activados por operadores externos (RTE, REN)
B17: Activado Francia importación (GWh) | C17: =OFFSET('Precios finales '!AP199,0,($O$1-1)*13) -> - | D17: =OFFSET('Precios finales '!AQ199,0,($O$1-1)*13) -> - | E17: =OFFSET('Precios finales '!AR199,0,($O$1-1)*13) -> - | F17: =OFFSET('Precios finales '!AS199,0,($O$1-1)*13) -> - | G17: =OFFSET('Precios finales '!AT199,0,($O$1-1)*13) -> - | H17: =OFFSET('Precios finales '!AU199,0,($O$1-1)*13) -> - | I17: =OFFSET('Precios finales '!AV199,0,($O$1-1)*13) -> - | J17: =OFFSET('Precios finales '!AW199,0,($O$1-1)*13) -> - | K17: =OFFSET('Precios finales '!AX199,0,($O$1-1)*13) -> - | L17: =OFFSET('Precios finales '!AY199,0,($O$1-1)*13) -> - | M17: =OFFSET('Precios finales '!AZ199,0,($O$1-1)*13) -> - | N17: =OFFSET('Precios finales '!BA199,0,($O$1-1)*13) -> - | O17: =OFFSET('Precios finales '!BB199,0,($O$1-1)*13) -> -
B18: Precio Francia importación (€/MWh) | C18: =OFFSET('Precios finales '!AP200,0,($O$1-1)*13) -> - | D18: =OFFSET('Precios finales '!AQ200,0,($O$1-1)*13) -> - | E18: =OFFSET('Precios finales '!AR200,0,($O$1-1)*13) -> - | F18: =OFFSET('Precios finales '!AS200,0,($O$1-1)*13) -> - | G18: =OFFSET('Precios finales '!AT200,0,($O$1-1)*13) -> - | H18: =OFFSET('Precios finales '!AU200,0,($O$1-1)*13) -> - | I18: =OFFSET('Precios finales '!AV200,0,($O$1-1)*13) -> - | J18: =OFFSET('Precios finales '!AW200,0,($O$1-1)*13) -> - | K18: =OFFSET('Precios finales '!AX200,0,($O$1-1)*13) -> - | L18: =OFFSET('Precios finales '!AY200,0,($O$1-1)*13) -> - | M18: =OFFSET('Precios finales '!AZ200,0,($O$1-1)*13) -> - | N18: =OFFSET('Precios finales '!BA200,0,($O$1-1)*13) -> - | O18: =OFFSET('Precios finales '!BB200,0,($O$1-1)*13) -> -
B19: Activado Portugal importación (GWh) | C19: =OFFSET('Precios finales '!AP203,0,($O$1-1)*13) -> - | D19: =OFFSET('Precios finales '!AQ203,0,($O$1-1)*13) -> - | E19: =OFFSET('Precios finales '!AR203,0,($O$1-1)*13) -> - | F19: =OFFSET('Precios finales '!AS203,0,($O$1-1)*13) -> - | G19: =OFFSET('Precios finales '!AT203,0,($O$1-1)*13) -> - | H19: =OFFSET('Precios finales '!AU203,0,($O$1-1)*13) -> - | I19: =OFFSET('Precios finales '!AV203,0,($O$1-1)*13) -> - | J19: =OFFSET('Precios finales '!AW203,0,($O$1-1)*13) -> - | K19: =OFFSET('Precios finales '!AX203,0,($O$1-1)*13) -> - | L19: =OFFSET('Precios finales '!AY203,0,($O$1-1)*13) -> - | M19: =OFFSET('Precios finales '!AZ203,0,($O$1-1)*13) -> - | N19: =OFFSET('Precios finales '!BA203,0,($O$1-1)*13) -> - | O19: =OFFSET('Precios finales '!BB203,0,($O$1-1)*13) -> -
B20: Precio Portugal importación (€/MWh) | C20: =OFFSET('Precios finales '!AP204,0,($O$1-1)*13) -> - | D20: =OFFSET('Precios finales '!AQ204,0,($O$1-1)*13) -> - | E20: =OFFSET('Precios finales '!AR204,0,($O$1-1)*13) -> - | F20: =OFFSET('Precios finales '!AS204,0,($O$1-1)*13) -> - | G20: =OFFSET('Precios finales '!AT204,0,($O$1-1)*13) -> - | H20: =OFFSET('Precios finales '!AU204,0,($O$1-1)*13) -> - | I20: =OFFSET('Precios finales '!AV204,0,($O$1-1)*13) -> - | J20: =OFFSET('Precios finales '!AW204,0,($O$1-1)*13) -> - | K20: =OFFSET('Precios finales '!AX204,0,($O$1-1)*13) -> - | L20: =OFFSET('Precios finales '!AY204,0,($O$1-1)*13) -> - | M20: =OFFSET('Precios finales '!AZ204,0,($O$1-1)*13) -> - | N20: =OFFSET('Precios finales '!BA204,0,($O$1-1)*13) -> - | O20: =OFFSET('Precios finales '!BB204,0,($O$1-1)*13) -> -
B21: Activado Francia exportación (GWh) | C21: =OFFSET('Precios finales '!AP201,0,($O$1-1)*13) -> - | D21: =OFFSET('Precios finales '!AQ201,0,($O$1-1)*13) -> - | E21: =OFFSET('Precios finales '!AR201,0,($O$1-1)*13) -> - | F21: =OFFSET('Precios finales '!AS201,0,($O$1-1)*13) -> - | G21: =OFFSET('Precios finales '!AT201,0,($O$1-1)*13) -> - | H21: =OFFSET('Precios finales '!AU201,0,($O$1-1)*13) -> - | I21: =OFFSET('Precios finales '!AV201,0,($O$1-1)*13) -> - | J21: =OFFSET('Precios finales '!AW201,0,($O$1-1)*13) -> - | K21: =OFFSET('Precios finales '!AX201,0,($O$1-1)*13) -> - | L21: =OFFSET('Precios finales '!AY201,0,($O$1-1)*13) -> - | M21: =OFFSET('Precios finales '!AZ201,0,($O$1-1)*13) -> - | N21: =OFFSET('Precios finales '!BA201,0,($O$1-1)*13) -> - | O21: =OFFSET('Precios finales '!BB201,0,($O$1-1)*13) -> -
B22: Precio Francia exportación (€/MWh) | C22: =OFFSET('Precios finales '!AP202,0,($O$1-1)*13) -> - | D22: =OFFSET('Precios finales '!AQ202,0,($O$1-1)*13) -> - | E22: =OFFSET('Precios finales '!AR202,0,($O$1-1)*13) -> - | F22: =OFFSET('Precios finales '!AS202,0,($O$1-1)*13) -> - | G22: =OFFSET('Precios finales '!AT202,0,($O$1-1)*13) -> - | H22: =OFFSET('Precios finales '!AU202,0,($O$1-1)*13) -> - | I22: =OFFSET('Precios finales '!AV202,0,($O$1-1)*13) -> - | J22: =OFFSET('Precios finales '!AW202,0,($O$1-1)*13) -> - | K22: =OFFSET('Precios finales '!AX202,0,($O$1-1)*13) -> - | L22: =OFFSET('Precios finales '!AY202,0,($O$1-1)*13) -> - | M22: =OFFSET('Precios finales '!AZ202,0,($O$1-1)*13) -> - | N22: =OFFSET('Precios finales '!BA202,0,($O$1-1)*13) -> - | O22: =OFFSET('Precios finales '!BB202,0,($O$1-1)*13) -> -
B23: Activado Portugal exportación (GWh) | C23: =OFFSET('Precios finales '!AP205,0,($O$1-1)*13) -> - | D23: =OFFSET('Precios finales '!AQ205,0,($O$1-1)*13) -> - | E23: =OFFSET('Precios finales '!AR205,0,($O$1-1)*13) -> - | F23: =OFFSET('Precios finales '!AS205,0,($O$1-1)*13) -> - | G23: =OFFSET('Precios finales '!AT205,0,($O$1-1)*13) -> - | H23: =OFFSET('Precios finales '!AU205,0,($O$1-1)*13) -> - | I23: =OFFSET('Precios finales '!AV205,0,($O$1-1)*13) -> - | J23: =OFFSET('Precios finales '!AW205,0,($O$1-1)*13) -> - | K23: =OFFSET('Precios finales '!AX205,0,($O$1-1)*13) -> - | L23: =OFFSET('Precios finales '!AY205,0,($O$1-1)*13) -> - | M23: =OFFSET('Precios finales '!AZ205,0,($O$1-1)*13) -> - | N23: =OFFSET('Precios finales '!BA205,0,($O$1-1)*13) -> - | O23: =OFFSET('Precios finales '!BB205,0,($O$1-1)*13) -> -
B24: Precio Portugal exportación (€/MWh) | C24: =OFFSET('Precios finales '!AP206,0,($O$1-1)*13) -> - | D24: =OFFSET('Precios finales '!AQ206,0,($O$1-1)*13) -> - | E24: =OFFSET('Precios finales '!AR206,0,($O$1-1)*13) -> - | F24: =OFFSET('Precios finales '!AS206,0,($O$1-1)*13) -> - | G24: =OFFSET('Precios finales '!AT206,0,($O$1-1)*13) -> - | H24: =OFFSET('Precios finales '!AU206,0,($O$1-1)*13) -> - | I24: =OFFSET('Precios finales '!AV206,0,($O$1-1)*13) -> - | J24: =OFFSET('Precios finales '!AW206,0,($O$1-1)*13) -> - | K24: =OFFSET('Precios finales '!AX206,0,($O$1-1)*13) -> - | L24: =OFFSET('Precios finales '!AY206,0,($O$1-1)*13) -> - | M24: =OFFSET('Precios finales '!AZ206,0,($O$1-1)*13) -> - | N24: =OFFSET('Precios finales '!BA206,0,($O$1-1)*13) -> - | O24: =OFFSET('Precios finales '!BB206,0,($O$1-1)*13) -> -
B26: Energía y precios ofertados por Francia (RTE) y activado por REE
B27: Capacidad ofertada importación (GWh) | C27: =OFFSET('Precios finales '!AP209,0,($O$1-1)*13) -> - | D27: =OFFSET('Precios finales '!AQ209,0,($O$1-1)*13) -> - | E27: =OFFSET('Precios finales '!AR209,0,($O$1-1)*13) -> - | F27: =OFFSET('Precios finales '!AS209,0,($O$1-1)*13) -> - | G27: =OFFSET('Precios finales '!AT209,0,($O$1-1)*13) -> - | H27: =OFFSET('Precios finales '!AU209,0,($O$1-1)*13) -> - | I27: =OFFSET('Precios finales '!AV209,0,($O$1-1)*13) -> - | J27: =OFFSET('Precios finales '!AW209,0,($O$1-1)*13) -> - | K27: =OFFSET('Precios finales '!AX209,0,($O$1-1)*13) -> - | L27: =OFFSET('Precios finales '!AY209,0,($O$1-1)*13) -> - | M27: =OFFSET('Precios finales '!AZ209,0,($O$1-1)*13) -> - | N27: =OFFSET('Precios finales '!BA209,0,($O$1-1)*13) -> - | O27: =OFFSET('Precios finales '!BB209,0,($O$1-1)*13) -> -
B28: Precio ofertado importación (€/MWh) | C28: =OFFSET('Precios finales '!AP210,0,($O$1-1)*13) -> - | D28: =OFFSET('Precios finales '!AQ210,0,($O$1-1)*13) -> - | E28: =OFFSET('Precios finales '!AR210,0,($O$1-1)*13) -> - | F28: =OFFSET('Precios finales '!AS210,0,($O$1-1)*13) -> - | G28: =OFFSET('Precios finales '!AT210,0,($O$1-1)*13) -> - | H28: =OFFSET('Precios finales '!AU210,0,($O$1-1)*13) -> - | I28: =OFFSET('Precios finales '!AV210,0,($O$1-1)*13) -> - | J28: =OFFSET('Precios finales '!AW210,0,($O$1-1)*13) -> - | K28: =OFFSET('Precios finales '!AX210,0,($O$1-1)*13) -> - | L28: =OFFSET('Precios finales '!AY210,0,($O$1-1)*13) -> - | M28: =OFFSET('Precios finales '!AZ210,0,($O$1-1)*13) -> - | N28: =OFFSET('Precios finales '!BA210,0,($O$1-1)*13) -> - | O28: =OFFSET('Precios finales '!BB210,0,($O$1-1)*13) -> -
B29: Capacidad ofertada exportación (GWh) | C29: =OFFSET('Precios finales '!AP211,0,($O$1-1)*13) -> - | D29: =OFFSET('Precios finales '!AQ211,0,($O$1-1)*13) -> - | E29: =OFFSET('Precios finales '!AR211,0,($O$1-1)*13) -> - | F29: =OFFSET('Precios finales '!AS211,0,($O$1-1)*13) -> - | G29: =OFFSET('Precios finales '!AT211,0,($O$1-1)*13) -> - | H29: =OFFSET('Precios finales '!AU211,0,($O$1-1)*13) -> - | I29: =OFFSET('Precios finales '!AV211,0,($O$1-1)*13) -> - | J29: =OFFSET('Precios finales '!AW211,0,($O$1-1)*13) -> - | K29: =OFFSET('Precios finales '!AX211,0,($O$1-1)*13) -> - | L29: =OFFSET('Precios finales '!AY211,0,($O$1-1)*13) -> - | M29: =OFFSET('Precios finales '!AZ211,0,($O$1-1)*13) -> - | N29: =OFFSET('Precios finales '!BA211,0,($O$1-1)*13) -> - | O29: =OFFSET('Precios finales '!BB211,0,($O$1-1)*13) -> -
B30: Precio ofertado exportación (€/MWh) | C30: =OFFSET('Precios finales '!AP212,0,($O$1-1)*13) -> - | D30: =OFFSET('Precios finales '!AQ212,0,($O$1-1)*13) -> - | E30: =OFFSET('Precios finales '!AR212,0,($O$1-1)*13) -> - | F30: =OFFSET('Precios finales '!AS212,0,($O$1-1)*13) -> - | G30: =OFFSET('Precios finales '!AT212,0,($O$1-1)*13) -> - | H30: =OFFSET('Precios finales '!AU212,0,($O$1-1)*13) -> - | I30: =OFFSET('Precios finales '!AV212,0,($O$1-1)*13) -> - | J30: =OFFSET('Precios finales '!AW212,0,($O$1-1)*13) -> - | K30: =OFFSET('Precios finales '!AX212,0,($O$1-1)*13) -> - | L30: =OFFSET('Precios finales '!AY212,0,($O$1-1)*13) -> - | M30: =OFFSET('Precios finales '!AZ212,0,($O$1-1)*13) -> - | N30: =OFFSET('Precios finales '!BA212,0,($O$1-1)*13) -> - | O30: =OFFSET('Precios finales '!BB212,0,($O$1-1)*13) -> -
B31: Activados por REE
B32: Activado importación (GWh) | C32: =OFFSET('Precios finales '!AP213,0,($O$1-1)*13) -> - | D32: =OFFSET('Precios finales '!AQ213,0,($O$1-1)*13) -> - | E32: =OFFSET('Precios finales '!AR213,0,($O$1-1)*13) -> - | F32: =OFFSET('Precios finales '!AS213,0,($O$1-1)*13) -> - | G32: =OFFSET('Precios finales '!AT213,0,($O$1-1)*13) -> - | H32: =OFFSET('Precios finales '!AU213,0,($O$1-1)*13) -> - | I32: =OFFSET('Precios finales '!AV213,0,($O$1-1)*13) -> - | J32: =OFFSET('Precios finales '!AW213,0,($O$1-1)*13) -> - | K32: =OFFSET('Precios finales '!AX213,0,($O$1-1)*13) -> - | L32: =OFFSET('Precios finales '!AY213,0,($O$1-1)*13) -> - | M32: =OFFSET('Precios finales '!AZ213,0,($O$1-1)*13) -> - | N32: =OFFSET('Precios finales '!BA213,0,($O$1-1)*13) -> - | O32: =OFFSET('Precios finales '!BB213,0,($O$1-1)*13) -> -
B33: Precio importación (€/MWh) | C33: =OFFSET('Precios finales '!AP214,0,($O$1-1)*13) -> - | D33: =OFFSET('Precios finales '!AQ214,0,($O$1-1)*13) -> - | E33: =OFFSET('Precios finales '!AR214,0,($O$1-1)*13) -> - | F33: =OFFSET('Precios finales '!AS214,0,($O$1-1)*13) -> - | G33: =OFFSET('Precios finales '!AT214,0,($O$1-1)*13) -> - | H33: =OFFSET('Precios finales '!AU214,0,($O$1-1)*13) -> - | I33: =OFFSET('Precios finales '!AV214,0,($O$1-1)*13) -> - | J33: =OFFSET('Precios finales '!AW214,0,($O$1-1)*13) -> - | K33: =OFFSET('Precios finales '!AX214,0,($O$1-1)*13) -> - | L33: =OFFSET('Precios finales '!AY214,0,($O$1-1)*13) -> - | M33: =OFFSET('Precios finales '!AZ214,0,($O$1-1)*13) -> - | N33: =OFFSET('Precios finales '!BA214,0,($O$1-1)*13) -> - | O33: =OFFSET('Precios finales '!BB214,0,($O$1-1)*13) -> -
B34: Activado exportación (GWh) | C34: =OFFSET('Precios finales '!AP215,0,($O$1-1)*13) -> - | D34: =OFFSET('Precios finales '!AQ215,0,($O$1-1)*13) -> - | E34: =OFFSET('Precios finales '!AR215,0,($O$1-1)*13) -> - | F34: =OFFSET('Precios finales '!AS215,0,($O$1-1)*13) -> - | G34: =OFFSET('Precios finales '!AT215,0,($O$1-1)*13) -> - | H34: =OFFSET('Precios finales '!AU215,0,($O$1-1)*13) -> - | I34: =OFFSET('Precios finales '!AV215,0,($O$1-1)*13) -> - | J34: =OFFSET('Precios finales '!AW215,0,($O$1-1)*13) -> - | K34: =OFFSET('Precios finales '!AX215,0,($O$1-1)*13) -> - | L34: =OFFSET('Precios finales '!AY215,0,($O$1-1)*13) -> - | M34: =OFFSET('Precios finales '!AZ215,0,($O$1-1)*13) -> - | N34: =OFFSET('Precios finales '!BA215,0,($O$1-1)*13) -> - | O34: =OFFSET('Precios finales '!BB215,0,($O$1-1)*13) -> -
B35: Precio exportación (€/MWh) | C35: =OFFSET('Precios finales '!AP216,0,($O$1-1)*13) -> - | D35: =OFFSET('Precios finales '!AQ216,0,($O$1-1)*13) -> - | E35: =OFFSET('Precios finales '!AR216,0,($O$1-1)*13) -> - | F35: =OFFSET('Precios finales '!AS216,0,($O$1-1)*13) -> - | G35: =OFFSET('Precios finales '!AT216,0,($O$1-1)*13) -> - | H35: =OFFSET('Precios finales '!AU216,0,($O$1-1)*13) -> - | I35: =OFFSET('Precios finales '!AV216,0,($O$1-1)*13) -> - | J35: =OFFSET('Precios finales '!AW216,0,($O$1-1)*13) -> - | K35: =OFFSET('Precios finales '!AX216,0,($O$1-1)*13) -> - | L35: =OFFSET('Precios finales '!AY216,0,($O$1-1)*13) -> - | M35: =OFFSET('Precios finales '!AZ216,0,($O$1-1)*13) -> - | N35: =OFFSET('Precios finales '!BA216,0,($O$1-1)*13) -> - | O35: =OFFSET('Precios finales '!BB216,0,($O$1-1)*13) -> -
B37: Energía y precios ofertados por Portugal (REN) y activado por REE
B38: Capacidad ofertada importación (GWh) | C38: =OFFSET('Precios finales '!AP219,0,($O$1-1)*13) -> - | D38: =OFFSET('Precios finales '!AQ219,0,($O$1-1)*13) -> - | E38: =OFFSET('Precios finales '!AR219,0,($O$1-1)*13) -> - | F38: =OFFSET('Precios finales '!AS219,0,($O$1-1)*13) -> - | G38: =OFFSET('Precios finales '!AT219,0,($O$1-1)*13) -> - | H38: =OFFSET('Precios finales '!AU219,0,($O$1-1)*13) -> - | I38: =OFFSET('Precios finales '!AV219,0,($O$1-1)*13) -> - | J38: =OFFSET('Precios finales '!AW219,0,($O$1-1)*13) -> - | K38: =OFFSET('Precios finales '!AX219,0,($O$1-1)*13) -> - | L38: =OFFSET('Precios finales '!AY219,0,($O$1-1)*13) -> - | M38: =OFFSET('Precios finales '!AZ219,0,($O$1-1)*13) -> - | N38: =OFFSET('Precios finales '!BA219,0,($O$1-1)*13) -> - | O38: =OFFSET('Precios finales '!BB219,0,($O$1-1)*13) -> -
B39: Precio ofertado importación (€/MWh) | C39: =OFFSET('Precios finales '!AP220,0,($O$1-1)*13) -> - | D39: =OFFSET('Precios finales '!AQ220,0,($O$1-1)*13) -> - | E39: =OFFSET('Precios finales '!AR220,0,($O$1-1)*13) -> - | F39: =OFFSET('Precios finales '!AS220,0,($O$1-1)*13) -> - | G39: =OFFSET('Precios finales '!AT220,0,($O$1-1)*13) -> - | H39: =OFFSET('Precios finales '!AU220,0,($O$1-1)*13) -> - | I39: =OFFSET('Precios finales '!AV220,0,($O$1-1)*13) -> - | J39: =OFFSET('Precios finales '!AW220,0,($O$1-1)*13) -> - | K39: =OFFSET('Precios finales '!AX220,0,($O$1-1)*13) -> - | L39: =OFFSET('Precios finales '!AY220,0,($O$1-1)*13) -> - | M39: =OFFSET('Precios finales '!AZ220,0,($O$1-1)*13) -> - | N39: =OFFSET('Precios finales '!BA220,0,($O$1-1)*13) -> - | O39: =OFFSET('Precios finales '!BB220,0,($O$1-1)*13) -> -
B40: Capacidad ofertada exportación (GWh) | C40: =OFFSET('Precios finales '!AP221,0,($O$1-1)*13) -> - | D40: =OFFSET('Precios finales '!AQ221,0,($O$1-1)*13) -> - | E40: =OFFSET('Precios finales '!AR221,0,($O$1-1)*13) -> - | F40: =OFFSET('Precios finales '!AS221,0,($O$1-1)*13) -> - | G40: =OFFSET('Precios finales '!AT221,0,($O$1-1)*13) -> - | H40: =OFFSET('Precios finales '!AU221,0,($O$1-1)*13) -> - | I40: =OFFSET('Precios finales '!AV221,0,($O$1-1)*13) -> - | J40: =OFFSET('Precios finales '!AW221,0,($O$1-1)*13) -> - | K40: =OFFSET('Precios finales '!AX221,0,($O$1-1)*13) -> - | L40: =OFFSET('Precios finales '!AY221,0,($O$1-1)*13) -> - | M40: =OFFSET('Precios finales '!AZ221,0,($O$1-1)*13) -> - | N40: =OFFSET('Precios finales '!BA221,0,($O$1-1)*13) -> - | O40: =OFFSET('Precios finales '!BB221,0,($O$1-1)*13) -> -
B41: Precio ofertado exportación (€/MWh) | C41: =OFFSET('Precios finales '!AP222,0,($O$1-1)*13) -> - | D41: =OFFSET('Precios finales '!AQ222,0,($O$1-1)*13) -> - | E41: =OFFSET('Precios finales '!AR222,0,($O$1-1)*13) -> - | F41: =OFFSET('Precios finales '!AS222,0,($O$1-1)*13) -> - | G41: =OFFSET('Precios finales '!AT222,0,($O$1-1)*13) -> - | H41: =OFFSET('Precios finales '!AU222,0,($O$1-1)*13) -> - | I41: =OFFSET('Precios finales '!AV222,0,($O$1-1)*13) -> - | J41: =OFFSET('Precios finales '!AW222,0,($O$1-1)*13) -> - | K41: =OFFSET('Precios finales '!AX222,0,($O$1-1)*13) -> - | L41: =OFFSET('Precios finales '!AY222,0,($O$1-1)*13) -> - | M41: =OFFSET('Precios finales '!AZ222,0,($O$1-1)*13) -> - | N41: =OFFSET('Precios finales '!BA222,0,($O$1-1)*13) -> - | O41: =OFFSET('Precios finales '!BB222,0,($O$1-1)*13) -> -
B42: Activados por REE
B43: Activado importación (GWh) | C43: =OFFSET('Precios finales '!AP223,0,($O$1-1)*13) -> - | D43: =OFFSET('Precios finales '!AQ223,0,($O$1-1)*13) -> - | E43: =OFFSET('Precios finales '!AR223,0,($O$1-1)*13) -> - | F43: =OFFSET('Precios finales '!AS223,0,($O$1-1)*13) -> - | G43: =OFFSET('Precios finales '!AT223,0,($O$1-1)*13) -> - | H43: =OFFSET('Precios finales '!AU223,0,($O$1-1)*13) -> - | I43: =OFFSET('Precios finales '!AV223,0,($O$1-1)*13) -> - | J43: =OFFSET('Precios finales '!AW223,0,($O$1-1)*13) -> - | K43: =OFFSET('Precios finales '!AX223,0,($O$1-1)*13) -> - | L43: =OFFSET('Precios finales '!AY223,0,($O$1-1)*13) -> - | M43: =OFFSET('Precios finales '!AZ223,0,($O$1-1)*13) -> - | N43: =OFFSET('Precios finales '!BA223,0,($O$1-1)*13) -> - | O43: =OFFSET('Precios finales '!BB223,0,($O$1-1)*13) -> -
B44: Precio importación (€/MWh) | C44: =OFFSET('Precios finales '!AP224,0,($O$1-1)*13) -> - | D44: =OFFSET('Precios finales '!AQ224,0,($O$1-1)*13) -> - | E44: =OFFSET('Precios finales '!AR224,0,($O$1-1)*13) -> - | F44: =OFFSET('Precios finales '!AS224,0,($O$1-1)*13) -> - | G44: =OFFSET('Precios finales '!AT224,0,($O$1-1)*13) -> - | H44: =OFFSET('Precios finales '!AU224,0,($O$1-1)*13) -> - | I44: =OFFSET('Precios finales '!AV224,0,($O$1-1)*13) -> - | J44: =OFFSET('Precios finales '!AW224,0,($O$1-1)*13) -> - | K44: =OFFSET('Precios finales '!AX224,0,($O$1-1)*13) -> - | L44: =OFFSET('Precios finales '!AY224,0,($O$1-1)*13) -> - | M44: =OFFSET('Precios finales '!AZ224,0,($O$1-1)*13) -> - | N44: =OFFSET('Precios finales '!BA224,0,($O$1-1)*13) -> - | O44: =OFFSET('Precios finales '!BB224,0,($O$1-1)*13) -> -
B45: Activado exportación (GWh) | C45: =OFFSET('Precios finales '!AP225,0,($O$1-1)*13) -> - | D45: =OFFSET('Precios finales '!AQ225,0,($O$1-1)*13) -> - | E45: =OFFSET('Precios finales '!AR225,0,($O$1-1)*13) -> - | F45: =OFFSET('Precios finales '!AS225,0,($O$1-1)*13) -> - | G45: =OFFSET('Precios finales '!AT225,0,($O$1-1)*13) -> - | H45: =OFFSET('Precios finales '!AU225,0,($O$1-1)*13) -> - | I45: =OFFSET('Precios finales '!AV225,0,($O$1-1)*13) -> - | J45: =OFFSET('Precios finales '!AW225,0,($O$1-1)*13) -> - | K45: =OFFSET('Precios finales '!AX225,0,($O$1-1)*13) -> - | L45: =OFFSET('Precios finales '!AY225,0,($O$1-1)*13) -> - | M45: =OFFSET('Precios finales '!AZ225,0,($O$1-1)*13) -> - | N45: =OFFSET('Precios finales '!BA225,0,($O$1-1)*13) -> - | O45: =OFFSET('Precios finales '!BB225,0,($O$1-1)*13) -> -
B46: Precio exportación (€/MWh) | C46: =OFFSET('Precios finales '!AP226,0,($O$1-1)*13) -> - | D46: =OFFSET('Precios finales '!AQ226,0,($O$1-1)*13) -> - | E46: =OFFSET('Precios finales '!AR226,0,($O$1-1)*13) -> - | F46: =OFFSET('Precios finales '!AS226,0,($O$1-1)*13) -> - | G46: =OFFSET('Precios finales '!AT226,0,($O$1-1)*13) -> - | H46: =OFFSET('Precios finales '!AU226,0,($O$1-1)*13) -> - | I46: =OFFSET('Precios finales '!AV226,0,($O$1-1)*13) -> - | J46: =OFFSET('Precios finales '!AW226,0,($O$1-1)*13) -> - | K46: =OFFSET('Precios finales '!AX226,0,($O$1-1)*13) -> - | L46: =OFFSET('Precios finales '!AY226,0,($O$1-1)*13) -> - | M46: =OFFSET('Precios finales '!AZ226,0,($O$1-1)*13) -> - | N46: =OFFSET('Precios finales '!BA226,0,($O$1-1)*13) -> - | O46: =OFFSET('Precios finales '!BB226,0,($O$1-1)*13) -> -

Sheet BALIT anual
O1: 1
I4: Concepto
I5: Horizonte temporal
I6: Periodo
C8: =OFFSET('Precios finales '!F24,0,($O$1-1)*10) -> 2010 | D8: =OFFSET('Precios finales '!G24,0,($O$1-1)*10) -> 2011 | E8: =OFFSET('Precios finales '!H24,0,($O$1-1)*10) -> 2012 | F8: =OFFSET('Precios finales '!I24,0,($O$1-1)*10) -> 2013 | G8: =OFFSET('Precios finales '!J24,0,($O$1-1)*10) -> 2014 | H8: =OFFSET('Precios finales '!K24,0,($O$1-1)*10) -> 2015 | I8: =OFFSET('Precios finales '!L24,0,($O$1-1)*10) -> 2016 | J8: =OFFSET('Precios finales '!M24,0,($O$1-1)*10) -> 2017 | K8: =OFFSET('Precios finales '!N24,0,($O$1-1)*10) -> 2018 | L8: =OFFSET('Precios finales '!O24,0,($O$1-1)*10) -> 2019
C9: =OFFSET('Precios finales '!C25,0,($O$1-1)*10) -> 0 | D9: =OFFSET('Precios finales '!D25,0,($O$1-1)*10) -> 0 | E9: =OFFSET('Precios finales '!E25,0,($O$1-1)*10) -> 0 | F9: =OFFSET('Precios finales '!F25,0,($O$1-1)*10) -> 38.46 | G9: =OFFSET('Precios finales '!G25,0,($O$1-1)*10) -> 50.97 | H9: =OFFSET('Precios finales '!H25,0,($O$1-1)*10) -> 48.88 | I9: =OFFSET('Precios finales '!I25,0,($O$1-1)*10) -> 46.23 | J9: =OFFSET('Precios finales '!J25,0,($O$1-1)*10) -> - | K9: =OFFSET('Precios finales '!K25,0,($O$1-1)*10) -> - | L9: =OFFSET('Precios finales '!L25,0,($O$1-1)*10) -> -
B10: Energía y precios ofertados desde el sistema eléctrico español y activado por operadores externos
B11: Ofertada por el sistema eléctrico español
B12: Capacidad ofertada importación (GWh) | C12: =OFFSET('Precios finales '!F230,0,($O$1-1)*10) -> - | D12: =OFFSET('Precios finales '!G230,0,($O$1-1)*10) -> - | E12: =OFFSET('Precios finales '!H230,0,($O$1-1)*10) -> - | F12: =OFFSET('Precios finales '!I230,0,($O$1-1)*10) -> - | G12: =OFFSET('Precios finales '!J230,0,($O$1-1)*10) -> - | H12: =OFFSET('Precios finales '!K230,0,($O$1-1)*10) -> - | I12: =OFFSET('Precios finales '!L230,0,($O$1-1)*10) -> - | J12: =OFFSET('Precios finales '!M230,0,($O$1-1)*10) -> - | K12: =OFFSET('Precios finales '!N230,0,($O$1-1)*10) -> - | L12: =OFFSET('Precios finales '!O230,0,($O$1-1)*10) -> -
B13: Precio ofertado importación (€/MWh) | C13: =OFFSET('Precios finales '!F231,0,($O$1-1)*10) -> - | D13: =OFFSET('Precios finales '!G231,0,($O$1-1)*10) -> - | E13: =OFFSET('Precios finales '!H231,0,($O$1-1)*10) -> - | F13: =OFFSET('Precios finales '!I231,0,($O$1-1)*10) -> - | G13: =OFFSET('Precios finales '!J231,0,($O$1-1)*10) -> - | H13: =OFFSET('Precios finales '!K231,0,($O$1-1)*10) -> - | I13: =OFFSET('Precios finales '!L231,0,($O$1-1)*10) -> - | J13: =OFFSET('Precios finales '!M231,0,($O$1-1)*10) -> - | K13: =OFFSET('Precios finales '!N231,0,($O$1-1)*10) -> - | L13: =OFFSET('Precios finales '!O231,0,($O$1-1)*10) -> -
B14: Capacidad ofertada exportación (GWh) | C14: =OFFSET('Precios finales '!F232,0,($O$1-1)*10) -> - | D14: =OFFSET('Precios finales '!G232,0,($O$1-1)*10) -> - | E14: =OFFSET('Precios finales '!H232,0,($O$1-1)*10) -> - | F14: =OFFSET('Precios finales '!I232,0,($O$1-1)*10) -> - | G14: =OFFSET('Precios finales '!J232,0,($O$1-1)*10) -> - | H14: =OFFSET('Precios finales '!K232,0,($O$1-1)*10) -> - | I14: =OFFSET('Precios finales '!L232,0,($O$1-1)*10) -> - | J14: =OFFSET('Precios finales '!M232,0,($O$1-1)*10) -> - | K14: =OFFSET('Precios finales '!N232,0,($O$1-1)*10) -> - | L14: =OFFSET('Precios finales '!O232,0,($O$1-1)*10) -> -
B15: Precio ofertado exportación (€/MWh) | C15: =OFFSET('Precios finales '!F233,0,($O$1-1)*10) -> - | D15: =OFFSET('Precios finales '!G233,0,($O$1-1)*10) -> - | E15: =OFFSET('Precios finales '!H233,0,($O$1-1)*10) -> - | F15: =OFFSET('Precios finales '!I233,0,($O$1-1)*10) -> - | G15: =OFFSET('Precios finales '!J233,0,($O$1-1)*10) -> - | H15: =OFFSET('Precios finales '!K233,0,($O$1-1)*10) -> - | I15: =OFFSET('Precios finales '!L233,0,($O$1-1)*10) -> - | J15: =OFFSET('Precios finales '!M233,0,($O$1-1)*10) -> - | K15: =OFFSET('Precios finales '!N233,0,($O$1-1)*10) -> - | L15: =OFFSET('Precios finales '!O233,0,($O$1-1)*10) -> -
B16: Activados por operadores externos (RTE, REN)
B17: Activado Francia importación (GWh) | C17: =OFFSET('Precios finales '!F234,0,($O$1-1)*10) -> - | D17: =OFFSET('Precios finales '!G234,0,($O$1-1)*10) -> - | E17: =OFFSET('Precios finales '!H234,0,($O$1-1)*10) -> - | F17: =OFFSET('Precios finales '!I234,0,($O$1-1)*10) -> - | G17: =OFFSET('Precios finales '!J234,0,($O$1-1)*10) -> - | H17: =OFFSET('Precios finales '!K234,0,($O$1-1)*10) -> - | I17: =OFFSET('Precios finales '!L234,0,($O$1-1)*10) -> - | J17: =OFFSET('Precios finales '!M234,0,($O$1-1)*10) -> - | K17: =OFFSET('Precios finales '!N234,0,($O$1-1)*10) -> - | L17: =OFFSET('Precios finales '!O234,0,($O$1-1)*10) -> -
B18: Precio Francia importación (€/MWh) | C18: =OFFSET('Precios finales '!F235,0,($O$1-1)*10) -> - | D18: =OFFSET('Precios finales '!G235,0,($O$1-1)*10) -> - | E18: =OFFSET('Precios finales '!H235,0,($O$1-1)*10) -> - | F18: =OFFSET('Precios finales '!I235,0,($O$1-1)*10) -> - | G18: =OFFSET('Precios finales '!J235,0,($O$1-1)*10) -> - | H18: =OFFSET('Precios finales '!K235,0,($O$1-1)*10) -> - | I18: =OFFSET('Precios finales '!L235,0,($O$1-1)*10) -> - | J18: =OFFSET('Precios finales '!M235,0,($O$1-1)*10) -> - | K18: =OFFSET('Precios finales '!N235,0,($O$1-1)*10) -> - | L18: =OFFSET('Precios finales '!O235,0,($O$1-1)*10) -> -
B19: Activado Portugal importación (GWh) | C19: =OFFSET('Precios finales '!F238,0,($O$1-1)*10) -> - | D19: =OFFSET('Precios finales '!G238,0,($O$1-1)*10) -> - | E19: =OFFSET('Precios finales '!H238,0,($O$1-1)*10) -> - | F19: =OFFSET('Precios finales '!I238,0,($O$1-1)*10) -> - | G19: =OFFSET('Precios finales '!J238,0,($O$1-1)*10) -> - | H19: =OFFSET('Precios finales '!K238,0,($O$1-1)*10) -> - | I19: =OFFSET('Precios finales '!L238,0,($O$1-1)*10) -> - | J19: =OFFSET('Precios finales '!M238,0,($O$1-1)*10) -> - | K19: =OFFSET('Precios finales '!N238,0,($O$1-1)*10) -> - | L19: =OFFSET('Precios finales '!O238,0,($O$1-1)*10) -> -
B20: Precio Portugal importación (€/MWh) | C20: =OFFSET('Precios finales '!F239,0,($O$1-1)*10) -> - | D20: =OFFSET('Precios finales '!G239,0,($O$1-1)*10) -> - | E20: =OFFSET('Precios finales '!H239,0,($O$1-1)*10) -> - | F20: =OFFSET('Precios finales '!I239,0,($O$1-1)*10) -> - | G20: =OFFSET('Precios finales '!J239,0,($O$1-1)*10) -> - | H20: =OFFSET('Precios finales '!K239,0,($O$1-1)*10) -> - | I20: =OFFSET('Precios finales '!L239,0,($O$1-1)*10) -> - | J20: =OFFSET('Precios finales '!M239,0,($O$1-1)*10) -> - | K20: =OFFSET('Precios finales '!N239,0,($O$1-1)*10) -> - | L20: =OFFSET('Precios finales '!O239,0,($O$1-1)*10) -> -
B21: Activado Francia exportación (GWh) | C21: =OFFSET('Precios finales '!F236,0,($O$1-1)*10) -> - | D21: =OFFSET('Precios finales '!G236,0,($O$1-1)*10) -> - | E21: =OFFSET('Precios finales '!H236,0,($O$1-1)*10) -> - | F21: =OFFSET('Precios finales '!I236,0,($O$1-1)*10) -> - | G21: =OFFSET('Precios finales '!J236,0,($O$1-1)*10) -> - | H21: =OFFSET('Precios finales '!K236,0,($O$1-1)*10) -> - | I21: =OFFSET('Precios finales '!L236,0,($O$1-1)*10) -> - | J21: =OFFSET('Precios finales '!M236,0,($O$1-1)*10) -> - | K21: =OFFSET('Precios finales '!N236,0,($O$1-1)*10) -> - | L21: =OFFSET('Precios finales '!O236,0,($O$1-1)*10) -> -
B22: Precio Francia exportación (€/MWh) | C22: =OFFSET('Precios finales '!F237,0,($O$1-1)*10) -> - | D22: =OFFSET('Precios finales '!G237,0,($O$1-1)*10) -> - | E22: =OFFSET('Precios finales '!H237,0,($O$1-1)*10) -> - | F22: =OFFSET('Precios finales '!I237,0,($O$1-1)*10) -> - | G22: =OFFSET('Precios finales '!J237,0,($O$1-1)*10) -> - | H22: =OFFSET('Precios finales '!K237,0,($O$1-1)*10) -> - | I22: =OFFSET('Precios finales '!L237,0,($O$1-1)*10) -> - | J22: =OFFSET('Precios finales '!M237,0,($O$1-1)*10) -> - | K22: =OFFSET('Precios finales '!N237,0,($O$1-1)*10) -> - | L22: =OFFSET('Precios finales '!O237,0,($O$1-1)*10) -> -
B23: Activado Portugal exportación (GWh) | C23: =OFFSET('Precios finales '!F240,0,($O$1-1)*10) -> - | D23: =OFFSET('Precios finales '!G240,0,($O$1-1)*10) -> - | E23: =OFFSET('Precios finales '!H240,0,($O$1-1)*10) -> - | F23: =OFFSET('Precios finales '!I240,0,($O$1-1)*10) -> - | G23: =OFFSET('Precios finales '!J240,0,($O$1-1)*10) -> - | H23: =OFFSET('Precios finales '!K240,0,($O$1-1)*10) -> - | I23: =OFFSET('Precios finales '!L240,0,($O$1-1)*10) -> - | J23: =OFFSET('Precios finales '!M240,0,($O$1-1)*10) -> - | K23: =OFFSET('Precios finales '!N240,0,($O$1-1)*10) -> - | L23: =OFFSET('Precios finales '!O240,0,($O$1-1)*10) -> -
B24: Precio Portugal exportación (€/MWh) | C24: =OFFSET('Precios finales '!F241,0,($O$1-1)*10) -> - | D24: =OFFSET('Precios finales '!G241,0,($O$1-1)*10) -> - | E24: =OFFSET('Precios finales '!H241,0,($O$1-1)*10) -> - | F24: =OFFSET('Precios finales '!I241,0,($O$1-1)*10) -> - | G24: =OFFSET('Precios finales '!J241,0,($O$1-1)*10) -> - | H24: =OFFSET('Precios finales '!K241,0,($O$1-1)*10) -> - | I24: =OFFSET('Precios finales '!L241,0,($O$1-1)*10) -> - | J24: =OFFSET('Precios finales '!M241,0,($O$1-1)*10) -> - | K24: =OFFSET('Precios finales '!N241,0,($O$1-1)*10) -> - | L24: =OFFSET('Precios finales '!O241,0,($O$1-1)*10) -> -
B26: Energía y precios ofertados por Francia (RTE) y activado por REE
B27: Capacidad ofertada importación (GWh) | C27: =OFFSET('Precios finales '!F244,0,($O$1-1)*10) -> - | D27: =OFFSET('Precios finales '!G244,0,($O$1-1)*10) -> - | E27: =OFFSET('Precios finales '!H244,0,($O$1-1)*10) -> - | F27: =OFFSET('Precios finales '!I244,0,($O$1-1)*10) -> - | G27: =OFFSET('Precios finales '!J244,0,($O$1-1)*10) -> - | H27: =OFFSET('Precios finales '!K244,0,($O$1-1)*10) -> - | I27: =OFFSET('Precios finales '!L244,0,($O$1-1)*10) -> - | J27: =OFFSET('Precios finales '!M244,0,($O$1-1)*10) -> - | K27: =OFFSET('Precios finales '!N244,0,($O$1-1)*10) -> - | L27: =OFFSET('Precios finales '!O244,0,($O$1-1)*10) -> -
B28: Precio ofertado importación (€/MWh) | C28: =OFFSET('Precios finales '!F245,0,($O$1-1)*10) -> - | D28: =OFFSET('Precios finales '!G245,0,($O$1-1)*10) -> - | E28: =OFFSET('Precios finales '!H245,0,($O$1-1)*10) -> - | F28: =OFFSET('Precios finales '!I245,0,($O$1-1)*10) -> - | G28: =OFFSET('Precios finales '!J245,0,($O$1-1)*10) -> - | H28: =OFFSET('Precios finales '!K245,0,($O$1-1)*10) -> - | I28: =OFFSET('Precios finales '!L245,0,($O$1-1)*10) -> - | J28: =OFFSET('Precios finales '!M245,0,($O$1-1)*10) -> - | K28: =OFFSET('Precios finales '!N245,0,($O$1-1)*10) -> - | L28: =OFFSET('Precios finales '!O245,0,($O$1-1)*10) -> -
B29: Capacidad ofertada exportación (GWh) | C29: =OFFSET('Precios finales '!F246,0,($O$1-1)*10) -> - | D29: =OFFSET('Precios finales '!G246,0,($O$1-1)*10) -> - | E29: =OFFSET('Precios finales '!H246,0,($O$1-1)*10) -> - | F29: =OFFSET('Precios finales '!I246,0,($O$1-1)*10) -> - | G29: =OFFSET('Precios finales '!J246,0,($O$1-1)*10) -> - | H29: =OFFSET('Precios finales '!K246,0,($O$1-1)*10) -> - | I29: =OFFSET('Precios finales '!L246,0,($O$1-1)*10) -> - | J29: =OFFSET('Precios finales '!M246,0,($O$1-1)*10) -> - | K29: =OFFSET('Precios finales '!N246,0,($O$1-1)*10) -> - | L29: =OFFSET('Precios finales '!O246,0,($O$1-1)*10) -> -
B30: Precio ofertado exportación (€/MWh) | C30: =OFFSET('Precios finales '!F247,0,($O$1-1)*10) -> - | D30: =OFFSET('Precios finales '!G247,0,($O$1-1)*10) -> - | E30: =OFFSET('Precios finales '!H247,0,($O$1-1)*10) -> - | F30: =OFFSET('Precios finales '!I247,0,($O$1-1)*10) -> - | G30: =OFFSET('Precios finales '!J247,0,($O$1-1)*10) -> - | H30: =OFFSET('Precios finales '!K247,0,($O$1-1)*10) -> - | I30: =OFFSET('Precios finales '!L247,0,($O$1-1)*10) -> - | J30: =OFFSET('Precios finales '!M247,0,($O$1-1)*10) -> - | K30: =OFFSET('Precios finales '!N247,0,($O$1-1)*10) -> - | L30: =OFFSET('Precios finales '!O247,0,($O$1-1)*10) -> -
B31: Activados por REE
B32: Activado importación (GWh) | C32: =OFFSET('Precios finales '!F248,0,($O$1-1)*10) -> - | D32: =OFFSET('Precios finales '!G248,0,($O$1-1)*10) -> - | E32: =OFFSET('Precios finales '!H248,0,($O$1-1)*10) -> - | F32: =OFFSET('Precios finales '!I248,0,($O$1-1)*10) -> - | G32: =OFFSET('Precios finales '!J248,0,($O$1-1)*10) -> - | H32: =OFFSET('Precios finales '!K248,0,($O$1-1)*10) -> - | I32: =OFFSET('Precios finales '!L248,0,($O$1-1)*10) -> - | J32: =OFFSET('Precios finales '!M248,0,($O$1-1)*10) -> - | K32: =OFFSET('Precios finales '!N248,0,($O$1-1)*10) -> - | L32: =OFFSET('Precios finales '!O248,0,($O$1-1)*10) -> -
B33: Precio importación (€/MWh) | C33: =OFFSET('Precios finales '!F249,0,($O$1-1)*10) -> - | D33: =OFFSET('Precios finales '!G249,0,($O$1-1)*10) -> - | E33: =OFFSET('Precios finales '!H249,0,($O$1-1)*10) -> - | F33: =OFFSET('Precios finales '!I249,0,($O$1-1)*10) -> - | G33: =OFFSET('Precios finales '!J249,0,($O$1-1)*10) -> - | H33: =OFFSET('Precios finales '!K249,0,($O$1-1)*10) -> - | I33: =OFFSET('Precios finales '!L249,0,($O$1-1)*10) -> - | J33: =OFFSET('Precios finales '!M249,0,($O$1-1)*10) -> - | K33: =OFFSET('Precios finales '!N249,0,($O$1-1)*10) -> - | L33: =OFFSET('Precios finales '!O249,0,($O$1-1)*10) -> -
B34: Activado exportación (GWh) | C34: =OFFSET('Precios finales '!F250,0,($O$1-1)*10) -> - | D34: =OFFSET('Precios finales '!G250,0,($O$1-1)*10) -> - | E34: =OFFSET('Precios finales '!H250,0,($O$1-1)*10) -> - | F34: =OFFSET('Precios finales '!I250,0,($O$1-1)*10) -> - | G34: =OFFSET('Precios finales '!J250,0,($O$1-1)*10) -> - | H34: =OFFSET('Precios finales '!K250,0,($O$1-1)*10) -> - | I34: =OFFSET('Precios finales '!L250,0,($O$1-1)*10) -> - | J34: =OFFSET('Precios finales '!M250,0,($O$1-1)*10) -> - | K34: =OFFSET('Precios finales '!N250,0,($O$1-1)*10) -> - | L34: =OFFSET('Precios finales '!O250,0,($O$1-1)*10) -> -
B35: Precio exportación (€/MWh) | C35: =OFFSET('Precios finales '!F251,0,($O$1-1)*10) -> - | D35: =OFFSET('Precios finales '!G251,0,($O$1-1)*10) -> - | E35: =OFFSET('Precios finales '!H251,0,($O$1-1)*10) -> - | F35: =OFFSET('Precios finales '!I251,0,($O$1-1)*10) -> - | G35: =OFFSET('Precios finales '!J251,0,($O$1-1)*10) -> - | H35: =OFFSET('Precios finales '!K251,0,($O$1-1)*10) -> - | I35: =OFFSET('Precios finales '!L251,0,($O$1-1)*10) -> - | J35: =OFFSET('Precios finales '!M251,0,($O$1-1)*10) -> - | K35: =OFFSET('Precios finales '!N251,0,($O$1-1)*10) -> - | L35: =OFFSET('Precios finales '!O251,0,($O$1-1)*10) -> -
B37: Energía y precios ofertados por Portugal (REN) y activado por REE
B38: Capacidad ofertada importación (GWh) | C38: =OFFSET('Precios finales '!F254,0,($O$1-1)*10) -> - | D38: =OFFSET('Precios finales '!G254,0,($O$1-1)*10) -> - | E38: =OFFSET('Precios finales '!H254,0,($O$1-1)*10) -> - | F38: =OFFSET('Precios finales '!I254,0,($O$1-1)*10) -> - | G38: =OFFSET('Precios finales '!J254,0,($O$1-1)*10) -> - | H38: =OFFSET('Precios finales '!K254,0,($O$1-1)*10) -> - | I38: =OFFSET('Precios finales '!L254,0,($O$1-1)*10) -> - | J38: =OFFSET('Precios finales '!M254,0,($O$1-1)*10) -> - | K38: =OFFSET('Precios finales '!N254,0,($O$1-1)*10) -> - | L38: =OFFSET('Precios finales '!O254,0,($O$1-1)*10) -> -
B39: Precio ofertado importación (€/MWh) | C39: =OFFSET('Precios finales '!F255,0,($O$1-1)*10) -> - | D39: =OFFSET('Precios finales '!G255,0,($O$1-1)*10) -> - | E39: =OFFSET('Precios finales '!H255,0,($O$1-1)*10) -> - | F39: =OFFSET('Precios finales '!I255,0,($O$1-1)*10) -> - | G39: =OFFSET('Precios finales '!J255,0,($O$1-1)*10) -> - | H39: =OFFSET('Precios finales '!K255,0,($O$1-1)*10) -> - | I39: =OFFSET('Precios finales '!L255,0,($O$1-1)*10) -> - | J39: =OFFSET('Precios finales '!M255,0,($O$1-1)*10) -> - | K39: =OFFSET('Precios finales '!N255,0,($O$1-1)*10) -> - | L39: =OFFSET('Precios finales '!O255,0,($O$1-1)*10) -> -
B40: Capacidad ofertada exportación (GWh) | C40: =OFFSET('Precios finales '!F256,0,($O$1-1)*10) -> - | D40: =OFFSET('Precios finales '!G256,0,($O$1-1)*10) -> - | E40: =OFFSET('Precios finales '!H256,0,($O$1-1)*10) -> - | F40: =OFFSET('Precios finales '!I256,0,($O$1-1)*10) -> - | G40: =OFFSET('Precios finales '!J256,0,($O$1-1)*10) -> - | H40: =OFFSET('Precios finales '!K256,0,($O$1-1)*10) -> - | I40: =OFFSET('Precios finales '!L256,0,($O$1-1)*10) -> - | J40: =OFFSET('Precios finales '!M256,0,($O$1-1)*10) -> - | K40: =OFFSET('Precios finales '!N256,0,($O$1-1)*10) -> - | L40: =OFFSET('Precios finales '!O256,0,($O$1-1)*10) -> -
B41: Precio ofertado exportación (€/MWh) | C41: =OFFSET('Precios finales '!F257,0,($O$1-1)*10) -> - | D41: =OFFSET('Precios finales '!G257,0,($O$1-1)*10) -> - | E41: =OFFSET('Precios finales '!H257,0,($O$1-1)*10) -> - | F41: =OFFSET('Precios finales '!I257,0,($O$1-1)*10) -> - | G41: =OFFSET('Precios finales '!J257,0,($O$1-1)*10) -> - | H41: =OFFSET('Precios finales '!K257,0,($O$1-1)*10) -> - | I41: =OFFSET('Precios finales '!L257,0,($O$1-1)*10) -> - | J41: =OFFSET('Precios finales '!M257,0,($O$1-1)*10) -> - | K41: =OFFSET('Precios finales '!N257,0,($O$1-1)*10) -> - | L41: =OFFSET('Precios finales '!O257,0,($O$1-1)*10) -> -
B42: Activados por REE
B43: Activado importación (GWh) | C43: =OFFSET('Precios finales '!F258,0,($O$1-1)*10) -> - | D43: =OFFSET('Precios finales '!G258,0,($O$1-1)*10) -> - | E43: =OFFSET('Precios finales '!H258,0,($O$1-1)*10) -> - | F43: =OFFSET('Precios finales '!I258,0,($O$1-1)*10) -> - | G43: =OFFSET('Precios finales '!J258,0,($O$1-1)*10) -> - | H43: =OFFSET('Precios finales '!K258,0,($O$1-1)*10) -> - | I43: =OFFSET('Precios finales '!L258,0,($O$1-1)*10) -> - | J43: =OFFSET('Precios finales '!M258,0,($O$1-1)*10) -> - | K43: =OFFSET('Precios finales '!N258,0,($O$1-1)*10) -> - | L43: =OFFSET('Precios finales '!O258,0,($O$1-1)*10) -> -
B44: Precio importación (€/MWh) | C44: =OFFSET('Precios finales '!F259,0,($O$1-1)*10) -> - | D44: =OFFSET('Precios finales '!G259,0,($O$1-1)*10) -> - | E44: =OFFSET('Precios finales '!H259,0,($O$1-1)*10) -> - | F44: =OFFSET('Precios finales '!I259,0,($O$1-1)*10) -> - | G44: =OFFSET('Precios finales '!J259,0,($O$1-1)*10) -> - | H44: =OFFSET('Precios finales '!K259,0,($O$1-1)*10) -> - | I44: =OFFSET('Precios finales '!L259,0,($O$1-1)*10) -> - | J44: =OFFSET('Precios finales '!M259,0,($O$1-1)*10) -> - | K44: =OFFSET('Precios finales '!N259,0,($O$1-1)*10) -> - | L44: =OFFSET('Precios finales '!O259,0,($O$1-1)*10) -> -
B45: Activado exportación (GWh) | C45: =OFFSET('Precios finales '!F260,0,($O$1-1)*10) -> - | D45: =OFFSET('Precios finales '!G260,0,($O$1-1)*10) -> - | E45: =OFFSET('Precios finales '!H260,0,($O$1-1)*10) -> - | F45: =OFFSET('Precios finales '!I260,0,($O$1-1)*10) -> - | G45: =OFFSET('Precios finales '!J260,0,($O$1-1)*10) -> - | H45: =OFFSET('Precios finales '!K260,0,($O$1-1)*10) -> - | I45: =OFFSET('Precios finales '!L260,0,($O$1-1)*10) -> - | J45: =OFFSET('Precios finales '!M260,0,($O$1-1)*10) -> - | K45: =OFFSET('Precios finales '!N260,0,($O$1-1)*10) -> - | L45: =OFFSET('Precios finales '!O260,0,($O$1-1)*10) -> -
B46: Precio exportación (€/MWh) | C46: =OFFSET('Precios finales '!F261,0,($O$1-1)*10) -> - | D46: =OFFSET('Precios finales '!G261,0,($O$1-1)*10) -> - | E46: =OFFSET('Precios finales '!H261,0,($O$1-1)*10) -> - | F46: =OFFSET('Precios finales '!I261,0,($O$1-1)*10) -> - | G46: =OFFSET('Precios finales '!J261,0,($O$1-1)*10) -> - | H46: =OFFSET('Precios finales '!K261,0,($O$1-1)*10) -> - | I46: =OFFSET('Precios finales '!L261,0,($O$1-1)*10) -> - | J46: =OFFSET('Precios finales '!M261,0,($O$1-1)*10) -> - | K46: =OFFSET('Precios finales '!N261,0,($O$1-1)*10) -> - | L46: =OFFSET('Precios finales '!O261,0,($O$1-1)*10) -> -

Sheet Precios finales (hidden)
B2: Componentes del precio final mensual | C2: 2007-01-01 | D2: 2007-02-01 | E2: 2007-03-01 | F2: 2007-04-01 | G2: 2007-05-01 | H2: 2007-06-01 | I2: 2007-07-01 | J2: 2007-08-01 | K2: 2007-09-01 | L2: 2007-10-01 | M2: 2007-11-01 | N2: 2007-12-01 | O2: 2007 | P2: 2008-01-01 | Q2: 2008-02-01 | R2: 2008-03-01 | S2: 2008-04-01 | T2: 2008-05-01 | U2: 2008-06-01 | V2: 2008-07-01 | W2: 2008-08-01 | X2: 2008-09-01 | Y2: 2008-10-01 | Z2: 2008-11-01 | AA2: 2008-12-01 | AB2: 2008 | AC2: 2009-01-01 | AD2: 2009-02-01 | AE2: 2009-03-01 | AF2: 2009-04-01 | AG2: 2009-05-01 | AH2: 2009-06-01 | AI2: 2009-07-01 | AJ2: 2009-08-01 | AK2: 2009-09-01 | AL2: 2009-10-01 | AM2: 2009-11-01 | AN2: 2009-12-01 | AO2: 2009 | AP2: 2010-01-31 | AQ2: 2010-02-28 | AR2: 2010-03-31 | AS2: 2010-04-30 | AT2: 2010-05-31 | AU2: 2010-06-30 | AV2: 2010-07-31 | AW2: 2010-08-31 | AX2: 2010-09-30 | AY2: 2010-10-31 | AZ2: 2010-11-30 | BA2: 2010-12-31 | BB2: 2010 | BC2: 2011-01-31 | BD2: 2011-02-28 | BE2: 2011-03-31 | BF2: 2011-04-30 | BG2: 2011-05-31 | BH2: 2011-06-30 | BI2: 2011-07-31 | BJ2: 2011-08-31 | BK2: 2011-09-30 | BL2: 2011-10-31 | BM2: 2011-11-30 | BN2: 2011-12-31 | BO2: 2011 | BP2: 2012-01-31 | BQ2: 2012-02-29 | BR2: 2012-03-31 | BS2: 2012-04-30 | BT2: 2012-05-31 | BU2: 2012-06-30 | BV2: 2012-07-31 | BW2: 2012-08-31 | BX2: 2012-09-30 | BY2: 2012-10-31 | BZ2: 2012-11-30 | CA2: 2012-12-31 | CB2: 2012 | CC2: 2013-01-31 | CD2: 2013-02-28 | CE2: 2013-03-31 | CF2: 2013-04-30 | CG2: 2013-05-31 | CH2: 2013-06-30 | CI2: 2013-07-31 | CJ2: 2013-08-31 | CK2: 2013-09-30 | CL2: 2013-10-31 | CM2: 2013-11-30 | CN2: 2013-12-31 | CO2: 2013
B3: Mercado diario | AC3: 51.64 | AD3: 42.01 | AE3: 38.97 | AF3: 37.8 | AG3: 37.51 | AH3: 37.45 | AI3: 35.2 | AJ3: 35.41 | AK3: 36.75 | AL3: 36.5 | AM3: 34.04 | AN3: 32.82 | AO3: 36.92 | AP3: 32.14 | AQ3: 29.66 | AR3: 21.11 | AS3: 28.92 | AT3: 38.17 | AU3: 41.04 | AV3: 43.6 | AW3: 43.96 | AX3: 47.64 | AY3: 43.79 | AZ3: 42.88 | BA3: 48.85 | BB3: =F25 -> 38.46 | BC3: 43.2 | BD3: 49.01 | BE3: 47.63 | BF3: 46.21 | BG3: 49.58 | BH3: 50.63 | BI3: 51.47 | BJ3: 54.18 | BK3: 59.55 | BL3: 58.8 | BM3: 50.22 | BN3: 51.73 | BO3: =G25 -> 50.97 | BP3: 53.09 | BQ3: 55.34 | BR3: 49.06 | BS3: 42.19 | BT3: 44.62 | BU3: 54.25 | BV3: 51.11 | BW3: 50.11 | BX3: 48.81 | BY3: 47.05 | BZ3: 43.98 | CA3: 44.99 | CB3: =H25 -> 48.88 | CC3: 53.21 | CD3: 46.9 | CE3: 28.41 | CF3: 19.33 | CG3: 44.14 | CH3: 42.14 | CI3: 52.25 | CJ3: 49.01 | CK3: 51.68 | CL3: 52.78 | CM3: 43.48 | CN3: 68.58 | CO3: =I25 -> 46.23
B4: Mercado intradiario | AP4: -0.03 | AQ4: -0.02 | AR4: -0.02 | AS4: 0 | AT4: -0.01 | AU4: -0.01 | AV4: -0.01 | AW4: -0.01 | AX4: -0.02 | AY4: -0.07 | AZ4: -0.03 | BA4: -0.04 | BB4: -0.02 | BC4: -0.05 | BD4: -0.03 | BE4: -0.05 | BF4: -0.01 | BG4: -0.04 | BH4: -0.05 | BI4: -0.05 | BJ4: -0.08 | BK4: -0.05 | BL4: -0.03 | BM4: -0.11 | BN4: -0.15 | BO4: -0.06 | BP4: 0 | BQ4: -0.04 | BR4: -0.05 | BS4: -0.03 | BT4: -0.07 | BU4: -0.07 | BV4: -0.08 | BW4: 0 | BX4: -0.03 | BY4: -0.1 | BZ4: 0 | CA4: -0.03 | CB4: -0.04 | CC4: -0.01 | CD4: -0.08 | CE4: -0.11 | CF4: -0.02 | CG4: -0.09 | CH4: -0.14 | CI4: 0.02 | CJ4: -0.02 | CK4: -0.02 | CL4: -0.16 | CM4: -0.04 | CN4: -0.03 | CO4: -0.06
B5: Servicio de interrumpibilidad | C5: - | D5: - | E5: - | F5: - | G5: - | H5: - | I5: - | J5: - | K5: - | L5: - | M5: - | N5: - | O5: - | P5: - | Q5: - | R5: - | S5: - | T5: - | U5: - | V5: - | W5: - | X5: - | Y5: - | Z5: - | AA5: - | AB5: - | AC5: - | AD5: - | AE5: - | AF5: - | AG5: - | AH5: - | AI5: - | AJ5: - | AK5: - | AL5: - | AM5: - | AN5: - | AO5: - | AP5: - | AQ5: - | AR5: - | AS5: - | AT5: - | AU5: - | AV5: - | AW5: - | AX5: - | AY5: - | AZ5: - | BA5: - | BB5: - | BC5: - | BD5: - | BE5: - | BF5: - | BG5: - | BH5: - | BI5: - | BJ5: - | BK5: - | BL5: - | BM5: - | BN5: - | BO5: - | BP5: - | BQ5: - | BR5: - | BS5: - | BT5: - | BU5: - | BV5: - | BW5: - | BX5: - | BY5: - | BZ5: - | CA5: - | CB5: - | CC5: - | CD5: - | CE5: - | CF5: - | CG5: - | CH5: - | CI5: - | CJ5: - | CK5: - | CL5: - | CM5: - | CN5: - | CO5: -
B6: Pagos por capacidad | AO6: 3.28 | AP6: 4.11 | AQ6: 4.15 | AR6: 3.43 | AS6: 3.32 | AT6: 3.23 | AU6: 3.75 | AV6: 4.27 | AW6: 2.99 | AX6: 3.41 | AY6: 3.26 | AZ6: 3.34 | BA6: 4.1 | BB6: 3.63 | BC6: 7.03 | BD6: 6.99 | BE6: 5.76 | BF6: 5.5 | BG6: 5.44 | BH6: 6.42 | BI6: 7.09 | BJ6: 4.98 | BK6: 5.67 | BL6: 5.5 | BM6: 5.65 | BN6: 6.95 | BO6: 6.1 | BP6: 7.08 | BQ6: 7.08 | BR6: 5.64 | BS6: 5.59 | BT6: 5.42 | BU6: 6.31 | BV6: 7.2 | BW6: 4.99 | BX6: 5.55 | BY6: 5.59 | BZ6: 5.61 | CA6: 6.83 | CB6: 6.1 | CC6: 7.09 | CD6: 6.95 | CE6: 5.71 | CF6: 5.46 | CG6: 5.36 | CH6: 6.13 | CI6: 7.29 | CJ6: 4.87 | CK6: 5.48 | CL6: 5.39 | CM6: 5.59 | CN6: 6.89 | CO6: 6.04
B7: Servicios ajustes del sistema | AO7: 2.71 | AP7: 5.5 | AQ7: 4.26 | AR7: 5.99 | AS7: 2.86 | AT7: 2.4 | AU7: 2.1 | AV7: 3.01 | AW7: 3.46 | AX7: 2.95 | AY7: 4.02 | AZ7: 4.34 | BA7: 3.84 | BB7: 3.76 | BC7: 3.56 | BD7: 2.24 | BE7: 2.71 | BF7: 2.29 | BG7: 1.71 | BH7: 1.82 | BI7: 2.29 | BJ7: 2.98 | BK7: 3.28 | BL7: 4.67 | BM7: 5.88 | BN7: 5.09 | BO7: 3.21 | BP7: 3.68 | BQ7: 3.84 | BR7: 4.58 | BS7: 5.66 | BT7: 3.74 | BU7: 3.23 | BV7: 3.06 | BW7: 3.74 | BX7: 3.99 | BY7: 7.22 | BZ7: 7.47 | CA7: 6 | CB7: 4.63 | CC7: 5.21 | CD7: 5.29 | CE7: 7.57 | CF7: 7.53 | CG7: 5.21 | CH7: 5.22 | CI7: 2.87 | CJ7: 3.8 | CK7: 4.18 | CL7: 7.07 | CM7: 7.1 | CN7: 6.23 | CO7: 5.58
B8: Restricciones técnicasPBF | AO8: 1.57 | AP8: 3.11 | AQ8: 2.45 | AR8: 3.99 | AS8: 1.89 | AT8: 1.45 | AU8: 1.18 | AV8: 2.32 | AW8: 2.67 | AX8: 1.82 | AY8: 2.11 | AZ8: 2.38 | BA8: 1.89 | BB8: 2.29 | BC8: 2.02 | BD8: 1.19 | BE8: 1.48 | BF8: 1.18 | BG8: 0.68 | BH8: 0.85 | BI8: 1.42 | BJ8: 1.87 | BK8: 1.94 | BL8: 2.43 | BM8: 3.75 | BN8: 3.42 | BO8: 1.85 | BP8: 2.13 | BQ8: 1.97 | BR8: 2.44 | BS8: 2.85 | BT8: 2.07 | BU8: 1.55 | BV8: 1.73 | BW8: 1.68 | BX8: 1.34 | BY8: 2.21 | BZ8: 2.76 | CA8: 2.67 | CB8: 2.11 | CC8: 2.27 | CD8: 2.42 | CE8: 3.88 | CF8: 4.16 | CG8: 3.3 | CH8: 3.19 | CI8: 1.29 | CJ8: 1.92 | CK8: 2.25 | CL8: 3.3 | CM8: 3.38 | CN8: 2.81 | CO8: 2.83
B9: Banda de regulación secundaria | AO9: 0.53 | AP9: 1.03 | AQ9: 0.98 | AR9: 1 | AS9: 0.45 | AT9: 0.52 | AU9: 0.43 | AV9: 0.34 | AW9: 0.43 | AX9: 0.49 | AY9: 0.81 | AZ9: 0.84 | BA9: 0.97 | BB9: 0.7 | BC9: 0.74 | BD9: 0.45 | BE9: 0.44 | BF9: 0.49 | BG9: 0.55 | BH9: 0.59 | BI9: 0.61 | BJ9: 0.77 | BK9: 0.91 | BL9: 1.28 | BM9: 1.4 | BN9: 0.93 | BO9: 0.76 | BP9: 0.92 | BQ9: 1.17 | BR9: 1.4 | BS9: 2.01 | BT9: 1.11 | BU9: 1.05 | BV9: 0.99 | BW9: 1.39 | BX9: 1.62 | BY9: 1.84 | BZ9: 1.67 | CA9: 1.35 | CB9: 1.37 | CC9: 1.55 | CD9: 1.56 | CE9: 1.81 | CF9: 1.48 | CG9: 1.08 | CH9: 1.51 | CI9: 1.24 | CJ9: 1.28 | CK9: 1.21 | CL9: 1.52 | CM9: 1.3 | CN9: 1.87 | CO9: 1.45
B10: Reserva de potencia adicional a subir | C10: - | D10: - | E10: - | F10: - | G10: - | H10: - | I10: - | J10: - | K10: - | L10: - | M10: - | N10: - | O10: - | P10: - | Q10: - | R10: - | S10: - | T10: - | U10: - | V10: - | W10: - | X10: - | Y10: - | Z10: - | AA10: - | AB10: - | AC10: - | AD10: - | AE10: - | AF10: - | AG10: - | AH10: - | AI10: - | AJ10: - | AK10: - | AL10: - | AM10: - | AN10: - | AO10: - | AP10: - | AQ10: - | AR10: - | AS10: - | AT10: - | AU10: - | AV10: - | AW10: - | AX10: - | AY10: - | AZ10: - | BA10: - | BB10: - | BC10: - | BD10: - | BE10: - | BF10: - | BG10: - | BH10: 0 | BI10: 0 | BJ10: 0 | BK10: 0 | BL10: 0 | BM10: 0 | BN10: 0 | BO10: 0 | BP10: 0 | BQ10: 0 | BR10: 0 | BS10: 0 | BT10: 0.03 | BU10: 0 | BV10: 0 | BW10: 0.01 | BX10: 0.04 | BY10: 0.82 | BZ10: 1.56 | CA10: 0.71 | CB10: 0.25 | CC10: 0.39 | CD10: 0.42 | CE10: 0.84 | CF10: 0.76 | CG10: 0.19 | CH10: 0 | CI10: 0 | CJ10: 0.05 | CK10: 0.21 | CL10: 0.94 | CM10: 1.22 | CN10: 0.34 | CO10: 0.44
B11: Restricciones técnicas en tiempo real | AO11: 0.32 | AP11: 0.36 | AQ11: 0.21 | AR11: 0.4 | AS11: 0.17 | AT11: 0.18 | AU11: 0.09 | AV11: 0.21 | AW11: 0.16 | AX11: 0.23 | AY11: 0.5 | AZ11: 0.29 | BA11: 0.29 | BB11: 0.26 | BC11: 0.3 | BD11: 0.1 | BE11: 0.29 | BF11: 0.17 | BG11: 0.28 | BH11: 0.18 | BI11: 0.06 | BJ11: 0.15 | BK11: 0.11 | BL11: 0.4 | BM11: 0.47 | BN11: 0.34 | BO11: 0.24 | BP11: 0.18 | BQ11: 0.19 | BR11: 0.28 | BS11: 0.36 | BT11: 0.29 | BU11: 0.29 | BV11: 0.16 | BW11: 0.31 | BX11: 0.41 | BY11: 1.81 | BZ11: 1.03 | CA11: 0.62 | CB11: 0.48 | CC11: 0.4 | CD11: 0.41 | CE11: 0.64 | CF11: 0.77 | CG11: 0.43 | CH11: 0.24 | CI11: 0.1 | CJ11: 0.32 | CK11: 0.29 | CL11: 0.84 | CM11: 0.72 | CN11: 0.4 | CO11: 0.46
B12: Restricciones intradiario | AO12: 0 | AP12: 0 | AQ12: 0 | AR12: 0 | AS12: 0 | AT12: 0 | AU12: 0 | AV12: 0 | AW12: 0 | AX12: 0 | AY12: 0 | AZ12: 0 | BA12: 0 | BB12: 0 | BC12: 0 | BD12: 0 | BE12: 0 | BF12: 0 | BG12: 0 | BH12: 0 | BI12: 0 | BJ12: 0 | BK12: 0 | BL12: 0 | BM12: 0 | BN12: 0 | BO12: 0 | BP12: 0 | BQ12: 0 | BR12: 0 | BS12: 0 | BT12: 0 | BU12: 0 | BV12: 0 | BW12: 0 | BX12: 0 | BY12: 0 | BZ12: 0 | CA12: 0 | CB12: 0 | CC12: 0 | CD12: 0 | CE12: 0 | CF12: 0 | CG12: 0 | CH12: 0 | CI12: 0 | CJ12: 0 | CK12: 0 | CL12: 0 | CM12: 0 | CN12: 0 | CO12: 0
B13: Incumplimiento de energia de balance | AO13: - | AP13: - | AQ13: - | AR13: - | AS13: - | AT13: - | AU13: - | AV13: - | AW13: - | AX13: - | AY13: - | AZ13: - | BA13: - | BB13: - | BC13: - | BD13: - | BE13: - | BF13: - | BG13: - | BH13: - | BI13: - | BJ13: - | BK13: - | BL13: - | BM13: - | BN13: - | BO13: - | BP13: - | BQ13: - | BR13: - | BS13: - | BT13: - | BU13: - | BV13: - | BW13: - | BX13: - | BY13: - | BZ13: - | CA13: - | CB13: - | CC13: - | CD13: - | CE13: - | CF13: - | CG13: - | CH13: - | CI13: - | CJ13: - | CK13: - | CL13: - | CM13: - | CN13: - | CO13: -
B14: Coste desvíos | AO14: 0.34 | AP14: 0.67 | AQ14: 0.37 | AR14: 0.4 | AS14: 0.28 | AT14: 0.24 | AU14: 0.39 | AV14: 0.2 | AW14: 0.28 | AX14: 0.42 | AY14: 0.39 | AZ14: 0.38 | BA14: 0.52 | BB14: 0.38 | BC14: 0.32 | BD14: 0.44 | BE14: 0.47 | BF14: 0.39 | BG14: 0.2 | BH14: 0.18 | BI14: 0.31 | BJ14: 0.21 | BK14: 0.32 | BL14: 0.38 | BM14: 0.29 | BN14: 0.41 | BO14: 0.33 | BP14: 0.29 | BQ14: 0.29 | BR14: 0.33 | BS14: 0.35 | BT14: 0.23 | BU14: 0.24 | BV14: 0.22 | BW14: 0.27 | BX14: 0.47 | BY14: 0.26 | BZ14: 0.15 | CA14: 0.31 | CB14: 0.28 | CC14: 0.58 | CD14: 0.47 | CE14: 0.31 | CF14: 0.23 | CG14: 0.23 | CH14: 0.23 | CI14: 0.29 | CJ14: 0.19 | CK14: 0.18 | CL14: 0.32 | CM14: 0.24 | CN14: 0.33 | CO14: 0.3
B15: Saldo desvíos | AO15: -0.05 | AP15: 0.32 | AQ15: 0.26 | AR15: 0.19 | AS15: 0.08 | AT15: 0.02 | AU15: 0 | AV15: -0.06 | AW15: -0.08 | AX15: -0.01 | AY15: 0.21 | AZ15: 0.46 | BA15: 0.17 | BB15: 0.13 | BC15: 0.17 | BD15: 0.07 | BE15: 0.03 | BF15: 0.07 | BG15: 0.01 | BH15: 0 | BI15: -0.09 | BJ15: -0.03 | BK15: 0 | BL15: 0.16 | BM15: -0.01 | BN15: 0.01 | BO15: 0.03 | BP15: 0.13 | BQ15: 0.23 | BR15: 0.14 | BS15: 0.1 | BT15: 0 | BU15: 0.1 | BV15: -0.04 | BW15: 0.07 | BX15: 0.11 | BY15: 0.27 | BZ15: 0.28 | CA15: 0.34 | CB15: 0.14 | CC15: 0.03 | CD15: 0 | CE15: 0.09 | CF15: 0.13 | CG15: -0.04 | CH15: 0.06 | CI15: -0.06 | CJ15: 0.04 | CK15: 0.05 | CL15: 0.15 | CM15: 0.23 | CN15: 0.51 | CO15: 0.1
B16: Control del factor de potencia | C16: - | D16: - | E16: - | F16: - | G16: - | H16: - | I16: - | J16: - | K16: - | L16: - | M16: - | N16: - | O16: - | P16: - | Q16: - | R16: - | S16: - | T16: - | U16: - | V16: - | W16: - | X16: - | Y16: - | Z16: - | AA16: - | AB16: - | AC16: - | AD16: - | AE16: - | AF16: - | AG16: - | AH16: - | AI16: - | AJ16: - | AK16: - | AL16: - | AM16: - | AN16: - | AO16: - | AP16: - | AQ16: - | AR16: - | AS16: - | AT16: - | AU16: - | AV16: - | AW16: - | AX16: - | AY16: - | AZ16: - | BA16: - | BB16: - | BC16: - | BD16: - | BE16: - | BF16: - | BG16: - | BH16: - | BI16: - | BJ16: - | BK16: - | BL16: - | BM16: - | BN16: - | BO16: - | BP16: - | BQ16: - | BR16: - | BS16: - | BT16: - | BU16: - | BV16: - | BW16: - | BX16: - | BY16: - | BZ16: - | CA16: - | CB16: - | CC16: - | CD16: - | CE16: - | CF16: - | CG16: - | CH16: - | CI16: - | CJ16: 0 | CK16: 0 | CL16: 0 | CM16: 0 | CN16: 0 | CO16: -
B17: Saldo PO 14.6 | AP17: 0.01 | AQ17: -0.01 | AR17: 0.01 | AS17: -0.01 | AT17: -0.01 | AU17: 0.01 | AV17: 0 | AW17: 0 | AX17: 0 | AY17: 0 | AZ17: -0.01 | BA17: 0 | BB17: 0 | BC17: 0.01 | BD17: -0.01 | BE17: 0 | BF17: -0.01 | BG17: -0.01 | BH17: 0.02 | BI17: -0.02 | BJ17: 0.01 | BK17: 0 | BL17: 0.02 | BM17: -0.02 | BN17: -0.02 | BO17: 0 | BP17: 0.03 | BQ17: -0.01 | BR17: -0.01 | BS17: -0.01 | BT17: 0.01 | BU17: 0 | BV17: 0 | BW17: 0.01 | BX17: 0 | BY17: 0.01 | BZ17: 0.02 | CA17: 0 | CB17: 0 | CC17: -0.01 | CD17: 0.01 | CE17: 0 | CF17: 0 | CG17: 0.02 | CH17: -0.01 | CI17: 0.01 | CJ17: 0 | CK17: -0.01 | CL17: 0 | CM17: 0.01 | CN17: -0.03 | CO17: 0
B18: Fallo nominación UPG | AP18: 0 | AQ18: 0 | AR18: 0 | AS18: 0 | AT18: 0 | AU18: 0 | AV18: 0 | AW18: 0 | AX18: 0 | AY18: 0 | AZ18: 0 | BA18: 0 | BB18: 0 | BC18: 0 | BD18: 0 | BE18: 0 | BF18: 0 | BG18: 0 | BH18: 0 | BI18: 0 | BJ18: 0 | BK18: 0 | BL18: 0 | BM18: 0 | BN18: 0 | BO18: 0 | BP18: 0 | BQ18: 0 | BR18: 0 | BS18: 0 | BT18: 0 | BU18: 0 | BV18: 0 | BW18: 0 | BX18: 0 | BY18: 0 | BZ18: 0 | CA18: 0 | CB18: 0 | CC18: 0 | CD18: 0 | CE18: 0 | CF18: 0 | CG18: 0 | CH18: 0 | CI18: 0 | CJ18: 0 | CK18: 0 | CL18: 0 | CM18: 0 | CN18: 0 | CO18: 0
B19: Precio total | AO19: 42.91 | AP19: 41.72 | AQ19: 38.05 | AR19: 30.51 | AS19: 35.1 | AT19: 43.79 | AU19: 46.88 | AV19: 50.87 | AW19: 50.4 | AX19: 53.98 | AY19: 51 | AZ19: 50.53 | BA19: 56.75 | BB19: 45.83 | BC19: 53.74 | BD19: 58.21 | BE19: 56.05 | BF19: 53.99 | BG19: 56.69 | BH19: 58.82 | BI19: 60.8 | BJ19: 62.06 | BK19: 68.45 | BL19: 68.94 | BM19: 61.64 | BN19: 63.62 | BO19: 60.22 | BP19: 63.85 | BQ19: 66.22 | BR19: 59.23 | BS19: 53.41 | BT19: 53.71 | BU19: 63.72 | BV19: 61.29 | BW19: 58.84 | BX19: 58.32 | BY19: 59.76 | BZ19: 57.06 | CA19: 57.79 | CB19: 59.57 | CC19: 65.5 | CD19: 59.06 | CE19: 41.58 | CF19: 32.3 | CG19: 54.62 | CH19: 53.35 | CI19: 62.43 | CJ19: 57.66 | CK19: 61.32 | CL19: 65.08 | CM19: 56.13 | CN19: 81.67 | CO19: 57.79
B20: Energía cierre (MWh) | AO20: 190936859.3 | AP20: 23120305.52 | AQ20: 21792143.45 | AR20: 22462779.88 | AS20: 20152012.52 | AT20: 20801525.78 | AU20: 20496681.57 | AV20: 23264751.56 | AW20: 21083187.39 | AX20: 21414655.74 | AY20: 21046223.69 | AZ20: 21491033.61 | BA20: 22451716.02 | BB20: 259577016.7 | BC20: 23136773.23 | BD20: 21112023.28 | BE20: 22403226.68 | BF20: 19485644.12 | BG20: 20326769.34 | BH20: 20627058.75 | BI20: 21799932.61 | BJ20: 20989791.45 | BK20: 21072961.5 | BL20: 20936432.74 | BM20: 20047927.95 | BN20: 21111600.64 | BO20: 253050142.3 | BP20: 22373955.53 | BQ20: 22249744.62 | BR20: 21165521.67 | BS20: 19329087.86 | BT20: 20080113.27 | BU20: 20561522.77 | BV20: 21545639.52 | BW20: 20705321.54 | BX20: 19989474.13 | BY20: 20182608.7 | BZ20: 19090959.76 | CA20: 20369628.08 | CB20: =H42 -> 247643577.5 | CC20: 22057320.88 | CD20: 19810467.17 | CE20: 20603106.78 | CF20: 18943445.8 | CG20: 19141523.52 | CH20: 19066235.42 | CI20: 21395778.11 | CJ20: 20118985.64 | CK20: 19517032.24 | CL20: 19552300.44 | CM20: 19791864.99 | CN20: 20662852.65 | CO20: =I42 -> 240660913.7
B24: Componentes del precio final anual | C24: 2007 | D24: 2008 | E24: 2009 | F24: 2010 | G24: 2011 | H24: 2012 | I24: 2013 | J24: 2014 | K24: 2015 | L24: 2016 | M24: 2017 | N24: 2018 | O24: 2019
B25: Mercado diario | F25: 38.46 | G25: 50.97 | H25: 48.88 | I25: 46.23 | J25: - | K25: - | L25: - | M25: - | N25: - | O25: -
B26: Mercado intradiario | F26: -0.02 | G26: -0.06 | H26: -0.04 | I26: -0.06 | J26: - | K26: - | L26: - | M26: - | N26: - | O26: -
B27: Servicio de interrumpibilidad | F27: - | G27: - | H27: - | I27: - | J27: - | K27: - | L27: - | M27: - | N27: - | O27: -
B28: Pagos por capacidad | F28: 3.63 | G28: 6.1 | H28: 6.1 | I28: 6.04 | J28: - | K28: - | L28: - | M28: - | N28: - | O28: -
B29: Servicios ajustes del sistema | F29: 3.76 | G29: 3.21 | H29: 4.63 | I29: 5.58 | J29: - | K29: - | L29: - | M29: - | N29: - | O29: -
B30: Restricciones técnicasPBF | F30: 2.29 | G30: 1.85 | H30: 2.11 | I30: 2.83 | J30: - | K30: - | L30: - | M30: - | N30: - | O30: -
B31: Banda de regulación secundaria | F31: 0.7 | G31: 0.76 | H31: 1.37 | I31: 1.45 | J31: - | K31: - | L31: - | M31: - | N31: - | O31: -
B32: Reserva de potencia adicional a subir | F32: - | G32: 0 | H32: 0.25 | I32: 0.44 | J32: - | K32: - | L32: - | M32: - | N32: - | O32: -
B33: Restricciones técnicas en tiempo real | F33: 0.26 | G33: 0.24 | H33: 0.48 | I33: 0.46 | J33: - | K33: - | L33: - | M33: - | N33: - | O33: -
B34: Restricciones intradiario | F34: 0 | G34: 0 | H34: 0 | I34: 0 | J34: - | K34: - | L34: - | M34: - | N34: - | O34: -
B35: Incumplimiento de energia de balance | F35: - | G35: - | H35: - | I35: - | J35: - | K35: - | L35: - | M35: - | N35: - | O35: -
B36: Coste desvíos | F36: 0.38 | G36: 0.33 | H36: 0.28 | I36: 0.3 | J36: - | K36: - | L36: - | M36: - | N36: - | O36: -
B37: Saldo desvíos | F37: 0.13 | G37: 0.03 | H37: 0.14 | I37: 0.1 | J37: - | K37: - | L37: - | M37: - | N37: - | O37: -
B38: Control del factor de potencia | F38: - | G38: - | H38: - | I38: - | J38: - | K38: - | L38: - | M38: - | N38: - | O38: -
B39: Saldo PO 14.6 | F39: 0 | G39: 0 | H39: 0 | I39: 0 | J39: - | K39: - | L39: - | M39: - | N39: - | O39: -
B40: Fallo nominación UPG | F40: 0 | G40: 0 | H40: 0 | I40: 0 | J40: - | K40: - | L40: - | M40: - | N40: - | O40: -
B41: Precio total | F41: 45.83 | G41: 60.22 | H41: 59.57 | I41: 57.79 | J41: - | K41: - | L41: - | M41: - | N41: - | O41: -
B42: Energía cierre (MWh) | F42: 259577016.7 | G42: 253050142.3 | H42: 247643577.5 | I42: 240660913.7 | J42: - | K42: - | L42: - | M42: - | N42: - | O42: -
B46: Energía de restricciones al PBF de fase I y precios medios mensuales | C46: 2007-01-01 | D46: 2007-02-01 | E46: 2007-03-01 | F46: 2007-04-01 | G46: 2007-05-01 | H46: 2007-06-01 | I46: 2007-07-01 | J46: 2007-08-01 | K46: 2007-09-01 | L46: 2007-10-01 | M46: 2007-11-01 | N46: 2007-12-01 | O46: 2007 | P46: 2008-01-01 | Q46: 2008-02-01 | R46: 2008-03-01 | S46: 2008-04-01 | T46: 2008-05-01 | U46: 2008-06-01 | V46: 2008-07-01 | W46: 2008-08-01 | X46: 2008-09-01 | Y46: 2008-10-01 | Z46: 2008-11-01 | AA46: 2008-12-01 | AB46: 2008 | AC46: 2009-01-01 | AD46: 2009-02-01 | AE46: 2009-03-01 | AF46: 2009-04-01 | AG46: 2009-05-01 | AH46: 2009-06-01 | AI46: 2009-07-01 | AJ46: 2009-08-01 | AK46: 2009-09-01 | AL46: 2009-10-01 | AM46: 2009-11-01 | AN46: 2009-12-01 | AO46: 2009 | AP46: 2010-01-31 | AQ46: 2010-02-28 | AR46: 2010-03-31 | AS46: 2010-04-30 | AT46: 2010-05-31 | AU46: 2010-06-30 | AV46: 2010-07-31 | AW46: 2010-08-31 | AX46: 2010-09-30 | AY46: 2010-10-31 | AZ46: 2010-11-30 | BA46: 2010-12-31 | BB46: 2010 | BC46: 2011-01-31 | BD46: 2011-02-28 | BE46: 2011-03-31 | BF46: 2011-04-30 | BG46: 2011-05-31 | BH46: 2011-06-30 | BI46: 2011-07-31 | BJ46: 2011-08-31 | BK46: 2011-09-30 | BL46: 2011-10-31 | BM46: 2011-11-30 | BN46: 2011-12-31 | BO46: 2011 | BP46: 2012-01-31 | BQ46: 2012-02-29 | BR46: 2012-03-31 | BS46: 2012-04-30 | BT46: 2012-05-31 | BU46: 2012-06-30 | BV46: 2012-07-31 | BW46: 2012-08-31 | BX46: 2012-09-30 | BY46: 2012-10-31 | BZ46: 2012-11-30 | CA46: 2012-12-31 | CB46: 2012 | CC46: 2013-01-31 | CD46: 2013-02-28 | CE46: 2013-03-31 | CF46: 2013-04-30 | CG46: 2013-05-31 | CH46: 2013-06-30 | CI46: 2013-07-31 | CJ46: 2013-08-31 | CK46: 2013-09-30 | CL46: 2013-10-31 | CM46: 2013-11-30 | CN46: 2013-12-31 | CO46: 2013
B47: Energía gestionada a subir | AP47: 1246.3556 | AQ47: 1114.1255 | AR47: 1556.7549 | AS47: 912.1146 | AT47: 836.9094 | AU47: 595.3996 | AV47: 1034.7743 | AW47: 1045.1475 | AX47: 965.5187 | AY47: 1060.9296 | AZ47: 1114.044 | BA47: 1027.1989 | BB47: =F54 -> 12509.2726 | BC47: 1065.6909 | BD47: 715.6914 | BE47: 804.2683 | BF47: 609.6617 | BG47: 526.2795 | BH47: 560.7567 | BI47: 701.591 | BJ47: 939.7726 | BK47: 870.6166 | BL47: 1049.8657 | BM47: 1167.5563 | BN47: 985.8931 | BO47: =G54 -> 9997.6438 | BP47: 772.5054 | BQ47: 658.5591 | BR47: 733.8913 | BS47: 670.4243 | BT47: 526.6517 | BU47: 507.7034 | BV47: 565.8654 | BW47: 334.6298 | BX47: 190.0212 | BY47: 474.0741 | BZ47: 414.3008 | CA47: 313.4346 | CB47: =H54 -> 6162.0611 | CC47: 422.7793 | CD47: 578.4982 | CE47: 1034.7455 | CF47: 1006.4628 | CG47: 944.2459 | CH47: 762.761 | CI47: 202.0059 | CJ47: 199.3874 | CK47: 210.8465 | CL47: 563.0017 | CM47: 630.2775 | CN47: 684.7898 | CO47: =I54 -> 7239.8015
B48: Energía gestionada a bajar | AP48: 12.3608 | AQ48: 3.7662 | AR48: 10.0455 | AS48: 31.8173 | AT48: 0.1733 | AU48: 17.8649 | AV48: 215.9127 | AW48: 36.1145 | AX48: 47.2595 | AY48: 62.1884 | AZ48: 9.1905 | BA48: - | BB48: =F55 -> 446.6936 | BC48: 0.2365 | BD48: - | BE48: 5.3513 | BF48: 0.2425 | BG48: 2.6549 | BH48: 13.7782 | BI48: 18.1326 | BJ48: 53.4919 | BK48: 3.6821 | BL48: 130.0666 | BM48: 0.175 | BN48: 0.614 | BO48: =G55 -> 228.4256 | BP48: 0.6017 | BQ48: 2.8 | BR48: 8.9879 | BS48: - | BT48: 7.3286 | BU48: 10.9447 | BV48: 14.3815 | BW48: 7.8339 | BX48: 5.1984 | BY48: 2.7624 | BZ48: 0.05 | CA48: - | CB48: =H55 -> 60.8891 | CC48: 4.8518 | CD48: 0.6488 | CE48: 1.6876 | CF48: 0.4573 | CG48: 1.4307 | CH48: 6.0181 | CI48: 27.6272 | CJ48: 56.8951 | CK48: 26.0924 | CL48: 23.3988 | CM48: 2.2016 | CN48: 42.0387 | CO48: =I55 -> 193.3481
B49: Precio medio a subir | AP49: 88.70438059 | AQ49: 73.17763088 | AR49: 67.15509081 | AS49: 65.28999804 | AT49: 69.03638734 | AU49: 80.66519101 | AV49: 95.2552807 | AW49: 94.6667213 | AX49: 86.04385307 | AY49: 81.41110153 | AZ49: 82.26266937 | BA49: 83.91533431 | BB49: 80.49792412 | BC49: 83.76194212 | BD49: 82.102451 | BE49: 84.87958766 | BF49: 80.82768006 | BG49: 73.04712526 | BH49: 80.15834092 | BI49: 92.58056409 | BJ49: 91.12818917 | BK49: 106.2768084 | BL49: 106.5406514 | BM49: 106.2821456 | BN49: 114.4341474 | BO49: 94.11184696 | BP49: 112.1730849 | BQ49: 123.0349828 | BR49: 115.261367 | BS49: 119.3759136 | BT49: 117.6533129 | BU49: 114.854098 | BV49: 115.8736381 | BW49: 153.4886878 | BX49: 184.2168051 | BY49: 136.2420445 | BZ49: 165.2352752 | CA49: 201.3536286 | CB49: 129.9352769 | CC49: 165.9370716 | CD49: 124.2752143 | CE49: 96.75431356 | CF49: 90.72455849 | CG49: 102.4246301 | CH49: 111.7444781 | CI49: 182.1860251 | CJ49: 244.8022605 | CK49: 256.8240031 | CL49: 156.7742409 | CM49: 142.7155208 | CN49: 128.5622856 | CO49: 127.399839
B50: Precio medio a bajar | AP50: 29.53406333 | AQ50: 24.66481828 | AR50: 9.170516456 | AS50: 23.38560246 | AT50: 32.79026512 | AU50: 38.8925533 | AV50: 42.79207628 | AW50: 40.36081791 | AX50: 45.17736523 | AY50: 38.93005857 | AZ50: 36.09026912 | BA50: 42.17596453 | BB50: 32.41921309 | BC50: 39.31049661 | BD50: 46.96523435 | BE50: 42.88521714 | BF50: 42.8936842 | BG50: 46.83793828 | BH50: 48.36268899 | BI50: 48.28918351 | BJ50: 49.01776482 | BK50: 58.75664068 | BL50: 57.18658903 | BM50: 40.96336497 | BN50: 40.64893661 | BO50: 46.71754011 | BP50: 50.03389526 | BQ50: 56.10432594 | BR50: 44.01781385 | BS50: 35.65029091 | BT50: 38.26107705 | BU50: 51.70026125 | BV50: 49.71153336 | BW50: 48.49237902 | BX50: 41.91854208 | BY50: 40.93282046 | BZ50: 36.84354001 | CA50: 26.07797301 | CB50: 44.36393489 | CC50: 47.38075685 | CD50: 41.05677995 | CE50: 18.70624486 | CF50: 11.68381101 | CG50: 35.46150388 | CH50: 31.36628051 | CI50: 48.19627741 | CJ50: 46.17682063 | CK50: 44.08277112 | CL50: 40.75538152 | CM50: 35.86530109 | CN50: 45.41317948 | CO50: 32.8802697
B53: Energía de restricciones al PBF de fase I y precios medios anuales | C53: 2007 | D53: 2008 | E53: 2009 | F53: 2010 | G53: 2011 | H53: 2012 | I53: 2013 | J53: 2014 | K53: 2015 | L53: 2016 | M53: 2017 | N53: 2018 | O53: 2019
B54: Energía gestionada a subir | C54: 8098.8977 | D54: 6765.0793 | E54: 9474.8609 | F54: 12509.2726 | G54: 9997.6438 | H54: 6162.0611 | I54: 7239.8015 | J54: - | K54: - | L54: - | M54: - | N54: - | O54: -
B55: Energía gestionada a bajar | C55: 2601.5491 | D55: 857.4941 | E55: 707.2473 | F55: 446.6936 | G55: 228.4256 | H55: 60.8891 | I55: 193.3481 | J55: - | K55: - | L55: - | M55: - | N55: - | O55: -
B56: Precio medio a subir | C56: 74.55916799 | D56: 123.8568416 | E56: 78.23550559 | F56: 80.49792412 | G56: 94.11184696 | H56: 129.9352769 | I56: 127.399839 | J56: - | K56: - | L56: - | M56: - | N56: - | O56: -
B57: Precio medio a bajar | C57: 45.49650281 | D57: 72.91819853 | E57: 38.61288934 | F57: 32.41921309 | G57: 46.71754011 | H57: 44.36393489 | I57: 32.8802697 | J57: - | K57: - | L57: - | M57: - | N57: - | O57: -
B60: Energía de regulación secundaria y precios medios mensuales | C60: 2007-01-01 | D60: 2007-02-01 | E60: 2007-03-01 | F60: 2007-04-01 | G60: 2007-05-01 | H60: 2007-06-01 | I60: 2007-07-01 | J60: 2007-08-01 | K60: 2007-09-01 | L60: 2007-10-01 | M60: 2007-11-01 | N60: 2007-12-01 | O60: 2007 | P60: 2008-01-01 | Q60: 2008-02-01 | R60: 2008-03-01 | S60: 2008-04-01 | T60: 2008-05-01 | U60: 2008-06-01 | V60: 2008-07-01 | W60: 2008-08-01 | X60: 2008-09-01 | Y60: 2008-10-01 | Z60: 2008-11-01 | AA60: 2008-12-01 | AB60: 2008 | AC60: 2009-01-01 | AD60: 2009-02-01 | AE60: 2009-03-01 | AF60: 2009-04-01 | AG60: 2009-05-01 | AH60: 2009-06-01 | AI60: 2009-07-01 | AJ60: 2009-08-01 | AK60: 2009-09-01 | AL60: 2009-10-01 | AM60: 2009-11-01 | AN60: 2009-12-01 | AO60: 2009 | AP60: 2010-01-31 | AQ60: 2010-02-28 | AR60: 2010-03-31 | AS60: 2010-04-30 | AT60: 2010-05-31 | AU60: 2010-06-30 | AV60: 2010-07-31 | AW60: 2010-08-31 | AX60: 2010-09-30 | AY60: 2010-10-31 | AZ60: 2010-11-30 | BA60: 2010-12-31 | BB60: 2010 | BC60: 2011-01-31 | BD60: 2011-02-28 | BE60: 2011-03-31 | BF60: 2011-04-30 | BG60: 2011-05-31 | BH60: 2011-06-30 | BI60: 2011-07-31 | BJ60: 2011-08-31 | BK60: 2011-09-30 | BL60: 2011-10-31 | BM60: 2011-11-30 | BN60: 2011-12-31 | BO60: 2011 | BP60: 2012-01-31 | BQ60: 2012-02-29 | BR60: 2012-03-31 | BS60: 2012-04-30 | BT60: 2012-05-31 | BU60: 2012-06-30 | BV60: 2012-07-31 | BW60: 2012-08-31 | BX60: 2012-09-30 | BY60: 2012-10-31 | BZ60: 2012-11-30 | CA60: 2012-12-31 | CB60: 2012 | CC60: 2013-01-31 | CD60: 2013-02-28 | CE60: 2013-03-31 | CF60: 2013-04-30 | CG60: 2013-05-31 | CH60: 2013-06-30 | CI60: 2013-07-31 | CJ60: 2013-08-31 | CK60: 2013-09-30 | CL60: 2013-10-31 | CM60: 2013-11-30 | CN60: 2013-12-31 | CO60: 2013
B61: Energía gestionada a subir | AP61: 111.858454 | AQ61: 99.514529 | AR61: 140.082268 | AS61: 126.675298 | AT61: 98.163102 | AU61: 97.723265 | AV61: 82.81549 | AW61: 63.901694 | AX61: 68.299137 | AY61: 83.241492 | AZ61: 89.086753 | BA61: 103.729148 | BB61: =F68 -> 1165.09063 | BC61: 85.516715 | BD61: 75.794835 | BE61: 131.80452 | BF61: 115.394439 | BG61: 89.892108 | BH61: 91.209007 | BI61: 78.721741 | BJ61: 99.772314 | BK61: 92.656922 | BL61: 104.534155 | BM61: 122.793892 | BN61: 124.416893 | BO61: =G68 -> 1212.507541 | BP61: 95.829729 | BQ61: 104.23274 | BR61: 137.451841 | BS61: 150.499711 | BT61: 161.227113 | BU61: 102.838663 | BV61: 110.171751 | BW61: 88.11684 | BX61: 103.859213 | BY61: 128.616341 | BZ61: 143.905117 | CA61: 183.616021 | CB61: =H68 -> 1510.36508 | CC61: 171.797297 | CD61: 146.232013 | CE61: 176.833415 | CF61: 192.209758 | CG61: 170.306426 | CH61: 149.065025 | CI61: 124.773447 | CJ61: 125.844602 | CK61: 111.608235 | CL61: 133.014772 | CM61: 153.516442 | CN61: 150.426562 | CO61: =I68 -> 1805.627994
B62: Energía gestionada a bajar | AP62: 134.546976 | AQ62: 141.970603 | AR62: 140.098791 | AS62: 102.705868 | AT62: 135.314162 | AU62: 121.521492 | AV62: 150.075622 | AW62: 164.768756 | AX62: 170.058544 | AY62: 155.938918 | AZ62: 161.886162 | BA62: 144.94361 | BB62: =F69 -> 1723.829504 | BC62: 153.223893 | BD62: 150.996311 | BE62: 129.528206 | BF62: 100.377704 | BG62: 147.394674 | BH62: 128.570257 | BI62: 135.588178 | BJ62: 115.535485 | BK62: 125.95819 | BL62: 108.941399 | BM62: 104.671733 | BN62: 113.555614 | BO62: =G69 -> 1514.341644 | BP62: 124.638602 | BQ62: 125.344257 | BR62: 107.943651 | BS62: 82.488203 | BT62: 78.09535 | BU62: 104.375774 | BV62: 115.074921 | BW62: 130.543715 | BX62: 121.41987 | BY62: 118.735159 | BZ62: 87.96219 | CA62: 65.794982 | CB62: =H69 -> 1262.416674 | CC62: 94.28603 | CD62: 81.404216 | CE62: 98.453813 | CF62: 86.494075 | CG62: 76.51819 | CH62: 77.887855 | CI62: 87.973297 | CJ62: 92.756681 | CK62: 100.823924 | CL62: 101.598428 | CM62: 84.130255 | CN62: 87.995928 | CO62: =I69 -> 1070.322692
B63: Precio medio a subir | AP63: 46.11001007 | AQ63: 31.40960713 | AR63: 29.50546603 | AS63: 30.44193296 | AT63: 40.65948629 | AU63: 42.56768058 | AV63: 43.92931781 | AW63: 43.80298588 | AX63: 45.5853836 | AY63: 42.66861099 | AZ63: 48.41899693 | BA63: 50.01990125 | BB63: 40.36460357 | BC63: 42.86382878 | BD63: 49.68758808 | BE63: 48.07483385 | BF63: 47.43094942 | BG63: 51.46362281 | BH63: 52.68324125 | BI63: 51.69948718 | BJ63: 55.97885672 | BK63: 56.68989134 | BL63: 57.71339214 | BM63: 53.7380694 | BN63: 50.86687762 | BO63: 51.57979881 | BP63: 54.76367986 | BQ63: 56.23659927 | BR63: 51.08738151 | BS63: 50.07785836 | BT63: 47.75784219 | BU63: 54.2073115 | BV63: 47.5551977 | BW63: 53.32408913 | BX63: 50.38626896 | BY63: 46.64607929 | BZ63: 54.42856643 | CA63: 49.29092364 | CB63: 50.97878464 | CC63: 58.92673917 | CD63: 53.96301198 | CE63: 33.56233747 | CF63: 31.19797362 | CG63: 49.69381813 | CH63: 47.04082524 | CI63: 56.26631987 | CJ63: 52.07140081 | CK63: 53.19528501 | CL63: 52.43041795 | CM63: 50.47670145 | CN63: 77.19751821 | CO63: 50.54609862
B64: Precio medio a bajar | AP64: 20.72427172 | AQ64: 13.64199305 | AR64: 7.815724905 | AS64: 18.05876807 | AT64: 24.58289222 | AU64: 26.76619762 | AV64: 31.63109402 | AW64: 32.1508633 | AX64: 33.17476745 | AY64: 24.63385965 | AZ64: 28.39380527 | BA64: 28.79536669 | BB64: 24.68443616 | BC64: 26.64273541 | BD64: 34.87019421 | BE64: 27.24817975 | BF64: 26.0699916 | BG64: 32.92807588 | BH64: 34.82383939 | BI64: 34.36174259 | BJ64: 38.49508547 | BK64: 41.91566757 | BL64: 39.35228838 | BM64: 33.28074562 | BN64: 30.65669268 | BO64: 33.32316954 | BP64: 38.12270816 | BQ64: 38.186225 | BR64: 31.30910201 | BS64: 24.49291567 | BT64: 26.80633546 | BU64: 37.72471876 | BV64: 32.74935379 | BW64: 36.16472076 | BX64: 26.62854597 | BY64: 30.29631139 | BZ64: 32.95917882 | CA64: 34.87643739 | CB64: 32.8599998 | CC64: 35.44296138 | CD64: 30.15885013 | CE64: 12.8897797 | CF64: 10.30120329 | CG64: 24.80783706 | CH64: 23.97600807 | CI64: 35.68874371 | CJ64: 33.56987568 | CK64: 33.01326132 | CL64: 30.09534252 | CM64: 27.9561184 | CN64: 44.96014781 | CO64: 28.65536121
B67: Energía de regulación secundaria y precios medios anuales | C67: 2007 | D67: 2008 | E67: 2009 | F67: 2010 | G67: 2011 | H67: 2012 | I67: 2013 | J67: 2014 | K67: 2015 | L67: 2016 | M67: 2017 | N67: 2018 | O67: 2019
B68: Energía gestionada a subir | F68: 1165.09063 | G68: 1212.507541 | H68: 1510.36508 | I68: 1805.627994 | J68: - | K68: - | L68: - | M68: - | N68: - | O68: -
B69: Energía gestionada a bajar | F69: 1723.829504 | G69: 1514.341644 | H69: 1262.416674 | I69: 1070.322692 | J69: - | K69: - | L69: - | M69: - | N69: - | O69: -
B70: Precio medio a subir | F70: 40.36460357 | G70: 51.57979881 | H70: 50.97878464 | I70: 50.54609862 | J70: - | K70: - | L70: - | M70: - | N70: - | O70: -
B71: Precio medio a bajar | F71: 24.68443616 | G71: 33.32316954 | H71: 32.8599998 | I71: 28.65536121 | J71: - | K71: - | L71: - | M71: - | N71: - | O71: -
B74: Energía de regulación terciaria y precios medios mensuales | C74: 2007-01-01 | D74: 2007-02-01 | E74: 2007-03-01 | F74: 2007-04-01 | G74: 2007-05-01 | H74: 2007-06-01 | I74: 2007-07-01 | J74: 2007-08-01 | K74: 2007-09-01 | L74: 2007-10-01 | M74: 2007-11-01 | N74: 2007-12-01 | O74: 2007 | P74: 2008-01-01 | Q74: 2008-02-01 | R74: 2008-03-01 | S74: 2008-04-01 | T74: 2008-05-01 | U74: 2008-06-01 | V74: 2008-07-01 | W74: 2008-08-01 | X74: 2008-09-01 | Y74: 2008-10-01 | Z74: 2008-11-01 | AA74: 2008-12-01 | AB74: 2008 | AC74: 2009-01-01 | AD74: 2009-02-01 | AE74: 2009-03-01 | AF74: 2009-04-01 | AG74: 2009-05-01 | AH74: 2009-06-01 | AI74: 2009-07-01 | AJ74: 2009-08-01 | AK74: 2009-09-01 | AL74: 2009-10-01 | AM74: 2009-11-01 | AN74: 2009-12-01 | AO74: 2009 | AP74: 2010-01-31 | AQ74: 2010-02-28 | AR74: 2010-03-31 | AS74: 2010-04-30 | AT74: 2010-05-31 | AU74: 2010-06-30 | AV74: 2010-07-31 | AW74: 2010-08-31 | AX74: 2010-09-30 | AY74: 2010-10-31 | AZ74: 2010-11-30 | BA74: 2010-12-31 | BB74: 2010 | BC74: 2011-01-31 | BD74: 2011-02-28 | BE74: 2011-03-31 | BF74: 2011-04-30 | BG74: 2011-05-31 | BH74: 2011-06-30 | BI74: 2011-07-31 | BJ74: 2011-08-31 | BK74: 2011-09-30 | BL74: 2011-10-31 | BM74: 2011-11-30 | BN74: 2011-12-31 | BO74: 2011 | BP74: 2012-01-31 | BQ74: 2012-02-29 | BR74: 2012-03-31 | BS74: 2012-04-30 | BT74: 2012-05-31 | BU74: 2012-06-30 | BV74: 2012-07-31 | BW74: 2012-08-31 | BX74: 2012-09-30 | BY74: 2012-10-31 | BZ74: 2012-11-30 | CA74: 2012-12-31 | CB74: 2012 | CC74: 2013-01-31 | CD74: 2013-02-28 | CE74: 2013-03-31 | CF74: 2013-04-30 | CG74: 2013-05-31 | CH74: 2013-06-30 | CI74: 2013-07-31 | CJ74: 2013-08-31 | CK74: 2013-09-30 | CL74: 2013-10-31 | CM74: 2013-11-30 | CN74: 2013-12-31 | CO74: 2013
B75: Energía gestionada a subir | AP75: 438.9729 | AQ75: 229.856 | AR75: 270.0987 | AS75: 129.6391 | AT75: 196.3184 | AU75: 139.5306 | AV75: 174.9237 | AW75: 231.0397 | AX75: 105.3176 | AY75: 101.8513 | AZ75: 360.7269 | BA75: 347.4697 | BB75: =F82 -> 2725.7446 | BC75: 263.3304 | BD75: 158.3059 | BE75: 227.2592 | BF75: 134.2591 | BG75: 293.5372 | BH75: 239.2959 | BI75: 156.8705 | BJ75: 301.056 | BK75: 164.5843 | BL75: 154.0874 | BM75: 279.803 | BN75: 321.4388 | BO75: =G82 -> 2693.8277 | BP75: 321.9637 | BQ75: 218.4861 | BR75: 206.0524 | BS75: 253.2746 | BT75: 223.5064 | BU75: 269.2574 | BV75: 203.0835 | BW75: 285.0872 | BX75: 131.2475 | BY75: 182.7602 | BZ75: 391.3443 | CA75: 305.5519 | CB75: =H82 -> 2991.6152 | CC75: 321.3479 | CD75: 357.9102 | CE75: 221.207 | CF75: 187.1326 | CG75: 252.4547 | CH75: 215.8065 | CI75: 298.5499 | CJ75: 307.2236 | CK75: 235.2833 | CL75: 274.0867 | CM75: 305.5878 | CN75: 353.716 | CO75: =I82 -> 3330.3062
B76: Energía gestionada a bajar | AP76: 238.8434 | AQ76: 292.6736 | AR76: 309.0188 | AS76: 248.7834 | AT76: 228.6602 | AU76: 246.7493 | AV76: 205.0861 | AW76: 175.5663 | AX76: 281.6858 | AY76: 388.6523 | AZ76: 153.5247 | BA76: 213.3963 | BB76: =F83 -> 2982.6402 | BC76: 206.0456 | BD76: 321.0029 | BE76: 399.6712 | BF76: 295.2901 | BG76: 127.7918 | BH76: 98.3467 | BI76: 235.7071 | BJ76: 116.5237 | BK76: 185.7216 | BL76: 252.5488 | BM76: 145.4596 | BN76: 207.3213 | BO76: =G83 -> 2804.8267 | BP76: 152.1158 | BQ76: 215.777 | BR76: 282.3968 | BS76: 248.5352 | BT76: 170.6696 | BU76: 159.9353 | BV76: 194.8232 | BW76: 113.161 | BX76: 300.1932 | BY76: 245.7866 | BZ76: 74.3538 | CA76: 172.4455 | CB76: =H83 -> 2330.193 | CC76: 220.8507 | CD76: 135.4076 | CE76: 208.6698 | CF76: 170.5397 | CG76: 153.6566 | CH76: 152.2126 | CI76: 129.5262 | CJ76: 93.7404 | CK76: 126.3302 | CL76: 192.603 | CM76: 103.0528 | CN76: 125.0324 | CO76: =I83 -> 1811.622
B77: Precio medio a subir | AP77: 58.54632131 | AQ77: 40.1341553 | AR77: 41.77144644 | AS77: 34.95802069 | AT77: 47.68890746 | AU77: 45.16314328 | AV77: 47.37383676 | AW77: 49.31788922 | AX77: 48.37667797 | AY77: 51.89422383 | AZ77: 57.98405431 | BA77: 57.63068719 | BB77: 50.4106099 | BC77: 50.45485827 | BD77: 57.38238689 | BE77: 56.39515918 | BF77: 52.13047153 | BG77: 54.32608668 | BH77: 55.93916791 | BI77: 56.57109648 | BJ77: 61.48746449 | BK77: 63.72294891 | BL77: 69.9976808 | BM77: 63.36721758 | BN77: 56.79798375 | BO77: =G84 -> 57.97133776 | BP77: 64.77924167 | BQ77: 65.15275017 | BR77: 60.27431818 | BS77: 63.28866614 | BT77: 53.06506445 | BU77: 62.44882692 | BV77: 55.15785522 | BW77: 61.69881752 | BX77: 59.59484737 | BY77: 55.34095055 | BZ77: 58.07765459 | CA77: 55.68332133 | CB77: =H84 -> 59.72870424 | CC77: 70.83837523 | CD77: 62.8998643 | CE77: 53.13026383 | CF77: 46.02616818 | CG77: 54.02750608 | CH77: 51.64115636 | CI77: 61.16369612 | CJ77: 60.83009362 | CK77: 61.53600081 | CL77: 63.05516517 | CM77: 56.85422802 | CN77: 89.49575439 | CO77: =I84 -> 62.50653885
B78: Precio medio a bajar | AP78: 15.71142937 | AQ78: 9.470872364 | AR78: 3.302943866 | AS78: 13.47544965 | AT78: 17.10348355 | AU78: 20.96643435 | AV78: 27.85744948 | AW78: 26.32268408 | AX78: 29.99352747 | AY78: 18.04000766 | AZ78: 18.12050452 | BA78: 22.33245614 | BB78: 17.87816248 | BC78: 14.68594423 | BD78: 27.41654153 | BE78: 19.04800323 | BF78: 19.60553032 | BG78: 23.82695885 | BH78: 29.99721099 | BI78: 28.08926218 | BJ78: 26.71387881 | BK78: 35.06400909 | BL78: 30.50206847 | BM78: 24.7285304 | BN78: 22.22487337 | BO78: =G85 -> 24.45667554 | BP78: 29.00005266 | BQ78: 29.59232981 | BR78: 22.06584979 | BS78: 13.594184 | BT78: 18.09693572 | BU78: 26.80875517 | BV78: 25.48244567 | BW78: 23.5914733 | BX78: 19.97369181 | BY78: 22.05453715 | BZ78: 22.73937835 | CA78: 18.18062356 | CB78: =H85 -> 22.16972604 | CC78: 22.07497495 | CD78: 23.06109997 | CE78: 6.440657153 | CF78: 5.35391167 | CG78: 14.17744887 | CH78: 13.48322688 | CI78: 24.86643328 | CJ78: 22.69598828 | CK78: 19.69801504 | CL78: 15.91244524 | CM78: 13.01860706 | CN78: 30.13275967 | CO78: =I85 -> 16.833822
B81: Energía de regulación terciaria y precios medios anuales | C81: 2007 | D81: 2008 | E81: 2009 | F81: 2010 | G81: 2011 | H81: 2012 | I81: 2013 | J81: 2014 | K81: 2015 | L81: 2016 | M81: 2017 | N81: 2018 | O81: 2019
B82: Energía gestionada a subir | F82: 2725.7446 | G82: 2693.8277 | H82: 2991.6152 | I82: 3330.3062 | J82: - | K82: - | L82: - | M82: - | N82: - | O82: -
B83: Energía gestionada a bajar | F83: 2982.6402 | G83: 2804.8267 | H83: 2330.193 | I83: 1811.622 | J83: - | K83: - | L83: - | M83: - | N83: - | O83: -
B84: Precio medio a subir | F84: 50.4106099 | G84: 57.97133776 | H84: 59.72870424 | I84: 62.50653885 | J84: - | K84: - | L84: - | M84: - | N84: - | O84: -
B85: Precio medio a bajar | F85: 17.87816248 | G85: 24.45667554 | H85: 22.16972604 | I85: 16.833822 | J85: - | K85: - | L85: - | M85: - | N85: - | O85: -
B88: Energía de gestión de desvíos y precios medios mensuales | C88: 2007-01-01 | D88: 2007-02-01 | E88: 2007-03-01 | F88: 2007-04-01 | G88: 2007-05-01 | H88: 2007-06-01 | I88: 2007-07-01 | J88: 2007-08-01 | K88: 2007-09-01 | L88: 2007-10-01 | M88: 2007-11-01 | N88: 2007-12-01 | O88: 2007 | P88: 2008-01-01 | Q88: 2008-02-01 | R88: 2008-03-01 | S88: 2008-04-01 | T88: 2008-05-01 | U88: 2008-06-01 | V88: 2008-07-01 | W88: 2008-08-01 | X88: 2008-09-01 | Y88: 2008-10-01 | Z88: 2008-11-01 | AA88: 2008-12-01 | AB88: 2008 | AC88: 2009-01-01 | AD88: 2009-02-01 | AE88: 2009-03-01 | AF88: 2009-04-01 | AG88: 2009-05-01 | AH88: 2009-06-01 | AI88: 2009-07-01 | AJ88: 2009-08-01 | AK88: 2009-09-01 | AL88: 2009-10-01 | AM88: 2009-11-01 | AN88: 2009-12-01 | AO88: 2009 | AP88: 2010-01-31 | AQ88: 2010-02-28 | AR88: 2010-03-31 | AS88: 2010-04-30 | AT88: 2010-05-31 | AU88: 2010-06-30 | AV88: 2010-07-31 | AW88: 2010-08-31 | AX88: 2010-09-30 | AY88: 2010-10-31 | AZ88: 2010-11-30 | BA88: 2010-12-31 | BB88: 2010 | BC88: 2011-01-31 | BD88: 2011-02-28 | BE88: 2011-03-31 | BF88: 2011-04-30 | BG88: 2011-05-31 | BH88: 2011-06-30 | BI88: 2011-07-31 | BJ88: 2011-08-31 | BK88: 2011-09-30 | BL88: 2011-10-31 | BM88: 2011-11-30 | BN88: 2011-12-31 | BO88: 2011 | BP88: 2012-01-31 | BQ88: 2012-02-29 | BR88: 2012-03-31 | BS88: 2012-04-30 | BT88: 2012-05-31 | BU88: 2012-06-30 | BV88: 2012-07-31 | BW88: 2012-08-31 | BX88: 2012-09-30 | BY88: 2012-10-31 | BZ88: 2012-11-30 | CA88: 2012-12-31 | CB88: 2012 | CC88: 2013-01-31 | CD88: 2013-02-28 | CE88: 2013-03-31 | CF88: 2013-04-30 | CG88: 2013-05-31 | CH88: 2013-06-30 | CI88: 2013-07-31 | CJ88: 2013-08-31 | CK88: 2013-09-30 | CL88: 2013-10-31 | CM88: 2013-11-30 | CN88: 2013-12-31 | CO88: 2013
B89: Energía gestionada a subir | AP89: 418.939 | AQ89: 167.4702 | AR89: 300.2732 | AS89: 30.7354 | AT89: 85.7372 | AU89: 92.16 | AV89: 130.2662 | AW89: 153.0204 | AX89: 64.3805 | AY89: 21.7001 | AZ89: 320.6059 | BA89: 413.1391 | BB89: =F96 -> 2198.4272 | BC89: 261.2235 | BD89: 112.0228 | BE89: 106.1044 | BF89: 21.7 | BG89: 130.367 | BH89: 174.6514 | BI89: 46.9915 | BJ89: 315.1456 | BK89: 73.5483 | BL89: 39.2392 | BM89: 247.0587 | BN89: 246.5229 | BO89: =G96 -> 1774.5753 | BP89: 406.2723 | BQ89: 296.8822 | BR89: 156.8769 | BS89: 151.3974 | BT89: 105.7827 | BU89: 227.8451 | BV89: 94.9558 | BW89: 356.6202 | BX89: 36.5292 | BY89: 67.7698 | BZ89: 421.4633 | CA89: 335.901 | CB89: =H96 -> 2658.2959 | CC89: 219.4743 | CD89: 231.1867 | CE89: 173.4352 | CF89: 91.9174 | CG89: 121.3096 | CH89: 113.4507 | CI89: 140.9461 | CJ89: 235.1692 | CK89: 113.0881 | CL89: 145.9054 | CM89: 374.1256 | CN89: 386.6676 | CO89: =I96 -> 2346.6759
B90: Energía gestionada a bajar | AP90: 171.344 | AQ90: 390.1447 | AR90: 208.274 | AS90: 264.7964 | AT90: 175.8885 | AU90: 237.2927 | AV90: 66.286 | AW90: 99.8382 | AX90: 306.9079 | AY90: 426.5652 | AZ90: 134.8268 | BA90: 192.374 | BB90: =F97 -> 2674.5384 | BC90: 191.8707 | BD90: 414.9432 | BE90: 290.4867 | BF90: 269.5728 | BG90: 78.6548 | BH90: 51.2169 | BI90: 71.2493 | BJ90: 17.6198 | BK90: 137.0448 | BL90: 264.1569 | BM90: 83.3118 | BN90: 175.9251 | BO90: =G97 -> 2238.4268 | BP90: 85.6452 | BQ90: 162.7954 | BR90: 152.1473 | BS90: 96.6069 | BT90: 81.0612 | BU90: 64.662 | BV90: 66.9543 | BW90: 10.8 | BX90: 193.2134 | BY90: 233.3021 | BZ90: 13.7088 | CA90: 70.919 | CB90: =H97 -> 1231.8156 | CC90: 181.8346 | CD90: 90.7751 | CE90: 112.4418 | CF90: 124.3272 | CG90: 51.1136 | CH90: 58.6826 | CI90: 58.374 | CJ90: 9.6 | CK90: 34.4513 | CL90: 110.1372 | CM90: 28.9923 | CN90: 44.2702 | CO90: =I97 -> 904.9999
B91: Precio medio a subir | AP91: 51.30349834 | AQ91: 35.47951433 | AR91: 34.96319139 | AS91: 31.26187621 | AT91: 42.3560598 | AU91: 44.65377539 | AV91: 48.16413567 | AW91: 46.7679895 | AX91: 45.47460333 | AY91: 48.79942028 | AZ91: 78.22012047 | BA91: 55.66246489 | BB91: 51.00571597 | BC91: 48.90782242 | BD91: 51.38200545 | BE91: 52.32738492 | BF91: 51.36262765 | BG91: 53.20619758 | BH91: 54.1875484 | BI91: 53.45534682 | BJ91: 58.94607461 | BK91: 56.03647358 | BL91: 62.04634498 | BM91: 56.02332353 | BN91: 53.81578989 | BO91: =G98 -> 54.29540261 | BP91: 61.15461276 | BQ91: 63.63534958 | BR91: 52.33982224 | BS91: 61.27917401 | BT91: 49.2108877 | BU91: 76.18083593 | BV91: 52.63678701 | BW91: 63.79185929 | BX91: 50.26036157 | BY91: 57.64727386 | BZ91: 53.12540318 | CA91: 60.95115344 | CB91: =H98 -> 60.24289665 | CC91: 65.48347515 | CD91: 56.20139372 | CE91: 51.2783454 | CF91: 50.19988892 | CG91: 49.86809453 | CH91: 47.48346568 | CI91: 65.34343334 | CJ91: 56.85428755 | CK91: 58.77726993 | CL91: 60.28785713 | CM91: 58.26256134 | CN91: 74.73767275 | CO91: =I98 -> 60.09732506
B92: Precio medio a bajar | AP92: 20.83929615 | AQ92: 10.46771221 | AR92: 5.620231714 | AS92: 15.2865798 | AT92: 21.33022648 | AU92: 22.8530372 | AV92: 30.45850391 | AW92: 31.01528673 | AX92: 31.93334232 | AY92: 23.89796127 | AZ92: 24.21007092 | BA92: 25.67896899 | BB92: 20.6995867 | BC92: 17.8635886 | BD92: 32.45641579 | BE92: 26.26829008 | BF92: 26.90614038 | BG92: 27.30503784 | BH92: 36.84901429 | BI92: 36.96531306 | BJ92: 37.38622289 | BK92: 38.19527549 | BL92: 35.40207646 | BM92: 26.05263816 | BN92: 29.43117833 | BO92: =G99 -> 29.83335407 | BP92: 35.76018808 | BQ92: 34.12439535 | BR92: 26.24022201 | BS92: 19.34160438 | BT92: 23.18979031 | BU92: 26.71998685 | BV92: 30.84196474 | BW92: 36.73083333 | BX92: 26.2084403 | BY92: 25.74070105 | BZ92: 23.10487716 | CA92: 25.42857993 | CB92: =H99 -> 27.38838562 | CC92: 31.26688903 | CD92: 25.87423093 | CE92: 6.833716198 | CF92: 2.608488328 | CG92: 21.56355823 | CH92: 20.47699659 | CI92: 32.20436067 | CJ92: 25.37333646 | CK92: 31.33011062 | CL92: 27.17499846 | CM92: 14.11347289 | CN92: 53.57240401 | CO92: =I99 -> 22.54954922
B95: Energía de gestión de desvíos y precios medios anuales | C95: 2007 | D95: 2008 | E95: 2009 | F95: 2010 | G95: 2011 | H95: 2012 | I95: 2013 | J95: 2014 | K95: 2015 | L95: 2016 | M95: 2017 | N95: 2018 | O95: 2019
B96: Energía gestionada a subir | F96: 2198.4272 | G96: 1774.5753 | H96: 2658.2959 | I96: 2346.6759 | J96: - | K96: - | L96: - | M96: - | N96: - | O96: -
B97: Energía gestionada a bajar | F97: 2674.5384 | G97: 2238.4268 | H97: 1231.8156 | I97: 904.9999 | J97: - | K97: - | L97: - | M97: - | N97: - | O97: -
B98: Precio medio a subir | F98: 51.00571597 | G98: 54.29540261 | H98: 60.24289665 | I98: 60.09732506 | J98: - | K98: - | L98: - | M98: - | N98: - | O98: -
B99: Precio medio a bajar | F99: 20.6995867 | G99: 29.83335407 | H99: 27.38838562 | I99: 22.54954922 | J99: - | K99: - | L99: - | M99: - | N99: - | O99: -
B102: Energía de restricciones en tiempo real y precios medios mensuales | C102: 2007-01-01 | D102: 2007-02-01 | E102: 2007-03-01 | F102: 2007-04-01 | G102: 2007-05-01 | H102: 2007-06-01 | I102: 2007-07-01 | J102: 2007-08-01 | K102: 2007-09-01 | L102: 2007-10-01 | M102: 2007-11-01 | N102: 2007-12-01 | O102: 2007 | P102: 2008-01-01 | Q102: 2008-02-01 | R102: 2008-03-01 | S102: 2008-04-01 | T102: 2008-05-01 | U102: 2008-06-01 | V102: 2008-07-01 | W102: 2008-08-01 | X102: 2008-09-01 | Y102: 2008-10-01 | Z102: 2008-11-01 | AA102: 2008-12-01 | AB102: 2008 | AC102: 2009-01-01 | AD102: 2009-02-01 | AE102: 2009-03-01 | AF102: 2009-04-01 | AG102: 2009-05-01 | AH102: 2009-06-01 | AI102: 2009-07-01 | AJ102: 2009-08-01 | AK102: 2009-09-01 | AL102: 2009-10-01 | AM102: 2009-11-01 | AN102: 2009-12-01 | AO102: 2009 | AP102: 2010-01-31 | AQ102: 2010-02-28 | AR102: 2010-03-31 | AS102: 2010-04-30 | AT102: 2010-05-31 | AU102: 2010-06-30 | AV102: 2010-07-31 | AW102: 2010-08-31 | AX102: 2010-09-30 | AY102: 2010-10-31 | AZ102: 2010-11-30 | BA102: 2010-12-31 | BB102: 2010 | BC102: 2011-01-31 | BD102: 2011-02-28 | BE102: 2011-03-31 | BF102: 2011-04-30 | BG102: 2011-05-31 | BH102: 2011-06-30 | BI102: 2011-07-31 | BJ102: 2011-08-31 | BK102: 2011-09-30 | BL102: 2011-10-31 | BM102: 2011-11-30 | BN102: 2011-12-31 | BO102: 2011 | BP102: 2012-01-31 | BQ102: 2012-02-29 | BR102: 2012-03-31 | BS102: 2012-04-30 | BT102: 2012-05-31 | BU102: 2012-06-30 | BV102: 2012-07-31 | BW102: 2012-08-31 | BX102: 2012-09-30 | BY102: 2012-10-31 | BZ102: 2012-11-30 | CA102: 2012-12-31 | CB102: 2012 | CC102: 2013-01-31 | CD102: 2013-02-28 | CE102: 2013-03-31 | CF102: 2013-04-30 | CG102: 2013-05-31 | CH102: 2013-06-30 | CI102: 2013-07-31 | CJ102: 2013-08-31 | CK102: 2013-09-30 | CL102: 2013-10-31 | CM102: 2013-11-30 | CN102: 2013-12-31 | CO102: 2013
B103: Energía gestionada a subir | AP103: 104.0862 | AQ103: 73.0581 | AR103: 125.3482 | AS103: 60.5691 | AT103: 73.2906 | AU103: 31.1168 | AV103: 54.4828 | AW103: 50.1013 | AX103: 46.203 | AY103: 165.803 | AZ103: 52.126 | BA103: 50.8392 | BB103: =F110 -> 887.0243 | BC103: 68.6454 | BD103: 27.3744 | BE103: 92.2079 | BF103: 49.2167 | BG103: 52.6684 | BH103: 29.8229 | BI103: 24.2206 | BJ103: 35.5291 | BK103: 24.5561 | BL103: 82.9802 | BM103: 87.6849 | BN103: 82.4633 | BO103: =G110 -> 657.3699 | BP103: 35.5706 | BQ103: 50.0712 | BR103: 67.5283 | BS103: 69.9927 | BT103: 44.7615 | BU103: 70.043 | BV103: 29.4854 | BW103: 57.897 | BX103: 49.3553 | BY103: 66.8281 | BZ103: 38.0447 | CA103: 55.594 | CB103: =H110 -> 635.1718 | CC103: 41.3003 | CD103: 29.8341 | CE103: 92.6575 | CF103: 95.0147 | CG103: 33.7418 | CH103: 27.0409 | CI103: 16.8729 | CJ103: 47.5491 | CK103: 34.8312 | CL103: 45.7015 | CM103: 53.0301 | CN103: 40.758 | CO103: =I110 -> 558.3321
B104: Energía gestionada a bajar | AP104: 132.0453 | AQ104: 150.7334 | AR104: 159.4941 | AS104: 57.5318 | AT104: 29.5175 | AU104: 32.5909 | AV104: 42.9407 | AW104: 20.8107 | AX104: 42.7857 | AY104: 103.2082 | AZ104: 60.8752 | BA104: 68.2989 | BB104: =F111 -> 900.8324 | BC104: 87.8898 | BD104: 28.7318 | BE104: 46.3751 | BF104: 44.627 | BG104: 46.0699 | BH104: 39.1546 | BI104: 23.7358 | BJ104: 39.1116 | BK104: 20.2341 | BL104: 25.7468 | BM104: 61.5461 | BN104: 46.098 | BO104: =G111 -> 509.3206 | BP104: 18.2123 | BQ104: 19.2627 | BR104: 18.7131 | BS104: 80.8347 | BT104: 38.3752 | BU104: 36.238 | BV104: 27.0752 | BW104: 25.7802 | BX104: 62.01 | BY104: 82.815 | BZ104: 31.2724 | CA104: 43.2383 | CB104: =H111 -> 483.8271 | CC104: 99.4863 | CD104: 58.0301 | CE104: 544.5603 | CF104: 559.5229 | CG104: 76.3318 | CH104: 61.5489 | CI104: 13.8866 | CJ104: 50.9002 | CK104: 13.2068 | CL104: 45.1316 | CM104: 60.6258 | CN104: 118.2344 | CO104: =I111 -> 1701.4657
B105: Precio medio a subir | AP105: 113.1480083 | AQ105: 78.42155955 | AR105: 96.03886941 | AS105: 80.34158639 | AT105: 88.24556737 | AU105: 85.57860545 | AV105: 116.5657775 | AW105: 100.9187915 | AX105: 133.1090044 | AY105: 97.72519972 | AZ105: 151.872244 | BA105: 150.404149 | BB105: =F112 -> 104.6922555 | BC105: 120.1626377 | BD105: 105.1830798 | BE105: 112.6348004 | BF105: 102.8362857 | BG105: 141.6637344 | BH105: 144.2529482 | BI105: 92.34593899 | BJ105: 104.8569651 | BK105: 139.2726736 | BL105: 154.8224407 | BM105: 156.9201539 | BN105: 134.593663 | BO105: =G112 -> 129.9514392 | BP105: 162.5332446 | BQ105: 139.7901984 | BR105: 135.2937881 | BS105: 138.441993 | BT105: 158.4519596 | BU105: 133.5115388 | BV105: 156.8885425 | BW105: 154.6960741 | BX105: 200.6010787 | BY105: 585.1247516 | BZ105: 563.864717 | CA105: 259.354977 | CB105: =H112 -> 230.6581604 | CC105: 239.7775072 | CD105: 311.658284 | CE105: 151.0395813 | CF105: 168.8364627 | CG105: 275.072764 | CH105: 208.0629938 | CI105: 160.3535391 | CJ105: 173.0373395 | CK105: 219.7500342 | CL105: 416.8095717 | CM105: 320.6485006 | CN105: 250.7461676 | CO105: =I112 -> 231.0556699
B106: Precio medio a bajar | AP106: 4.792701224 | AQ106: 3.7705393 | AR106: 4.364168201 | AS106: 4.609702406 | AT106: 19.23993639 | AU106: 10.2762646 | AV106: 13.74159293 | AW106: 10.71199311 | AX106: 14.01885503 | AY106: 15.936998 | AZ106: 9.845703525 | BA106: 14.26551435 | BB106: =F113 -> 8.781558517 | BC106: 10.18281819 | BD106: 16.17704358 | BE106: 16.53192067 | BF106: 17.75410697 | BG106: 20.66480877 | BH106: 20.3143065 | BI106: 33.88345022 | BJ106: 15.70259243 | BK106: 23.7841987 | BL106: 18.38767404 | BM106: 14.31462759 | BN106: 22.08448966 | BO106: =G113 -> 17.63919491 | BP106: 18.81804078 | BQ106: 22.9156795 | BR106: 17.57617339 | BS106: 11.32759929 | BT106: 17.37790751 | BU106: 25.65515451 | BV106: 22.14432106 | BW106: 20.01171433 | BX106: 16.87211376 | BY106: 15.35394492 | BZ106: 16.57227667 | CA106: 12.63967155 | CB106: =H113 -> 16.95126369 | CC106: 14.13730775 | CD106: 14.87012354 | CE106: 1.488886114 | CF106: 1.351950302 | CG106: 19.92531703 | CH106: 17.87539452 | CI106: 26.38154478 | CJ106: 28.5797671 | CK106: 22.92308743 | CL106: 20.18174116 | CM106: 14.37444856 | CN106: 14.18024452 | CO106: =I113 -> 7.933398424
B109: Energía de restricciones en tiempo real y precios medios anuales | C109: 2007 | D109: 2008 | E109: 2009 | F109: 2010 | G109: 2011 | H109: 2012 | I109: 2013 | J109: 2014 | K109: 2015 | L109: 2016 | M109: 2017 | N109: 2018 | O109: 2019
B110: Energía gestionada a subir | F110: 887.0243 | G110: 657.3699 | H110: 635.1718 | I110: 558.3321 | J110: - | K110: - | L110: - | M110: - | N110: - | O110: -
B111: Energía gestionada a bajar | F111: 900.8324 | G111: 509.3206 | H111: 483.8271 | I111: 1701.4657 | J111: - | K111: - | L111: - | M111: - | N111: - | O111: -
B112: Precio medio a subir | F112: 104.6922555 | G112: 129.9514392 | H112: 230.6581604 | I112: 231.0556699 | J112: - | K112: - | L112: - | M112: - | N112: - | O112: -
B113: Precio medio a bajar | F113: 8.781558517 | G113: 17.63919491 | H113: 16.95126369 | I113: 7.933398424 | J113: - | K113: - | L113: - | M113: - | N113: - | O113: -
B116: Energía gestionada en los servicios de ajuste mensual | C116: 2007-01-01 | D116: 2007-02-01 | E116: 2007-03-01 | F116: 2007-04-01 | G116: 2007-05-01 | H116: 2007-06-01 | I116: 2007-07-01 | J116: 2007-08-01 | K116: 2007-09-01 | L116: 2007-10-01 | M116: 2007-11-01 | N116: 2007-12-01 | O116: 2007 | P116: 2008-01-01 | Q116: 2008-02-01 | R116: 2008-03-01 | S116: 2008-04-01 | T116: 2008-05-01 | U116: 2008-06-01 | V116: 2008-07-01 | W116: 2008-08-01 | X116: 2008-09-01 | Y116: 2008-10-01 | Z116: 2008-11-01 | AA116: 2008-12-01 | AB116: 2008 | AC116: 2009-01-01 | AD116: 2009-02-01 | AE116: 2009-03-01 | AF116: 2009-04-01 | AG116: 2009-05-01 | AH116: 2009-06-01 | AI116: 2009-07-01 | AJ116: 2009-08-01 | AK116: 2009-09-01 | AL116: 2009-10-01 | AM116: 2009-11-01 | AN116: 2009-12-01 | AO116: 2009 | AP116: 2010-01-31 | AQ116: 2010-02-28 | AR116: 2010-03-31 | AS116: 2010-04-30 | AT116: 2010-05-31 | AU116: 2010-06-30 | AV116: 2010-07-31 | AW116: 2010-08-31 | AX116: 2010-09-30 | AY116: 2010-10-31 | AZ116: 2010-11-30 | BA116: 2010-12-31 | BB116: 2010 | BC116: 2011-01-31 | BD116: 2011-02-28 | BE116: 2011-03-31 | BF116: 2011-04-30 | BG116: 2011-05-31 | BH116: 2011-06-30 | BI116: 2011-07-31 | BJ116: 2011-08-31 | BK116: 2011-09-30 | BL116: 2011-10-31 | BM116: 2011-11-30 | BN116: 2011-12-31 | BO116: 2011 | BP116: 2012-01-31 | BQ116: 2012-02-29 | BR116: 2012-03-31 | BS116: 2012-04-30 | BT116: 2012-05-31 | BU116: 2012-06-30 | BV116: 2012-07-31 | BW116: 2012-08-31 | BX116: 2012-09-30 | BY116: 2012-10-31 | BZ116: 2012-11-30 | CA116: 2012-12-31 | CB116: 2012 | CC116: 2013-01-31 | CD116: 2013-02-28 | CE116: 2013-03-31 | CF116: 2013-04-30 | CG116: 2013-05-31 | CH116: 2013-06-30 | CI116: 2013-07-31 | CJ116: 2013-08-31 | CK116: 2013-09-30 | CL116: 2013-10-31 | CM116: 2013-11-30 | CN116: 2013-12-31 | CO116: 2013
B117: subir
B118: Restricciones garantia suministro | AP118: - | AQ118: - | AR118: - | AS118: - | AT118: - | AU118: - | AV118: - | AW118: - | AX118: - | AY118: - | AZ118: - | BA118: - | BB118: - | BC118: - | BD118: 88.1526 | BE118: 1443.2759 | BF118: 1436.3099 | BG118: 1897.5696 | BH118: 1581.9083 | BI118: 1728.5361 | BJ118: 1214.8078 | BK118: 791.9966 | BL118: 656.1344 | BM118: 1014.076 | BN118: 920.4277 | BO118: =SUM(BC118:BN118) -> 12773.1949 | BP118: 888.8611 | BQ118: 876.3716 | BR118: 1366.9492 | BS118: 605.5805 | BT118: 1308.0091 | BU118: 978.1552 | BV118: 1263.6622 | BW118: 1411.6549 | BX118: 977.8727 | BY118: 912.9793 | BZ118: 922.7407 | CA118: 495.3301 | CB118: =SUM(BP118:CA118) -> 12008.1666 | CC118: - | CD118: 76.6399 | CE118: 21.8684 | CF118: 42.4633 | CG118: 283.6204 | CH118: 739.9203 | CI118: 741.8104 | CJ118: 862.3616 | CK118: 696.4146 | CL118: 344.079 | CM118: 226.1154 | CN118: 50.0934 | CO118: =SUM(CC118:CN118) -> 4085.3867
B119: Restricciones PBF | AP119: =AP47 -> 1246.3556 | AQ119: =AQ47 -> 1114.1255 | AR119: 1556.7549 | AS119: 912.1146 | AT119: 836.9094 | AU119: 595.3996 | AV119: 1034.7743 | AW119: 1045.1475 | AX119: 965.5187 | AY119: 1060.9296 | AZ119: 1114.044 | BA119: 1027.1989 | BB119: 12509.2726 | BC119: 1065.6909 | BD119: 715.6914 | BE119: 804.2683 | BF119: 609.6617 | BG119: 526.2795 | BH119: 560.7567 | BI119: 701.591 | BJ119: 939.7726 | BK119: 870.6166 | BL119: 1049.8657 | BM119: 1167.5563 | BN119: 985.8931 | BO119: 9997.6438 | BP119: 772.5054 | BQ119: 658.5591 | BR119: 733.8913 | BS119: 670.4243 | BT119: 526.6517 | BU119: 507.7034 | BV119: 565.8654 | BW119: 334.6298 | BX119: 190.0212 | BY119: 474.0741 | BZ119: 414.3008 | CA119: 313.4346 | CB119: 6162.0611 | CC119: 422.7793 | CD119: 578.4982 | CE119: 1034.7455 | CF119: 1006.4628 | CG119: 944.2459 | CH119: 762.761 | CI119: 202.0059 | CJ119: 199.3874 | CK119: 210.8465 | CL119: 563.0017 | CM119: 630.2775 | CN119: 684.7898 | CO119: 7239.8015
B120: Regulación secundaria | AP120: =AP61 -> 111.858454 | AQ120: =AQ61 -> 99.514529 | AR120: 140.082268 | AS120: 126.675298 | AT120: 98.163102 | AU120: 97.723265 | AV120: 82.81549 | AW120: 63.901694 | AX120: 68.299137 | AY120: 83.241492 | AZ120: 89.086753 | BA120: 103.729148 | BB120: 1165.09063 | BC120: 85.516715 | BD120: 75.794835 | BE120: 131.80452 | BF120: 115.394439 | BG120: 89.892108 | BH120: 91.209007 | BI120: 78.721741 | BJ120: 99.772314 | BK120: 92.656922 | BL120: 104.534155 | BM120: 122.793892 | BN120: 124.416893 | BO120: 1212.507541 | BP120: 95.829729 | BQ120: 104.23274 | BR120: 137.451841 | BS120: 150.499711 | BT120: 161.227113 | BU120: 102.838663 | BV120: 110.171751 | BW120: 88.11684 | BX120: 103.859213 | BY120: 128.616341 | BZ120: 143.905117 | CA120: 183.616021 | CB120: 1510.36508 | CC120: 171.797297 | CD120: 146.232013 | CE120: 176.833415 | CF120: 192.209758 | CG120: 170.306426 | CH120: 149.065025 | CI120: 124.773447 | CJ120: 125.844602 | CK120: 111.608235 | CL120: 133.014772 | CM120: 153.516442 | CN120: 150.426562 | CO120: 1805.627994
B121: Regulación terciaria | AP121: =AP75 -> 438.9729 | AQ121: =AQ75 -> 229.856 | AR121: 270.0987 | AS121: 129.6391 | AT121: 196.3184 | AU121: 139.5306 | AV121: 174.9237 | AW121: 231.0397 | AX121: 105.3176 | AY121: 101.8513 | AZ121: 360.7269 | BA121: 347.4697 | BB121: 2725.7446 | BC121: 263.3304 | BD121: 158.3059 | BE121: 227.2592 | BF121: 134.2591 | BG121: 293.5372 | BH121: 239.2959 | BI121: 156.8705 | BJ121: 301.056 | BK121: 164.5843 | BL121: 154.0874 | BM121: 279.803 | BN121: 321.4388 | BO121: 2693.8277 | BP121: 321.9637 | BQ121: 218.4861 | BR121: 206.0524 | BS121: 253.2746 | BT121: 223.5064 | BU121: 269.2574 | BV121: 203.0835 | BW121: 285.0872 | BX121: 131.2475 | BY121: 182.7602 | BZ121: 391.3443 | CA121: 305.5519 | CB121: 2991.6152 | CC121: 321.3479 | CD121: 357.9102 | CE121: 221.207 | CF121: 187.1326 | CG121: 252.4547 | CH121: 215.8065 | CI121: 298.5499 | CJ121: 307.2236 | CK121: 235.2833 | CL121: 274.0867 | CM121: 305.5878 | CN121: 353.716 | CO121: 3330.3062
B122: Gestión de desvíos | AP122: =AP89 -> 418.939 | AQ122: =AQ89 -> 167.4702 | AR122: 300.2732 | AS122: 30.7354 | AT122: 85.7372 | AU122: 92.16 | AV122: 130.2662 | AW122: 153.0204 | AX122: 64.3805 | AY122: 21.7001 | AZ122: 320.6059 | BA122: 413.1391 | BB122: 2198.4272 | BC122: 261.2235 | BD122: 112.0228 | BE122: 106.1044 | BF122: 21.7 | BG122: 130.367 | BH122: 174.6514 | BI122: 46.9915 | BJ122: 315.1456 | BK122: 73.5483 | BL122: 39.2392 | BM122: 247.0587 | BN122: 246.5229 | BO122: 1774.5753 | BP122: 406.2723 | BQ122: 296.8822 | BR122: 156.8769 | BS122: 151.3974 | BT122: 105.7827 | BU122: 227.8451 | BV122: 94.9558 | BW122: 356.6202 | BX122: 36.5292 | BY122: 67.7698 | BZ122: 421.4633 | CA122: 335.901 | CB122: 2658.2959 | CC122: 219.4743 | CD122: 231.1867 | CE122: 173.4352 | CF122: 91.9174 | CG122: 121.3096 | CH122: 113.4507 | CI122: 140.9461 | CJ122: 235.1692 | CK122: 113.0881 | CL122: 145.9054 | CM122: 374.1256 | CN122: 386.6676 | CO122: 2346.6759
B123: Restricciones en tiempo real | AP123: =AP103 -> 104.0862 | AQ123: =AQ103 -> 73.0581 | AR123: 125.3482 | AS123: 60.5691 | AT123: 73.2906 | AU123: 31.1168 | AV123: 54.4828 | AW123: 50.1013 | AX123: 46.203 | AY123: 165.803 | AZ123: 52.126 | BA123: 50.8392 | BB123: 887.0243 | BC123: 68.6454 | BD123: 27.3744 | BE123: 92.2079 | BF123: 49.2167 | BG123: 52.6684 | BH123: 29.8229 | BI123: 24.2206 | BJ123: 35.5291 | BK123: 24.5561 | BL123: 82.9802 | BM123: 87.6849 | BN123: 82.4633 | BO123: 657.3699 | BP123: 35.5706 | BQ123: 50.0712 | BR123: 67.5283 | BS123: 69.9927 | BT123: 44.7615 | BU123: 70.043 | BV123: 29.4854 | BW123: 57.897 | BX123: 49.3553 | BY123: 66.8281 | BZ123: 38.0447 | CA123: 55.594 | CB123: 635.1718 | CC123: 41.3003 | CD123: 29.8341 | CE123: 92.6575 | CF123: 95.0147 | CG123: 33.7418 | CH123: 27.0409 | CI123: 16.8729 | CJ123: 47.5491 | CK123: 34.8312 | CL123: 45.7015 | CM123: 53.0301 | CN123: 40.758 | CO123: 558.3321
B124: Total subir | AP124: =SUM(AP119:AP123) -> 2320.212154 | AQ124: =SUM(AQ119:AQ123) -> 1684.024329 | AR124: 2392.557268 | AS124: 1259.733498 | AT124: 1290.418702 | AU124: 955.930265 | AV124: 1477.26249 | AW124: 1543.210594 | AX124: 1249.718937 | AY124: 1433.525492 | AZ124: 1936.589553 | BA124: 1942.376048 | BB124: 19485.55933 | BC124: 1744.406915 | BD124: 1089.189335 | BE124: 1361.64432 | BF124: 930.231939 | BG124: 1092.744208 | BH124: 1095.735907 | BI124: 1008.395341 | BJ124: 1691.275614 | BK124: 1225.962222 | BL124: 1430.706655 | BM124: 1904.896792 | BN124: 1760.734993 | BO124: 16335.92424 | BP124: 1632.141729 | BQ124: 1328.23134 | BR124: 1301.800741 | BS124: 1295.588711 | BT124: 1061.929413 | BU124: 1177.687563 | BV124: 1003.561851 | BW124: 1122.35104 | BX124: 511.012413 | BY124: 920.048541 | BZ124: 1409.058217 | CA124: 1194.097521 | CB124: 13957.50908 | CC124: 1176.699097 | CD124: 1343.661213 | CE124: 1698.878615 | CF124: 1572.737258 | CG124: 1522.058426 | CH124: 1268.124125 | CI124: 783.148247 | CJ124: 915.173902 | CK124: 705.657335 | CL124: 1161.710072 | CM124: 1516.537442 | CN124: 1616.357962 | CO124: 15280.74369
B125: bajar
B126: Restricciones garantia suministro | AP126: - | AQ126: - | AR126: - | AS126: - | AT126: - | AU126: - | AV126: - | AW126: - | AX126: - | AY126: - | AZ126: - | BA126: - | BB126: - | BC126: - | BD126: - | BE126: - | BF126: - | BG126: - | BH126: - | BI126: - | BJ126: - | BK126: - | BL126: - | BM126: - | BN126: - | BO126: - | BP126: - | BQ126: - | BR126: - | BS126: - | BT126: - | BU126: - | BV126: - | BW126: - | BX126: - | BY126: - | BZ126: - | CA126: - | CB126: - | CC126: - | CD126: - | CE126: - | CF126: - | CG126: - | CH126: - | CI126: - | CJ126: - | CK126: - | CL126: - | CM126: - | CN126: - | CO126: -
B127: Restricciones PBF | AP127: =AP48 -> 12.3608 | AQ127: =AQ48 -> 3.7662 | AR127: 10.0455 | AS127: 31.8173 | AT127: 0.1733 | AU127: 17.8649 | AV127: 215.9127 | AW127: 36.1145 | AX127: 47.2595 | AY127: 62.1884 | AZ127: 9.1905 | BB127: 446.6936 | BC127: 0.2365 | BE127: 5.3513 | BF127: 0.2425 | BG127: 2.6549 | BH127: 13.7782 | BI127: 18.1326 | BJ127: 53.4919 | BK127: 3.6821 | BL127: 130.0666 | BM127: 0.175 | BN127: 0.614 | BO127: 228.4256 | BP127: 0.6017 | BQ127: 2.8 | BR127: 8.9879 | BT127: 7.3286 | BU127: 10.9447 | BV127: 14.3815 | BW127: 7.8339 | BX127: 5.1984 | BY127: 2.7624 | BZ127: 0.05 | CB127: 60.8891 | CC127: 4.8518 | CD127: 0.6488 | CE127: 1.6876 | CF127: 0.4573 | CG127: 1.4307 | CH127: 6.0181 | CI127: 27.6272 | CJ127: 56.8951 | CK127: 26.0924 | CL127: 23.3988 | CM127: 2.2016 | CN127: 42.0387 | CO127: 193.3481
B128: Regulación secundaria | AP128: =AP62 -> 134.546976 | AQ128: =AQ62 -> 141.970603 | AR128: 140.098791 | AS128: 102.705868 | AT128: 135.314162 | AU128: 121.521492 | AV128: 150.075622 | AW128: 164.768756 | AX128: 170.058544 | AY128: 155.938918 | AZ128: 161.886162 | BA128: 144.94361 | BB128: 1723.829504 | BC128: 153.223893 | BD128: 150.996311 | BE128: 129.528206 | BF128: 100.377704 | BG128: 147.394674 | BH128: 128.570257 | BI128: 135.588178 | BJ128: 115.535485 | BK128: 125.95819 | BL128: 108.941399 | BM128: 104.671733 | BN128: 113.555614 | BO128: 1514.341644 | BP128: 124.638602 | BQ128: 125.344257 | BR128: 107.943651 | BS128: 82.488203 | BT128: 78.09535 | BU128: 104.375774 | BV128: 115.074921 | BW128: 130.543715 | BX128: 121.41987 | BY128: 118.735159 | BZ128: 87.96219 | CA128: 65.794982 | CB128: 1262.416674 | CC128: 94.28603 | CD128: 81.404216 | CE128: 98.453813 | CF128: 86.494075 | CG128: 76.51819 | CH128: 77.887855 | CI128: 87.973297 | CJ128: 92.756681 | CK128: 100.823924 | CL128: 101.598428 | CM128: 84.130255 | CN128: 87.995928 | CO128: 1070.322692
B129: Regulación terciaria | AP129: =AP76 -> 238.8434 | AQ129: =AQ76 -> 292.6736 | AR129: 309.0188 | AS129: 248.7834 | AT129: 228.6602 | AU129: 246.7493 | AV129: 205.0861 | AW129: 175.5663 | AX129: 281.6858 | AY129: 388.6523 | AZ129: 153.5247 | BA129: 213.3963 | BB129: 2982.6402 | BC129: 206.0456 | BD129: 321.0029 | BE129: 399.6712 | BF129: 295.2901 | BG129: 127.7918 | BH129: 98.3467 | BI129: 235.7071 | BJ129: 116.5237 | BK129: 185.7216 | BL129: 252.5488 | BM129: 145.4596 | BN129: 207.3213 | BO129: 2804.8267 | BP129: 152.1158 | BQ129: 215.777 | BR129: 282.3968 | BS129: 248.5352 | BT129: 170.6696 | BU129: 159.9353 | BV129: 194.8232 | BW129: 113.161 | BX129: 300.1932 | BY129: 245.7866 | BZ129: 74.3538 | CA129: 172.4455 | CB129: 2330.193 | CC129: 220.8507 | CD129: 135.4076 | CE129: 208.6698 | CF129: 170.5397 | CG129: 153.6566 | CH129: 152.2126 | CI129: 129.5262 | CJ129: 93.7404 | CK129: 126.3302 | CL129: 192.603 | CM129: 103.0528 | CN129: 125.0324 | CO129: 1811.622
B130: Gestión de desvíos | AP130: =AP90 -> 171.344 | AQ130: =AQ90 -> 390.1447 | AR130: 208.274 | AS130: 264.7964 | AT130: 175.8885 | AU130: 237.2927 | AV130: 66.286 | AW130: 99.8382 | AX130: 306.9079 | AY130: 426.5652 | AZ130: 134.8268 | BA130: 192.374 | BB130: 2674.5384 | BC130: 191.8707 | BD130: 414.9432 | BE130: 290.4867 | BF130: 269.5728 | BG130: 78.6548 | BH130: 51.2169 | BI130: 71.2493 | BJ130: 17.6198 | BK130: 137.0448 | BL130: 264.1569 | BM130: 83.3118 | BN130: 175.9251 | BO130: 2238.4268 | BP130: 85.6452 | BQ130: 162.7954 | BR130: 152.1473 | BS130: 96.6069 | BT130: 81.0612 | BU130: 64.662 | BV130: 66.9543 | BW130: 10.8 | BX130: 193.2134 | BY130: 233.3021 | BZ130: 13.7088 | CA130: 70.919 | CB130: 1231.8156 | CC130: 181.8346 | CD130: 90.7751 | CE130: 112.4418 | CF130: 124.3272 | CG130: 51.1136 | CH130: 58.6826 | CI130: 58.374 | CJ130: 9.6 | CK130: 34.4513 | CL130: 110.1372 | CM130: 28.9923 | CN130: 44.2702 | CO130: 904.9999
B131: Restricciones en tiempo real | AP131: =AP104 -> 132.0453 | AQ131: =AQ104 -> 150.7334 | AR131: 159.4941 | AS131: 57.5318 | AT131: 29.5175 | AU131: 32.5909 | AV131: 42.9407 | AW131: 20.8107 | AX131: 42.7857 | AY131: 103.2082 | AZ131: 60.8752 | BA131: 68.2989 | BB131: 900.8324 | BC131: 87.8898 | BD131: 28.7318 | BE131: 46.3751 | BF131: 44.627 | BG131: 46.0699 | BH131: 39.1546 | BI131: 23.7358 | BJ131: 39.1116 | BK131: 20.2341 | BL131: 25.7468 | BM131: 61.5461 | BN131: 46.098 | BO131: 509.3206 | BP131: 18.2123 | BQ131: 19.2627 | BR131: 18.7131 | BS131: 80.8347 | BT131: 38.3752 | BU131: 36.238 | BV131: 27.0752 | BW131: 25.7802 | BX131: 62.01 | BY131: 82.815 | BZ131: 31.2724 | CA131: 43.2383 | CB131: 483.8271 | CC131: 99.4863 | CD131: 58.0301 | CE131: 544.5603 | CF131: 559.5229 | CG131: 76.3318 | CH131: 61.5489 | CI131: 13.8866 | CJ131: 50.9002 | CK131: 13.2068 | CL131: 45.1316 | CM131: 60.6258 | CN131: 118.2344 | CO131: 1701.4657
B132: Total bajar | AP132: =SUM(AP127:AP131) -> 689.140476 | AQ132: =SUM(AQ127:AQ131) -> 979.288503 | AR132: 826.931191 | AS132: 705.634768 | AT132: 569.553662 | AU132: 656.019292 | AV132: 680.301122 | AW132: 497.098456 | AX132: 848.697444 | AY132: 1136.553018 | AZ132: 520.303362 | BA132: 619.01281 | BB132: 8728.534104 | BC132: 639.266493 | BD132: 915.674211 | BE132: 871.412506 | BF132: 710.110104 | BG132: 402.566074 | BH132: 331.066657 | BI132: 484.412978 | BJ132: 342.282485 | BK132: 472.64079 | BL132: 781.460499 | BM132: 395.164233 | BN132: 543.514014 | BO132: 7295.341344 | BP132: 381.213602 | BQ132: 525.979357 | BR132: 570.188751 | BS132: 508.465003 | BT132: 375.52995 | BU132: 376.155774 | BV132: 418.309121 | BW132: 288.118815 | BX132: 682.03487 | BY132: 683.401259 | BZ132: 207.34719 | CA132: 352.397782 | CB132: 5369.141474 | CC132: 601.30943 | CD132: 366.265816 | CE132: 965.813313 | CF132: 941.341175 | CG132: 359.05089 | CH132: 356.350055 | CI132: 317.387297 | CJ132: 303.892381 | CK132: 300.904624 | CL132: 472.869028 | CM132: 279.002755 | CN132: 417.571628 | CO132: 5681.758392
B133: volumen
B134: Restricciones garantia suministro | AP134: =AP118 -> - | AQ134: =AQ118 -> - | AR134: - | AS134: - | AT134: - | AU134: - | AV134: - | AW134: - | AX134: - | AY134: - | AZ134: - | BA134: - | BB134: - | BC134: - | BD134: 88.1526 | BE134: 1443.2759 | BF134: 1436.3099 | BG134: 1897.5696 | BH134: 1581.9083 | BI134: 1728.5361 | BJ134: 1214.8078 | BK134: 791.9966 | BL134: 656.1344 | BM134: 1014.076 | BN134: 920.4277 | BO134: 12773.1949 | BP134: 888.8611 | BQ134: 876.3716 | BR134: 1366.9492 | BS134: 605.5805 | BT134: 1308.0091 | BU134: 978.1552 | BV134: 1263.6622 | BW134: 1411.6549 | BX134: 977.8727 | BY134: 912.9793 | BZ134: 922.7407 | CA134: 495.3301 | CB134: 12008.1666 | CC134: - | CD134: 76.6399 | CE134: 21.8684 | CF134: 42.4633 | CG134: 283.6204 | CH134: 739.9203 | CI134: 741.8104 | CJ134: 862.3616 | CK134: 696.4146 | CL134: 344.079 | CM134: 226.1154 | CN134: 50.0934 | CO134: 4085.3867
B135: Restricciones PBF | AP135: =AP119+AP127 -> 1258.7164 | AQ135: =AQ119+AQ127 -> 1117.8917 | AR135: 1566.8004 | AS135: 943.9319 | AT135: 837.0827 | AU135: 613.2645 | AV135: 1250.687 | AW135: 1081.262 | AX135: 1012.7782 | AY135: 1123.118 | AZ135: 1123.2345 | BA135: 1027.1989 | BB135: 12955.9662 | BC135: 1065.9274 | BD135: 715.6914 | BE135: 809.6196 | BF135: 609.9042 | BG135: 528.9344 | BH135: 574.5349 | BI135: 719.7236 | BJ135: 993.2645 | BK135: 874.2987 | BL135: 1179.9323 | BM135: 1167.7313 | BN135: 986.5071 | BO135: 10226.0694 | BP135: 773.1071 | BQ135: 661.3591 | BR135: 742.8792 | BS135: 670.4243 | BT135: 533.9803 | BU135: 518.6481 | BV135: 580.2469 | BW135: 342.4637 | BX135: 195.2196 | BY135: 476.8365 | BZ135: 414.3508 | CA135: 313.4346 | CB135: 6222.9502 | CC135: 427.6311 | CD135: 579.147 | CE135: 1036.4331 | CF135: 1006.9201 | CG135: 945.6766 | CH135: 768.7791 | CI135: 229.6331 | CJ135: 256.2825 | CK135: 236.9389 | CL135: 586.4005 | CM135: 632.4791 | CN135: 726.8285 | CO135: 7433.1496
B136: Regulación secundaria | AP136: =AP120+AP128 -> 246.40543 | AQ136: 241.485132 | AR136: 280.181059 | AS136: 229.381166 | AT136: 233.477264 | AU136: 219.244757 | AV136: 232.891112 | AW136: 228.67045 | AX136: 238.357681 | AY136: 239.18041 | AZ136: 250.972915 | BA136: 248.672758 | BB136: 2888.920134 | BC136: 238.740608 | BD136: 226.791146 | BE136: 261.332726 | BF136: 215.772143 | BG136: 237.286782 | BH136: 219.779264 | BI136: 214.309919 | BJ136: 215.307799 | BK136: 218.615112 | BL136: 213.475554 | BM136: 227.465625 | BN136: 237.972507 | BO136: 2726.849185 | BP136: 220.468331 | BQ136: 229.576997 | BR136: 245.395492 | BS136: 232.987914 | BT136: 239.322463 | BU136: 207.214437 | BV136: 225.246672 | BW136: 218.660555 | BX136: 225.279083 | BY136: 247.3515 | BZ136: 231.867307 | CA136: 249.411003 | CB136: 2772.781754 | CC136: 266.083327 | CD136: 227.636229 | CE136: 275.287228 | CF136: 278.703833 | CG136: 246.824616 | CH136: 226.95288 | CI136: 212.746744 | CJ136: 218.601283 | CK136: 212.432159 | CL136: 234.6132 | CM136: 237.646697 | CN136: 238.42249 | CO136: 2875.950686
B137: Regulación terciaria | AP137: =AP121+AP129 -> 677.8163 | AQ137: 522.5296 | AR137: 579.1175 | AS137: 378.4225 | AT137: 424.9786 | AU137: 386.2799 | AV137: 380.0098 | AW137: 406.606 | AX137: 387.0034 | AY137: 490.5036 | AZ137: 514.2516 | BA137: 560.866 | BB137: 5708.3848 | BC137: 469.376 | BD137: 479.3088 | BE137: 626.9304 | BF137: 429.5492 | BG137: 421.329 | BH137: 337.6426 | BI137: 392.5776 | BJ137: 417.5797 | BK137: 350.3059 | BL137: 406.6362 | BM137: 425.2626 | BN137: 528.7601 | BO137: 5498.6544 | BP137: 474.0795 | BQ137: 434.2631 | BR137: 488.4492 | BS137: 501.8098 | BT137: 394.176 | BU137: 429.1927 | BV137: 397.9067 | BW137: 398.2482 | BX137: 431.4407 | BY137: 428.5468 | BZ137: 465.6981 | CA137: 477.9974 | CB137: 5321.8082 | CC137: 542.1986 | CD137: 493.3178 | CE137: 429.8768 | CF137: 357.6723 | CG137: 406.1113 | CH137: 368.0191 | CI137: 428.0761 | CJ137: 400.964 | CK137: 361.6135 | CL137: 466.6897 | CM137: 408.6406 | CN137: 478.7484 | CO137: 5141.9282
B138: Gestión de desvíos | AP138: 590.283 | AQ138: 557.6149 | AR138: 508.5472 | AS138: 295.5318 | AT138: 261.6257 | AU138: 329.4527 | AV138: 196.5522 | AW138: 252.8586 | AX138: 371.2884 | AY138: 448.2653 | AZ138: 455.4327 | BA138: 605.5131 | BB138: 4872.9656 | BC138: 453.0942 | BD138: 526.966 | BE138: 396.5911 | BF138: 291.2728 | BG138: 209.0218 | BH138: 225.8683 | BI138: 118.2408 | BJ138: 332.7654 | BK138: 210.5931 | BL138: 303.3961 | BM138: 330.3705 | BN138: 422.448 | BO138: 4013.0021 | BP138: 491.9175 | BQ138: 459.6776 | BR138: 309.0242 | BS138: 248.0043 | BT138: 186.8439 | BU138: 292.5071 | BV138: 161.9101 | BW138: 367.4202 | BX138: 229.7426 | BY138: 301.0719 | BZ138: 435.1721 | CA138: 406.82 | CB138: 3890.1115 | CC138: 401.3089 | CD138: 321.9618 | CE138: 285.877 | CF138: 216.2446 | CG138: 172.4232 | CH138: 172.1333 | CI138: 199.3201 | CJ138: 244.7692 | CK138: 147.5394 | CL138: 256.0426 | CM138: 403.1179 | CN138: 430.9378 | CO138: 3251.6758
B139: Restricciones en tiempo real | AP139: 236.1315 | AQ139: 223.7915 | AR139: 284.8423 | AS139: 118.1009 | AT139: 102.8081 | AU139: 63.7077 | AV139: 97.4235 | AW139: 70.912 | AX139: 88.9887 | AY139: 269.0112 | AZ139: 113.0012 | BA139: 119.1381 | BB139: 1787.8567 | BC139: 156.5352 | BD139: 56.1062 | BE139: 138.583 | BF139: 93.8437 | BG139: 98.7383 | BH139: 68.9775 | BI139: 47.9564 | BJ139: 74.6407 | BK139: 44.7902 | BL139: 108.727 | BM139: 149.231 | BN139: 128.5613 | BO139: 1166.6905 | BP139: 53.7829 | BQ139: 69.3339 | BR139: 86.2414 | BS139: 150.8274 | BT139: =BT123+BT131 -> 83.1367 | BU139: 106.281 | BV139: 56.5606 | BW139: 83.6772 | BX139: 111.3653 | BY139: 149.6431 | BZ139: 69.3171 | CA139: 98.8323 | CB139: 1118.9989 | CC139: 140.7866 | CD139: 87.8642 | CE139: 637.2178 | CF139: 654.5376 | CG139: 110.0736 | CH139: 88.5898 | CI139: 30.7595 | CJ139: 98.4493 | CK139: 48.038 | CL139: 90.8331 | CM139: 113.6559 | CN139: 158.9924 | CO139: 2259.7978
B140: Volumen de energía | AP140: =SUM(AP135:AP139) -> 3009.35263 | AQ140: =SUM(AQ135:AQ139) -> 2663.312832 | AR140: 3219.488459 | AS140: 1965.368266 | AT140: 1859.972364 | AU140: 1611.949557 | AV140: 2157.563612 | AW140: 2040.30905 | AX140: 2098.416381 | AY140: 2570.07851 | AZ140: 2456.892915 | BA140: 2561.388858 | BB140: 28214.09343 | BC140: 2383.673408 | BD140: 2004.863546 | BE140: 2233.056826 | BF140: 1640.342043 | BG140: 1495.310282 | BH140: 1426.802564 | BI140: 1492.808319 | BJ140: 2033.558099 | BK140: 1698.603012 | BL140: 2212.167154 | BM140: 2300.061025 | BN140: 2304.249007 | BO140: 23631.26558 | BP140: 2013.355331 | BQ140: 1854.210697 | BR140: 1871.989492 | BS140: 1804.053714 | BT140: 1437.459363 | BU140: 1553.843337 | BV140: 1421.870972 | BW140: 1410.469855 | BX140: 1193.047283 | BY140: 1603.4498 | BZ140: 1616.405407 | CA140: 1546.495303 | CB140: 19326.65055 | CC140: 1778.008527 | CD140: 1709.927029 | CE140: 2664.691928 | CF140: 2514.078433 | CG140: 1881.109316 | CH140: 1624.47418 | CI140: 1100.535544 | CJ140: 1219.066283 | CK140: 1006.561959 | CL140: 1634.5791 | CM140: 1795.540197 | CN140: 2033.92959 | CO140: 20962.50209
B143: Energía gestionada en los servicios de ajuste anual | C143: 2007 | D143: 2008 | E143: 2009 | F143: 2010 | G143: 2011 | H143: 2012 | I143: 2013 | J143: 2014 | K143: 2015 | L143: 2016 | M143: 2017 | N143: 2018 | O143: 2019
B144: subir
B145: Restricciones garantia suministro | F145: - | G145: 12773.1949 | H145: 12008.1666 | I145: 4085.3867 | J145: - | K145: - | L145: - | M145: - | N145: - | O145: -
B146: Restricciones PBF | F146: =F54 -> 12509.2726 | G146: =G54 -> 9997.6438 | H146: 6162.0611 | I146: 7239.8015 | J146: - | K146: - | L146: - | M146: - | N146: - | O146: -
B147: Regulación secundaria | F147: =F68 -> 1165.09063 | G147: =G68 -> 1212.507541 | H147: 1510.36508 | I147: 1805.627994 | J147: - | K147: - | L147: - | M147: - | N147: - | O147: -
B148: Regulación terciaria | F148: =F82 -> 2725.7446 | G148: =G82 -> 2693.8277 | H148: 2991.6152 | I148: 3330.3062 | J148: - | K148: - | L148: - | M148: - | N148: - | O148: -
B149: Gestión de desvíos | F149: =F96 -> 2198.4272 | G149: =G96 -> 1774.5753 | H149: 2658.2959 | I149: 2346.6759 | J149: - | K149: - | L149: - | M149: - | N149: - | O149: -
B150: Restricciones en tiempo real | F150: =F110 -> 887.0243 | G150: =G110 -> 657.3699 | H150: 635.1718 | I150: 558.3321 | J150: - | K150: - | L150: - | M150: - | N150: - | O150: -
B151: Total subir
B152: bajar
B153: Restricciones garantia suministro | F153: - | G153: - | H153: - | I153: - | J153: - | K153: - | L153: - | M153: - | N153: - | O153: -
B154: Restricciones PBF | F154: =F55 -> 446.6936 | G154: =G55 -> 228.4256 | H154: 60.8891 | I154: 193.3481 | J154: - | K154: - | L154: - | M154: - | N154: =N55 -> - | O154: -
B155: Regulación secundaria | F155: =F69 -> 1723.829504 | G155: =G69 -> 1514.341644 | H155: 1262.416674 | I155: 1070.322692 | J155: - | K155: - | L155: - | M155: - | N155: =N69 -> - | O155: -
B156: Regulación terciaria | F156: =F83 -> 2982.6402 | G156: =G83 -> 2804.8267 | H156: 2330.193 | I156: 1811.622 | J156: - | K156: - | L156: - | M156: - | N156: =N83 -> - | O156: -
B157: Gestión de desvíos | F157: =F97 -> 2674.5384 | G157: =G97 -> 2238.4268 | H157: 1231.8156 | I157: 904.9999 | J157: - | K157: - | L157: - | M157: - | N157: =N97 -> - | O157: -
B158: Restricciones en tiempo real | F158: =F111 -> 900.8324 | G158: =G111 -> 509.3206 | H158: 483.8271 | I158: 1701.4657 | J158: - | K158: - | L158: - | M158: - | N158: =N111 -> - | O158: -
B159: Total bajar
B160: volumen
B161: Restricciones garantia suministro | F161: =F145 -> - | G161: =G145 -> 12773.1949 | H161: 12008.1666 | I161: 4085.3867 | J161: =J145 -> - | K161: - | L161: - | M161: - | N161: - | O161: -
B162: Restricciones PBF | F162: =F146+F154 -> 12955.9662 | G162: =G146+G154 -> 10226.0694 | H162: 6222.9502 | I162: 7433.1496 | J162: - | K162: - | L162: - | M162: - | N162: - | O162: -
B163: Regulación secundaria | F163: =F147+F155 -> 2888.920134 | G163: 2726.849185 | H163: 2772.781754 | I163: 2875.950686 | J163: - | K163: - | L163: - | M163: - | N163: - | O163: -
B164: Regulación terciaria | F164: 5708.3848 | G164: 5498.6544 | H164: 5321.8082 | I164: 5141.9282 | J164: - | K164: - | L164: - | M164: - | N164: - | O164: -
B165: Gestión de desvíos | F165: 4872.9656 | G165: 4013.0021 | H165: 3890.1115 | I165: 3251.6758 | J165: - | K165: - | L165: - | M165: - | N165: - | O165: -
B166: Restricciones en tiempo real | F166: 1787.8567 | G166: 1166.6905 | H166: 1118.9989 | I166: 2259.7978 | J166: - | K166: - | L166: - | M166: - | N166: - | O166: -
B167: Volumen de energía
B170: Reserva adicional a subir mensual | C170: 2007-01-01 | D170: 2007-02-01 | E170: 2007-03-01 | F170: 2007-04-01 | G170: 2007-05-01 | H170: 2007-06-01 | I170: 2007-07-01 | J170: 2007-08-01 | K170: 2007-09-01 | L170: 2007-10-01 | M170: 2007-11-01 | N170: 2007-12-01 | O170: 2007 | P170: 2008-01-01 | Q170: 2008-02-01 | R170: 2008-03-01 | S170: 2008-04-01 | T170: 2008-05-01 | U170: 2008-06-01 | V170: 2008-07-01 | W170: 2008-08-01 | X170: 2008-09-01 | Y170: 2008-10-01 | Z170: 2008-11-01 | AA170: 2008-12-01 | AB170: 2008 | AC170: 2009-01-01 | AD170: 2009-02-01 | AE170: 2009-03-01 | AF170: 2009-04-01 | AG170: 2009-05-01 | AH170: 2009-06-01 | AI170: 2009-07-01 | AJ170: 2009-08-01 | AK170: 2009-09-01 | AL170: 2009-10-01 | AM170: 2009-11-01 | AN170: 2009-12-01 | AO170: 2009 | AP170: 2010-01-31 | AQ170: 2010-02-28 | AR170: 2010-03-31 | AS170: 2010-04-30 | AT170: 2010-05-31 | AU170: 2010-06-30 | AV170: 2010-07-31 | AW170: 2010-08-31 | AX170: 2010-09-30 | AY170: 2010-10-31 | AZ170: 2010-11-30 | BA170: 2010-12-31 | BB170: 2010 | BC170: 2011-01-31 | BD170: 2011-02-28 | BE170: 2011-03-31 | BF170: 2011-04-30 | BG170: 2011-05-31 | BH170: 2011-06-30 | BI170: 2011-07-31 | BJ170: 2011-08-31 | BK170: 2011-09-30 | BL170: 2011-10-31 | BM170: 2011-11-30 | BN170: 2011-12-31 | BO170: 2011 | BP170: 2012-01-31 | BQ170: 2012-02-29 | BR170: 2012-03-31 | BS170: 2012-04-30 | BT170: 2012-05-31 | BU170: 2012-06-30 | BV170: 2012-07-31 | BW170: 2012-08-31 | BX170: 2012-09-30 | BY170: 2012-10-31 | BZ170: 2012-11-30 | CA170: 2012-12-31 | CB170: 2012 | CC170: 2013-01-31 | CD170: 2013-02-28 | CE170: 2013-03-31 | CF170: 2013-04-30 | CG170: 2013-05-31 | CH170: 2013-06-30 | CI170: 2013-07-31 | CJ170: 2013-08-31 | CK170: 2013-09-30 | CL170: 2013-10-31 | CM170: 2013-11-30 | CN170: 2013-12-31 | CO170: 2013
B171: Energía gestionada a subir | AP171: - | AQ171: - | AR171: - | AS171: - | AT171: - | AU171: - | AV171: - | AW171: - | AX171: - | AY171: - | AZ171: - | BA171: - | BB171: - | BC171: - | BD171: - | BE171: - | BF171: - | BG171: - | BH171: - | BI171: - | BJ171: - | BK171: - | BL171: - | BM171: - | BN171: - | BO171: - | BP171: - | BQ171: - | BR171: - | BS171: - | BT171: 31.2027 | BU171: 4.7 | BV171: 5.2186 | BW171: 7.896 | BX171: 41.8694 | BY171: 285.3611 | BZ171: 661.485 | CA171: 597.9371 | CB171: =H176 -> 1635.6699 | CC171: 364.8037 | CD171: 273.7203 | CE171: 354.8549 | CF171: 251.0849 | CG171: 106.2975 | CH171: 0 | CI171: 1.5 | CJ171: 43.448 | CK171: 134.6922 | CL171: 440.0684 | CM171: 778.8737 | CN171: 260.5668 | CO171: =I176 -> 3009.9104
B172: Precio medio a subir | AP172: - | AQ172: - | AR172: - | AS172: - | AT172: - | AU172: - | AV172: - | AW172: - | AX172: - | AY172: - | AZ172: - | BA172: - | BB172: - | BC172: - | BD172: - | BE172: - | BF172: - | BG172: - | BH172: - | BI172: - | BJ172: - | BK172: - | BL172: - | BM172: - | BN172: - | BO172: - | BP172: - | BQ172: - | BR172: - | BS172: - | BT172: 20.01771802 | BU172: 3.818723404 | BV172: 3.865329782 | BW172: 15.12049139 | BX172: 19.69409449 | BY172: 60.46237182 | BZ172: 47.21184567 | CA172: 24.76168124 | CB172: =H177 -> 39.67558632 | CC172: 24.49297866 | CD172: 31.39343768 | CE172: 49.3207646 | CF172: 59.91673163 | CG172: 38.90397159 | CH172: - | CI172: 9.98 | CJ172: 26.38650018 | CK172: 32.15253586 | CL172: 43.39225155 | CM172: 32.0828915 | CN172: 28.35156674 | CO172: =I177 -> 36.93568735
B175: Reserva adicional a subir anual | C175: 2007 | D175: 2008 | E175: 2009 | F175: 2010 | G175: 2011 | H175: 2012 | I175: 2013 | J175: 2014 | K175: 2015 | L175: 2016 | M175: 2017 | N175: 2018 | O175: 2019
B176: Energía gestionada a subir | F176: - | G176: - | H176: 1635.6699 | I176: 3009.9104 | J176: - | K176: - | L176: - | M176: - | N176: - | O176: -
B177: Precio medio a subir | F177: - | G177: - | H177: 39.67558632 | I177: 36.93568735 | J177: - | K177: - | L177: - | M177: - | N177: - | O177: -
B180: Banda mensual | C180: 2007-01-01 | D180: 2007-02-01 | E180: 2007-03-01 | F180: 2007-04-01 | G180: 2007-05-01 | H180: 2007-06-01 | I180: 2007-07-01 | J180: 2007-08-01 | K180: 2007-09-01 | L180: 2007-10-01 | M180: 2007-11-01 | N180: 2007-12-01 | O180: 2007 | P180: 2008-01-01 | Q180: 2008-02-01 | R180: 2008-03-01 | S180: 2008-04-01 | T180: 2008-05-01 | U180: 2008-06-01 | V180: 2008-07-01 | W180: 2008-08-01 | X180: 2008-09-01 | Y180: 2008-10-01 | Z180: 2008-11-01 | AA180: 2008-12-01 | AB180: 2008 | AC180: 2009-01-01 | AD180: 2009-02-01 | AE180: 2009-03-01 | AF180: 2009-04-01 | AG180: 2009-05-01 | AH180: 2009-06-01 | AI180: 2009-07-01 | AJ180: 2009-08-01 | AK180: 2009-09-01 | AL180: 2009-10-01 | AM180: 2009-11-01 | AN180: 2009-12-01 | AO180: 2009 | AP180: 2010-01-31 | AQ180: 2010-02-28 | AR180: 2010-03-31 | AS180: 2010-04-30 | AT180: 2010-05-31 | AU180: 2010-06-30 | AV180: 2010-07-31 | AW180: 2010-08-31 | AX180: 2010-09-30 | AY180: 2010-10-31 | AZ180: 2010-11-30 | BA180: 2010-12-31 | BB180: 2010 | BC180: 2011-01-31 | BD180: 2011-02-28 | BE180: 2011-03-31 | BF180: 2011-04-30 | BG180: 2011-05-31 | BH180: 2011-06-30 | BI180: 2011-07-31 | BJ180: 2011-08-31 | BK180: 2011-09-30 | BL180: 2011-10-31 | BM180: 2011-11-30 | BN180: 2011-12-31 | BO180: 2011 | BP180: 2012-01-31 | BQ180: 2012-02-29 | BR180: 2012-03-31 | BS180: 2012-04-30 | BT180: 2012-05-31 | BU180: 2012-06-30 | BV180: 2012-07-31 | BW180: 2012-08-31 | BX180: 2012-09-30 | BY180: 2012-10-31 | BZ180: 2012-11-30 | CA180: 2012-12-31 | CB180: 2012 | CC180: 2013-01-31 | CD180: 2013-02-28 | CE180: 2013-03-31 | CF180: 2013-04-30 | CG180: 2013-05-31 | CH180: 2013-06-30 | CI180: 2013-07-31 | CJ180: 2013-08-31 | CK180: 2013-09-30 | CL180: 2013-10-31 | CM180: 2013-11-30 | CN180: 2013-12-31 | CO180: 2013
B181: Potencia subir | AP181: 748.1841398 | AQ181: 751.2559524 | AR181: 731.1332436 | AS181: 714.0666667 | AT181: 705.2567204 | AU181: 709.7583333 | AV181: 743.0201613 | AW181: 734.3629032 | AX181: 723.3291667 | AY181: 699.2993289 | AZ181: 721.7319444 | BA181: 745.3857527 | BB181: =F187 -> 727.1406393 | BC181: 736.2083333 | BD181: 728.0223214 | BE181: 723.8869448 | BF181: 697.8361111 | BG181: 703.2432796 | BH181: 714.9333333 | BI181: 711.3615591 | BJ181: 724.7701613 | BK181: 727.3833333 | BL181: 696.1852349 | BM181: 716.3111111 | BN181: 714.9758065 | BO181: =G187 -> 716.1834475 | BP181: 728.9354839 | BQ181: 756.0057471 | BR181: 706.6043069 | BS181: 690.9055556 | BT181: 687.5362903 | BU181: 694.3861111 | BV181: 693.1357527 | BW181: 718.9126344 | BX181: 701.5319444 | BY181: 702.2053691 | BZ181: 709.0986111 | CA181: 719.1532258 | CB181: =H187 -> 708.8869536 | CC181: 722.3158602 | CD181: 703.2708333 | CE181: 697.9273217 | CF181: 679.3208333 | CG181: 678.9126344 | CH181: 676.8555556 | CI181: 698.0201613 | CJ181: 693.6801075 | CK181: 666.4527778 | CL181: 685.7167785 | CM181: 697.7763889 | CN181: 695.7715054 | CO181: =I187 -> 691.3586758
B182: Potencia bajar | AP182: 542.1545699 | AQ182: 549.0580357 | AR182: 539.0834455 | AS182: 524.4416667 | AT182: 513.5604839 | AU182: 520.2527778 | AV182: 548.0120968 | AW182: 529.0026882 | AX182: 523.9486111 | AY182: 514.3597315 | AZ182: 531.4208333 | BA182: 538.8561828 | BB182: =F188 -> 531.097032 | BC182: 540.2768817 | BD182: 543.0565476 | BE182: 537.192463 | BF182: 511.3263889 | BG182: 514.7526882 | BH182: 522.7222222 | BI182: 532.0268817 | BJ182: 527.0873656 | BK182: 525.1819444 | BL182: 513.9315436 | BM182: 523.6388889 | BN182: 526.4086022 | BO182: =G188 -> 526.3908676 | BP182: 539.9005376 | BQ182: 549.9827586 | BR182: 530.3351279 | BS182: 510.3486111 | BT182: 510.2258065 | BU182: 516.0625 | BV182: 522.5295699 | BW182: 524.6061828 | BX182: 515.3555556 | BY182: 507.9234899 | BZ182: 520.7138889 | CA182: 520.9610215 | CB182: =H188 -> 522.3331056 | CC182: 529.3064516 | CD182: 526.5089286 | CE182: 516.9959623 | CF182: 504.975 | CG182: 506.0255376 | CH182: 506.3375 | CI182: 519.8454301 | CJ182: 509.6129032 | CK182: 491.8416667 | CL182: 505.5248322 | CM182: 509.2 | CN182: 516.1438172 | CO182: =I188 -> 511.8342466
B183: Precio medio | AP183: 22.46874354 | AQ183: 21.69541767 | AR183: 21.14542428 | AS183: 9.199254838 | AT183: 10.72709642 | AU183: 8.903432184 | AV183: 7.371986897 | AW183: 8.574851683 | AX183: 10.34310236 | AY183: 17.54099139 | AZ183: 17.9491055 | BA183: 20.32619108 | BB183: 14.71631043 | BC183: 16.10079747 | BD183: 9.554443778 | BE183: 9.023380212 | BF183: 9.698904613 | BG183: 10.8710424 | BH183: 12.32066561 | BI183: 13.29002151 | BJ183: 16.02708259 | BK183: 19.25421082 | BL183: 26.97401453 | BM183: 28.41068011 | BN183: 18.76447344 | BO183: =G189 -> 15.8733909 | BP183: 19.70920175 | BQ183: 25.29155775 | BR183: 28.54101065 | BS183: 40.36729091 | BT183: 22.30191026 | BU183: 22.58180816 | BV183: 21.47453224 | BW183: 28.66385022 | BX183: 33.52762497 | BY183: 36.56552946 | BZ183: 32.18342613 | CA183: 26.41529841 | CB183: 28.05767823 | CC183: 32.41057332 | CD183: 32.67322323 | CE183: 36.42895093 | CF183: 28.52025416 | CG183: 20.77698021 | CH183: 30.34919404 | CI183: 26.83415193 | CJ183: 26.29147137 | CK183: 25.43311745 | CL183: 30.12122383 | CM183: 26.1115121 | CN183: 38.19459173 | CO183: 29.55221243
B186: Banda anual | C186: 2007 | D186: 2008 | E186: 2009 | F186: 2010 | G186: 2011 | H186: 2012 | I186: 2013 | J186: 2014 | K186: 2015 | L186: 2016 | M186: 2017 | N186: 2018 | O186: 2019
B187: Potencia subir | F187: 727.1406393 | G187: 716.1834475 | H187: 708.8869536 | I187: 691.3586758 | J187: - | K187: - | L187: - | M187: - | N187: - | O187: -
B188: Potencia bajar | F188: 531.097032 | G188: 526.3908676 | H188: 522.3331056 | I188: 511.8342466 | J188: - | K188: - | L188: - | M188: - | N188: - | O188: -
B189: Precio medio | F189: 14.71631043 | G189: 15.8733909 | H189: 28.05767823 | I189: 29.55221243 | J189: - | K189: - | L189: - | M189: - | N189: - | O189: -
B193: Servicios transfronterizos de Balance
B194: Energía y precios ofertados desde el sistema eléctrico español y activado por operadores externos | C194: 2007-01-01 | D194: 2007-02-01 | E194: 2007-03-01 | F194: 2007-04-01 | G194: 2007-05-01 | H194: 2007-06-01 | I194: 2007-07-01 | J194: 2007-08-01 | K194: 2007-09-01 | L194: 2007-10-01 | M194: 2007-11-01 | N194: 2007-12-01 | O194: 2007 | P194: 2008-01-01 | Q194: 2008-02-01 | R194: 2008-03-01 | S194: 2008-04-01 | T194: 2008-05-01 | U194: 2008-06-01 | V194: 2008-07-01 | W194: 2008-08-01 | X194: 2008-09-01 | Y194: 2008-10-01 | Z194: 2008-11-01 | AA194: 2008-12-01 | AB194: 2008 | AC194: 2009-01-01 | AD194: 2009-02-01 | AE194: 2009-03-01 | AF194: 2009-04-01 | AG194: 2009-05-01 | AH194: 2009-06-01 | AI194: 2009-07-01 | AJ194: 2009-08-01 | AK194: 2009-09-01 | AL194: 2009-10-01 | AM194: 2009-11-01 | AN194: 2009-12-01 | AO194: 2009 | AP194: 2010-01-31 | AQ194: 2010-02-28 | AR194: 2010-03-31 | AS194: 2010-04-30 | AT194: 2010-05-31 | AU194: 2010-06-30 | AV194: 2010-07-31 | AW194: 2010-08-31 | AX194: 2010-09-30 | AY194: 2010-10-31 | AZ194: 2010-11-30 | BA194: 2010-12-31 | BB194: 2010 | BC194: 2011-01-31 | BD194: 2011-02-28 | BE194: 2011-03-31 | BF194: 2011-04-30 | BG194: 2011-05-31 | BH194: 2011-06-30 | BI194: 2011-07-31 | BJ194: 2011-08-31 | BK194: 2011-09-30 | BL194: 2011-10-31 | BM194: 2011-11-30 | BN194: 2011-12-31 | BO194: 2011 | BP194: 2012-01-31 | BQ194: 2012-02-29 | BR194: 2012-03-31 | BS194: 2012-04-30 | BT194: 2012-05-31 | BU194: 2012-06-30 | BV194: 2012-07-31 | BW194: 2012-08-31 | BX194: 2012-09-30 | BY194: 2012-10-31 | BZ194: 2012-11-30 | CA194: 2012-12-31 | CB194: 2012 | CC194: 2013-01-31 | CD194: 2013-02-28 | CE194: 2013-03-31 | CF194: 2013-04-30 | CG194: 2013-05-31 | CH194: 2013-06-30 | CI194: 2013-07-31 | CJ194: 2013-08-31 | CK194: 2013-09-30 | CL194: 2013-10-31 | CM194: 2013-11-30 | CN194: 2013-12-31 | CO194: 2013
B195: Capacidad ofertada importación | C195: - | D195: - | E195: - | F195: - | G195: - | H195: - | I195: - | J195: - | K195: - | L195: - | M195: - | N195: - | O195: - | P195: - | Q195: - | R195: - | S195: - | T195: - | U195: - | V195: - | W195: - | X195: - | Y195: - | Z195: - | AA195: - | AB195: - | AC195: - | AD195: - | AE195: - | AF195: - | AG195: - | AH195: - | AI195: - | AJ195: - | AK195: - | AL195: - | AM195: - | AN195: - | AO195: - | AP195: - | AQ195: - | AR195: - | AS195: - | AT195: - | AU195: - | AV195: - | AW195: - | AX195: - | AY195: - | AZ195: - | BA195: - | BB195: - | BC195: - | BD195: - | BE195: - | BF195: - | BG195: - | BH195: - | BI195: - | BJ195: - | BK195: - | BL195: - | BM195: - | BN195: - | BO195: - | BP195: - | BQ195: - | BR195: - | BS195: - | BT195: - | BU195: - | BV195: - | BW195: - | BX195: - | BY195: - | BZ195: - | CA195: - | CB195: - | CC195: - | CD195: - | CE195: - | CF195: - | CG195: - | CH195: - | CI195: - | CJ195: - | CK195: - | CL195: - | CM195: - | CN195: - | CO195: -
B196: Precio ofertado importación | C196: - | D196: - | E196: - | F196: - | G196: - | H196: - | I196: - | J196: - | K196: - | L196: - | M196: - | N196: - | O196: - | P196: - | Q196: - | R196: - | S196: - | T196: - | U196: - | V196: - | W196: - | X196: - | Y196: - | Z196: - | AA196: - | AB196: - | AC196: - | AD196: - | AE196: - | AF196: - | AG196: - | AH196: - | AI196: - | AJ196: - | AK196: - | AL196: - | AM196: - | AN196: - | AO196: - | AP196: - | AQ196: - | AR196: - | AS196: - | AT196: - | AU196: - | AV196: - | AW196: - | AX196: - | AY196: - | AZ196: - | BA196: - | BB196: - | BC196: - | BD196: - | BE196: - | BF196: - | BG196: - | BH196: - | BI196: - | BJ196: - | BK196: - | BL196: - | BM196: - | BN196: - | BO196: - | BP196: - | BQ196: - | BR196: - | BS196: - | BT196: - | BU196: - | BV196: - | BW196: - | BX196: - | BY196: - | BZ196: - | CA196: - | CB196: - | CC196: - | CD196: - | CE196: - | CF196: - | CG196: - | CH196: - | CI196: - | CJ196: - | CK196: - | CL196: - | CM196: - | CN196: - | CO196: -
B197: Capacidad ofertada exportación | C197: - | D197: - | E197: - | F197: - | G197: - | H197: - | I197: - | J197: - | K197: - | L197: - | M197: - | N197: - | O197: - | P197: - | Q197: - | R197: - | S197: - | T197: - | U197: - | V197: - | W197: - | X197: - | Y197: - | Z197: - | AA197: - | AB197: - | AC197: - | AD197: - | AE197: - | AF197: - | AG197: - | AH197: - | AI197: - | AJ197: - | AK197: - | AL197: - | AM197: - | AN197: - | AO197: - | AP197: - | AQ197: - | AR197: - | AS197: - | AT197: - | AU197: - | AV197: - | AW197: - | AX197: - | AY197: - | AZ197: - | BA197: - | BB197: - | BC197: - | BD197: - | BE197: - | BF197: - | BG197: - | BH197: - | BI197: - | BJ197: - | BK197: - | BL197: - | BM197: - | BN197: - | BO197: - | BP197: - | BQ197: - | BR197: - | BS197: - | BT197: - | BU197: - | BV197: - | BW197: - | BX197: - | BY197: - | BZ197: - | CA197: - | CB197: - | CC197: - | CD197: - | CE197: - | CF197: - | CG197: - | CH197: - | CI197: - | CJ197: - | CK197: - | CL197: - | CM197: - | CN197: - | CO197: -
B198: Precio ofertado exportación | C198: - | D198: - | E198: - | F198: - | G198: - | H198: - | I198: - | J198: - | K198: - | L198: - | M198: - | N198: - | O198: - | P198: - | Q198: - | R198: - | S198: - | T198: - | U198: - | V198: - | W198: - | X198: - | Y198: - | Z198: - | AA198: - | AB198: - | AC198: - | AD198: - | AE198: - | AF198: - | AG198: - | AH198: - | AI198: - | AJ198: - | AK198: - | AL198: - | AM198: - | AN198: - | AO198: - | AP198: - | AQ198: - | AR198: - | AS198: - | AT198: - | AU198: - | AV198: - | AW198: - | AX198: - | AY198: - | AZ198: - | BA198: - | BB198: - | BC198: - | BD198: - | BE198: - | BF198: - | BG198: - | BH198: - | BI198: - | BJ198: - | BK198: - | BL198: - | BM198: - | BN198: - | BO198: - | BP198: - | BQ198: - | BR198: - | BS198: - | BT198: - | BU198: - | BV198: - | BW198: - | BX198: - | BY198: - | BZ198: - | CA198: - | CB198: - | CC198: - | CD198: - | CE198: - | CF198: - | CG198: - | CH198: - | CI198: - | CJ198: - | CK198: - | CL198: - | CM198: - | CN198: - | CO198: -
B199: Activado Francia Importación | C199: - | D199: - | E199: - | F199: - | G199: - | H199: - | I199: - | J199: - | K199: - | L199: - | M199: - | N199: - | O199: - | P199: - | Q199: - | R199: - | S199: - | T199: - | U199: - | V199: - | W199: - | X199: - | Y199: - | Z199: - | AA199: - | AB199: - | AC199: - | AD199: - | AE199: - | AF199: - | AG199: - | AH199: - | AI199: - | AJ199: - | AK199: - | AL199: - | AM199: - | AN199: - | AO199: - | AP199: - | AQ199: - | AR199: - | AS199: - | AT199: - | AU199: - | AV199: - | AW199: - | AX199: - | AY199: - | AZ199: - | BA199: - | BB199: - | BC199: - | BD199: - | BE199: - | BF199: - | BG199: - | BH199: - | BI199: - | BJ199: - | BK199: - | BL199: - | BM199: - | BN199: - | BO199: - | BP199: - | BQ199: - | BR199: - | BS199: - | BT199: - | BU199: - | BV199: - | BW199: - | BX199: - | BY199: - | BZ199: - | CA199: - | CB199: - | CC199: - | CD199: - | CE199: - | CF199: - | CG199: - | CH199: - | CI199: - | CJ199: - | CK199: - | CL199: - | CM199: - | CN199: - | CO199: -
B200: Precio Francia Importación | C200: - | D200: - | E200: - | F200: - | G200: - | H200: - | I200: - | J200: - | K200: - | L200: - | M200: - | N200: - | O200: - | P200: - | Q200: - | R200: - | S200: - | T200: - | U200: - | V200: - | W200: - | X200: - | Y200: - | Z200: - | AA200: - | AB200: - | AC200: - | AD200: - | AE200: - | AF200: - | AG200: - | AH200: - | AI200: - | AJ200: - | AK200: - | AL200: - | AM200: - | AN200: - | AO200: - | AP200: - | AQ200: - | AR200: - | AS200: - | AT200: - | AU200: - | AV200: - | AW200: - | AX200: - | AY200: - | AZ200: - | BA200: - | BB200: - | BC200: - | BD200: - | BE200: - | BF200: - | BG200: - | BH200: - | BI200: - | BJ200: - | BK200: - | BL200: - | BM200: - | BN200: - | BO200: - | BP200: - | BQ200: - | BR200: - | BS200: - | BT200: - | BU200: - | BV200: - | BW200: - | BX200: - | BY200: - | BZ200: - | CA200: - | CB200: - | CC200: - | CD200: - | CE200: - | CF200: - | CG200: - | CH200: - | CI200: - | CJ200: - | CK200: - | CL200: - | CM200: - | CN200: - | CO200: -
B201: Activado Francia exportación | C201: - | D201: - | E201: - | F201: - | G201: - | H201: - | I201: - | J201: - | K201: - | L201: - | M201: - | N201: - | O201: - | P201: - | Q201: - | R201: - | S201: - | T201: - | U201: - | V201: - | W201: - | X201: - | Y201: - | Z201: - | AA201: - | AB201: - | AC201: - | AD201: - | AE201: - | AF201: - | AG201: - | AH201: - | AI201: - | AJ201: - | AK201: - | AL201: - | AM201: - | AN201: - | AO201: - | AP201: - | AQ201: - | AR201: - | AS201: - | AT201: - | AU201: - | AV201: - | AW201: - | AX201: - | AY201: - | AZ201: - | BA201: - | BB201: - | BC201: - | BD201: - | BE201: - | BF201: - | BG201: - | BH201: - | BI201: - | BJ201: - | BK201: - | BL201: - | BM201: - | BN201: - | BO201: - | BP201: - | BQ201: - | BR201: - | BS201: - | BT201: - | BU201: - | BV201: - | BW201: - | BX201: - | BY201: - | BZ201: - | CA201: - | CB201: - | CC201: - | CD201: - | CE201: - | CF201: - | CG201: - | CH201: - | CI201: - | CJ201: - | CK201: - | CL201: - | CM201: - | CN201: - | CO201: -
B202: Precio Francia exportación | C202: - | D202: - | E202: - | F202: - | G202: - | H202: - | I202: - | J202: - | K202: - | L202: - | M202: - | N202: - | O202: - | P202: - | Q202: - | R202: - | S202: - | T202: - | U202: - | V202: - | W202: - | X202: - | Y202: - | Z202: - | AA202: - | AB202: - | AC202: - | AD202: - | AE202: - | AF202: - | AG202: - | AH202: - | AI202: - | AJ202: - | AK202: - | AL202: - | AM202: - | AN202: - | AO202: - | AP202: - | AQ202: - | AR202: - | AS202: - | AT202: - | AU202: - | AV202: - | AW202: - | AX202: - | AY202: - | AZ202: - | BA202: - | BB202: - | BC202: - | BD202: - | BE202: - | BF202: - | BG202: - | BH202: - | BI202: - | BJ202: - | BK202: - | BL202: - | BM202: - | BN202: - | BO202: - | BP202: - | BQ202: - | BR202: - | BS202: - | BT202: - | BU202: - | BV202: - | BW202: - | BX202: - | BY202: - | BZ202: - | CA202: - | CB202: - | CC202: - | CD202: - | CE202: - | CF202: - | CG202: - | CH202: - | CI202: - | CJ202: - | CK202: - | CL202: - | CM202: - | CN202: - | CO202: -
B203: Activado Portugal Importación | C203: - | D203: - | E203: - | F203: - | G203: - | H203: - | I203: - | J203: - | K203: - | L203: - | M203: - | N203: - | O203: - | P203: - | Q203: - | R203: - | S203: - | T203: - | U203: - | V203: - | W203: - | X203: - | Y203: - | Z203: - | AA203: - | AB203: - | AC203: - | AD203: - | AE203: - | AF203: - | AG203: - | AH203: - | AI203: - | AJ203: - | AK203: - | AL203: - | AM203: - | AN203: - | AO203: - | AP203: - | AQ203: - | AR203: - | AS203: - | AT203: - | AU203: - | AV203: - | AW203: - | AX203: - | AY203: - | AZ203: - | BA203: - | BB203: - | BC203: - | BD203: - | BE203: - | BF203: - | BG203: - | BH203: - | BI203: - | BJ203: - | BK203: - | BL203: - | BM203: - | BN203: - | BO203: - | BP203: - | BQ203: - | BR203: - | BS203: - | BT203: - | BU203: - | BV203: - | BW203: - | BX203: - | BY203: - | BZ203: - | CA203: - | CB203: - | CC203: - | CD203: - | CE203: - | CF203: - | CG203: - | CH203: - | CI203: - | CJ203: - | CK203: - | CL203: - | CM203: - | CN203: - | CO203: -
B204: Precio Portugal Importación | C204: - | D204: - | E204: - | F204: - | G204: - | H204: - | I204: - | J204: - | K204: - | L204: - | M204: - | N204: - | O204: - | P204: - | Q204: - | R204: - | S204: - | T204: - | U204: - | V204: - | W204: - | X204: - | Y204: - | Z204: - | AA204: - | AB204: - | AC204: - | AD204: - | AE204: - | AF204: - | AG204: - | AH204: - | AI204: - | AJ204: - | AK204: - | AL204: - | AM204: - | AN204: - | AO204: - | AP204: - | AQ204: - | AR204: - | AS204: - | AT204: - | AU204: - | AV204: - | AW204: - | AX204: - | AY204: - | AZ204: - | BA204: - | BB204: - | BC204: - | BD204: - | BE204: - | BF204: - | BG204: - | BH204: - | BI204: - | BJ204: - | BK204: - | BL204: - | BM204: - | BN204: - | BO204: - | BP204: - | BQ204: - | BR204: - | BS204: - | BT204: - | BU204: - | BV204: - | BW204: - | BX204: - | BY204: - | BZ204: - | CA204: - | CB204: - | CC204: - | CD204: - | CE204: - | CF204: - | CG204: - | CH204: - | CI204: - | CJ204: - | CK204: - | CL204: - | CM204: - | CN204: - | CO204: -
B205: Activado Portugal exportación | C205: - | D205: - | E205: - | F205: - | G205: - | H205: - | I205: - | J205: - | K205: - | L205: - | M205: - | N205: - | O205: - | P205: - | Q205: - | R205: - | S205: - | T205: - | U205: - | V205: - | W205: - | X205: - | Y205: - | Z205: - | AA205: - | AB205: - | AC205: - | AD205: - | AE205: - | AF205: - | AG205: - | AH205: - | AI205: - | AJ205: - | AK205: - | AL205: - | AM205: - | AN205: - | AO205: - | AP205: - | AQ205: - | AR205: - | AS205: - | AT205: - | AU205: - | AV205: - | AW205: - | AX205: - | AY205: - | AZ205: - | BA205: - | BB205: - | BC205: - | BD205: - | BE205: - | BF205: - | BG205: - | BH205: - | BI205: - | BJ205: - | BK205: - | BL205: - | BM205: - | BN205: - | BO205: - | BP205: - | BQ205: - | BR205: - | BS205: - | BT205: - | BU205: - | BV205: - | BW205: - | BX205: - | BY205: - | BZ205: - | CA205: - | CB205: - | CC205: - | CD205: - | CE205: - | CF205: - | CG205: - | CH205: - | CI205: - | CJ205: - | CK205: - | CL205: - | CM205: - | CN205: - | CO205: -
B206: Precio Portugal exportación | C206: - | D206: - | E206: - | F206: - | G206: - | H206: - | I206: - | J206: - | K206: - | L206: - | M206: - | N206: - | O206: - | P206: - | Q206: - | R206: - | S206: - | T206: - | U206: - | V206: - | W206: - | X206: - | Y206: - | Z206: - | AA206: - | AB206: - | AC206: - | AD206: - | AE206: - | AF206: - | AG206: - | AH206: - | AI206: - | AJ206: - | AK206: - | AL206: - | AM206: - | AN206: - | AO206: - | AP206: - | AQ206: - | AR206: - | AS206: - | AT206: - | AU206: - | AV206: - | AW206: - | AX206: - | AY206: - | AZ206: - | BA206: - | BB206: - | BC206: - | BD206: - | BE206: - | BF206: - | BG206: - | BH206: - | BI206: - | BJ206: - | BK206: - | BL206: - | BM206: - | BN206: - | BO206: - | BP206: - | BQ206: - | BR206: - | BS206: - | BT206: - | BU206: - | BV206: - | BW206: - | BX206: - | BY206: - | BZ206: - | CA206: - | CB206: - | CC206: - | CD206: - | CE206: - | CF206: - | CG206: - | CH206: - | CI206: - | CJ206: - | CK206: - | CL206: - | CM206: - | CN206: - | CO206: -
B208: Energía y precios ofertados por RTE y activados por REE
B209: Capacidad ofertada importación (GWh) | C209: - | D209: - | E209: - | F209: - | G209: - | H209: - | I209: - | J209: - | K209: - | L209: - | M209: - | N209: - | O209: - | P209: - | Q209: - | R209: - | S209: - | T209: - | U209: - | V209: - | W209: - | X209: - | Y209: - | Z209: - | AA209: - | AB209: - | AC209: - | AD209: - | AE209: - | AF209: - | AG209: - | AH209: - | AI209: - | AJ209: - | AK209: - | AL209: - | AM209: - | AN209: - | AO209: - | AP209: - | AQ209: - | AR209: - | AS209: - | AT209: - | AU209: - | AV209: - | AW209: - | AX209: - | AY209: - | AZ209: - | BA209: - | BB209: - | BC209: - | BD209: - | BE209: - | BF209: - | BG209: - | BH209: - | BI209: - | BJ209: - | BK209: - | BL209: - | BM209: - | BN209: - | BO209: - | BP209: - | BQ209: - | BR209: - | BS209: - | BT209: - | BU209: - | BV209: - | BW209: - | BX209: - | BY209: - | BZ209: - | CA209: - | CB209: - | CC209: - | CD209: - | CE209: - | CF209: - | CG209: - | CH209: - | CI209: - | CJ209: - | CK209: - | CL209: - | CM209: - | CN209: - | CO209: -
B210: Precio ofertado importación (€/MWh) | C210: - | D210: - | E210: - | F210: - | G210: - | H210: - | I210: - | J210: - | K210: - | L210: - | M210: - | N210: - | O210: - | P210: - | Q210: - | R210: - | S210: - | T210: - | U210: - | V210: - | W210: - | X210: - | Y210: - | Z210: - | AA210: - | AB210: - | AC210: - | AD210: - | AE210: - | AF210: - | AG210: - | AH210: - | AI210: - | AJ210: - | AK210: - | AL210: - | AM210: - | AN210: - | AO210: - | AP210: - | AQ210: - | AR210: - | AS210: - | AT210: - | AU210: - | AV210: - | AW210: - | AX210: - | AY210: - | AZ210: - | BA210: - | BB210: - | BC210: - | BD210: - | BE210: - | BF210: - | BG210: - | BH210: - | BI210: - | BJ210: - | BK210: - | BL210: - | BM210: - | BN210: - | BO210: - | BP210: - | BQ210: - | BR210: - | BS210: - | BT210: - | BU210: - | BV210: - | BW210: - | BX210: - | BY210: - | BZ210: - | CA210: - | CB210: - | CC210: - | CD210: - | CE210: - | CF210: - | CG210: - | CH210: - | CI210: - | CJ210: - | CK210: - | CL210: - | CM210: - | CN210: - | CO210: -
B211: Capacidad ofertada exportación (GWh) | C211: - | D211: - | E211: - | F211: - | G211: - | H211: - | I211: - | J211: - | K211: - | L211: - | M211: - | N211: - | O211: - | P211: - | Q211: - | R211: - | S211: - | T211: - | U211: - | V211: - | W211: - | X211: - | Y211: - | Z211: - | AA211: - | AB211: - | AC211: - | AD211: - | AE211: - | AF211: - | AG211: - | AH211: - | AI211: - | AJ211: - | AK211: - | AL211: - | AM211: - | AN211: - | AO211: - | AP211: - | AQ211: - | AR211: - | AS211: - | AT211: - | AU211: - | AV211: - | AW211: - | AX211: - | AY211: - | AZ211: - | BA211: - | BB211: - | BC211: - | BD211: - | BE211: - | BF211: - | BG211: - | BH211: - | BI211: - | BJ211: - | BK211: - | BL211: - | BM211: - | BN211: - | BO211: - | BP211: - | BQ211: - | BR211: - | BS211: - | BT211: - | BU211: - | BV211: - | BW211: - | BX211: - | BY211: - | BZ211: - | CA211: - | CB211: - | CC211: - | CD211: - | CE211: - | CF211: - | CG211: - | CH211: - | CI211: - | CJ211: - | CK211: - | CL211: - | CM211: - | CN211: - | CO211: -
B212: Precio ofertado exportación (€/MWh) | C212: - | D212: - | E212: - | F212: - | G212: - | H212: - | I212: - | J212: - | K212: - | L212: - | M212: - | N212: - | O212: - | P212: - | Q212: - | R212: - | S212: - | T212: - | U212: - | V212: - | W212: - | X212: - | Y212: - | Z212: - | AA212: - | AB212: - | AC212: - | AD212: - | AE212: - | AF212: - | AG212: - | AH212: - | AI212: - | AJ212: - | AK212: - | AL212: - | AM212: - | AN212: - | AO212: - | AP212: - | AQ212: - | AR212: - | AS212: - | AT212: - | AU212: - | AV212: - | AW212: - | AX212: - | AY212: - | AZ212: - | BA212: - | BB212: - | BC212: - | BD212: - | BE212: - | BF212: - | BG212: - | BH212: - | BI212: - | BJ212: - | BK212: - | BL212: - | BM212: - | BN212: - | BO212: - | BP212: - | BQ212: - | BR212: - | BS212: - | BT212: - | BU212: - | BV212: - | BW212: - | BX212: - | BY212: - | BZ212: - | CA212: - | CB212: - | CC212: - | CD212: - | CE212: - | CF212: - | CG212: - | CH212: - | CI212: - | CJ212: - | CK212: - | CL212: - | CM212: - | CN212: - | CO212: -
B213: Activado importación (GWh) | C213: - | D213: - | E213: - | F213: - | G213: - | H213: - | I213: - | J213: - | K213: - | L213: - | M213: - | N213: - | O213: - | P213: - | Q213: - | R213: - | S213: - | T213: - | U213: - | V213: - | W213: - | X213: - | Y213: - | Z213: - | AA213: - | AB213: - | AC213: - | AD213: - | AE213: - | AF213: - | AG213: - | AH213: - | AI213: - | AJ213: - | AK213: - | AL213: - | AM213: - | AN213: - | AO213: - | AP213: - | AQ213: - | AR213: - | AS213: - | AT213: - | AU213: - | AV213: - | AW213: - | AX213: - | AY213: - | AZ213: - | BA213: - | BB213: - | BC213: - | BD213: - | BE213: - | BF213: - | BG213: - | BH213: - | BI213: - | BJ213: - | BK213: - | BL213: - | BM213: - | BN213: - | BO213: - | BP213: - | BQ213: - | BR213: - | BS213: - | BT213: - | BU213: - | BV213: - | BW213: - | BX213: - | BY213: - | BZ213: - | CA213: - | CB213: - | CC213: - | CD213: - | CE213: - | CF213: - | CG213: - | CH213: - | CI213: - | CJ213: - | CK213: - | CL213: - | CM213: - | CN213: - | CO213: -
B214: Precio importación (€/MWh) | C214: - | D214: - | E214: - | F214: - | G214: - | H214: - | I214: - | J214: - | K214: - | L214: - | M214: - | N214: - | O214: - | P214: - | Q214: - | R214: - | S214: - | T214: - | U214: - | V214: - | W214: - | X214: - | Y214: - | Z214: - | AA214: - | AB214: - | AC214: - | AD214: - | AE214: - | AF214: - | AG214: - | AH214: - | AI214: - | AJ214: - | AK214: - | AL214: - | AM214: - | AN214: - | AO214: - | AP214: - | AQ214: - | AR214: - | AS214: - | AT214: - | AU214: - | AV214: - | AW214: - | AX214: - | AY214: - | AZ214: - | BA214: - | BB214: - | BC214: - | BD214: - | BE214: - | BF214: - | BG214: - | BH214: - | BI214: - | BJ214: - | BK214: - | BL214: - | BM214: - | BN214: - | BO214: - | BP214: - | BQ214: - | BR214: - | BS214: - | BT214: - | BU214: - | BV214: - | BW214: - | BX214: - | BY214: - | BZ214: - | CA214: - | CB214: - | CC214: - | CD214: - | CE214: - | CF214: - | CG214: - | CH214: - | CI214: - | CJ214: - | CK214: - | CL214: - | CM214: - | CN214: - | CO214: -
B215: Activado exportación (GWh) | C215: - | D215: - | E215: - | F215: - | G215: - | H215: - | I215: - | J215: - | K215: - | L215: - | M215: - | N215: - | O215: - | P215: - | Q215: - | R215: - | S215: - | T215: - | U215: - | V215: - | W215: - | X215: - | Y215: - | Z215: - | AA215: - | AB215: - | AC215: - | AD215: - | AE215: - | AF215: - | AG215: - | AH215: - | AI215: - | AJ215: - | AK215: - | AL215: - | AM215: - | AN215: - | AO215: - | AP215: - | AQ215: - | AR215: - | AS215: - | AT215: - | AU215: - | AV215: - | AW215: - | AX215: - | AY215: - | AZ215: - | BA215: - | BB215: - | BC215: - | BD215: - | BE215: - | BF215: - | BG215: - | BH215: - | BI215: - | BJ215: - | BK215: - | BL215: - | BM215: - | BN215: - | BO215: - | BP215: - | BQ215: - | BR215: - | BS215: - | BT215: - | BU215: - | BV215: - | BW215: - | BX215: - | BY215: - | BZ215: - | CA215: - | CB215: - | CC215: - | CD215: - | CE215: - | CF215: - | CG215: - | CH215: - | CI215: - | CJ215: - | CK215: - | CL215: - | CM215: - | CN215: - | CO215: -
B216: Precio exportación (€/MWh) | C216: - | D216: - | E216: - | F216: - | G216: - | H216: - | I216: - | J216: - | K216: - | L216: - | M216: - | N216: - | O216: - | P216: - | Q216: - | R216: - | S216: - | T216: - | U216: - | V216: - | W216: - | X216: - | Y216: - | Z216: - | AA216: - | AB216: - | AC216: - | AD216: - | AE216: - | AF216: - | AG216: - | AH216: - | AI216: - | AJ216: - | AK216: - | AL216: - | AM216: - | AN216: - | AO216: - | AP216: - | AQ216: - | AR216: - | AS216: - | AT216: - | AU216: - | AV216: - | AW216: - | AX216: - | AY216: - | AZ216: - | BA216: - | BB216: - | BC216: - | BD216: - | BE216: - | BF216: - | BG216: - | BH216: - | BI216: - | BJ216: - | BK216: - | BL216: - | BM216: - | BN216: - | BO216: - | BP216: - | BQ216: - | BR216: - | BS216: - | BT216: - | BU216: - | BV216: - | BW216: - | BX216: - | BY216: - | BZ216: - | CA216: - | CB216: - | CC216: - | CD216: - | CE216: - | CF216: - | CG216: - | CH216: - | CI216: - | CJ216: - | CK216: - | CL216: - | CM216: - | CN216: - | CO216: -
B218: Energía y precios ofertados por REN y activados por REE
B219: Capacidad ofertada importación (GWh) | C219: - | D219: - | E219: - | F219: - | G219: - | H219: - | I219: - | J219: - | K219: - | L219: - | M219: - | N219: - | O219: - | P219: - | Q219: - | R219: - | S219: - | T219: - | U219: - | V219: - | W219: - | X219: - | Y219: - | Z219: - | AA219: - | AB219: - | AC219: - | AD219: - | AE219: - | AF219: - | AG219: - | AH219: - | AI219: - | AJ219: - | AK219: - | AL219: - | AM219: - | AN219: - | AO219: - | AP219: - | AQ219: - | AR219: - | AS219: - | AT219: - | AU219: - | AV219: - | AW219: - | AX219: - | AY219: - | AZ219: - | BA219: - | BB219: - | BC219: - | BD219: - | BE219: - | BF219: - | BG219: - | BH219: - | BI219: - | BJ219: - | BK219: - | BL219: - | BM219: - | BN219: - | BO219: - | BP219: - | BQ219: - | BR219: - | BS219: - | BT219: - | BU219: - | BV219: - | BW219: - | BX219: - | BY219: - | BZ219: - | CA219: - | CB219: - | CC219: - | CD219: - | CE219: - | CF219: - | CG219: - | CH219: - | CI219: - | CJ219: - | CK219: - | CL219: - | CM219: - | CN219: - | CO219: -
B220: Precio ofertado importación (€/MWh) | C220: - | D220: - | E220: - | F220: - | G220: - | H220: - | I220: - | J220: - | K220: - | L220: - | M220: - | N220: - | O220: - | P220: - | Q220: - | R220: - | S220: - | T220: - | U220: - | V220: - | W220: - | X220: - | Y220: - | Z220: - | AA220: - | AB220: - | AC220: - | AD220: - | AE220: - | AF220: - | AG220: - | AH220: - | AI220: - | AJ220: - | AK220: - | AL220: - | AM220: - | AN220: - | AO220: - | AP220: - | AQ220: - | AR220: - | AS220: - | AT220: - | AU220: - | AV220: - | AW220: - | AX220: - | AY220: - | AZ220: - | BA220: - | BB220: - | BC220: - | BD220: - | BE220: - | BF220: - | BG220: - | BH220: - | BI220: - | BJ220: - | BK220: - | BL220: - | BM220: - | BN220: - | BO220: - | BP220: - | BQ220: - | BR220: - | BS220: - | BT220: - | BU220: - | BV220: - | BW220: - | BX220: - | BY220: - | BZ220: - | CA220: - | CB220: - | CC220: - | CD220: - | CE220: - | CF220: - | CG220: - | CH220: - | CI220: - | CJ220: - | CK220: - | CL220: - | CM220: - | CN220: - | CO220: -
B221: Capacidad ofertada exportación (GWh) | C221: - | D221: - | E221: - | F221: - | G221: - | H221: - | I221: - | J221: - | K221: - | L221: - | M221: - | N221: - | O221: - | P221: - | Q221: - | R221: - | S221: - | T221: - | U221: - | V221: - | W221: - | X221: - | Y221: - | Z221: - | AA221: - | AB221: - | AC221: - | AD221: - | AE221: - | AF221: - | AG221: - | AH221: - | AI221: - | AJ221: - | AK221: - | AL221: - | AM221: - | AN221: - | AO221: - | AP221: - | AQ221: - | AR221: - | AS221: - | AT221: - | AU221: - | AV221: - | AW221: - | AX221: - | AY221: - | AZ221: - | BA221: - | BB221: - | BC221: - | BD221: - | BE221: - | BF221: - | BG221: - | BH221: - | BI221: - | BJ221: - | BK221: - | BL221: - | BM221: - | BN221: - | BO221: - | BP221: - | BQ221: - | BR221: - | BS221: - | BT221: - | BU221: - | BV221: - | BW221: - | BX221: - | BY221: - | BZ221: - | CA221: - | CB221: - | CC221: - | CD221: - | CE221: - | CF221: - | CG221: - | CH221: - | CI221: - | CJ221: - | CK221: - | CL221: - | CM221: - | CN221: - | CO221: -
B222: Precio ofertado exportación (€/MWh) | C222: - | D222: - | E222: - | F222: - | G222: - | H222: - | I222: - | J222: - | K222: - | L222: - | M222: - | N222: - | O222: - | P222: - | Q222: - | R222: - | S222: - | T222: - | U222: - | V222: - | W222: - | X222: - | Y222: - | Z222: - | AA222: - | AB222: - | AC222: - | AD222: - | AE222: - | AF222: - | AG222: - | AH222: - | AI222: - | AJ222: - | AK222: - | AL222: - | AM222: - | AN222: - | AO222: - | AP222: - | AQ222: - | AR222: - | AS222: - | AT222: - | AU222: - | AV222: - | AW222: - | AX222: - | AY222: - | AZ222: - | BA222: - | BB222: - | BC222: - | BD222: - | BE222: - | BF222: - | BG222: - | BH222: - | BI222: - | BJ222: - | BK222: - | BL222: - | BM222: - | BN222: - | BO222: - | BP222: - | BQ222: - | BR222: - | BS222: - | BT222: - | BU222: - | BV222: - | BW222: - | BX222: - | BY222: - | BZ222: - | CA222: - | CB222: - | CC222: - | CD222: - | CE222: - | CF222: - | CG222: - | CH222: - | CI222: - | CJ222: - | CK222: - | CL222: - | CM222: - | CN222: - | CO222: -
B223: Activado importación (GWh) | C223: - | D223: - | E223: - | F223: - | G223: - | H223: - | I223: - | J223: - | K223: - | L223: - | M223: - | N223: - | O223: - | P223: - | Q223: - | R223: - | S223: - | T223: - | U223: - | V223: - | W223: - | X223: - | Y223: - | Z223: - | AA223: - | AB223: - | AC223: - | AD223: - | AE223: - | AF223: - | AG223: - | AH223: - | AI223: - | AJ223: - | AK223: - | AL223: - | AM223: - | AN223: - | AO223: - | AP223: - | AQ223: - | AR223: - | AS223: - | AT223: - | AU223: - | AV223: - | AW223: - | AX223: - | AY223: - | AZ223: - | BA223: - | BB223: - | BC223: - | BD223: - | BE223: - | BF223: - | BG223: - | BH223: - | BI223: - | BJ223: - | BK223: - | BL223: - | BM223: - | BN223: - | BO223: - | BP223: - | BQ223: - | BR223: - | BS223: - | BT223: - | BU223: - | BV223: - | BW223: - | BX223: - | BY223: - | BZ223: - | CA223: - | CB223: - | CC223: - | CD223: - | CE223: - | CF223: - | CG223: - | CH223: - | CI223: - | CJ223: - | CK223: - | CL223: - | CM223: - | CN223: - | CO223: -
B224: Precio importación (€/MWh) | C224: - | D224: - | E224: - | F224: - | G224: - | H224: - | I224: - | J224: - | K224: - | L224: - | M224: - | N224: - | O224: - | P224: - | Q224: - | R224: - | S224: - | T224: - | U224: - | V224: - | W224: - | X224: - | Y224: - | Z224: - | AA224: - | AB224: - | AC224: - | AD224: - | AE224: - | AF224: - | AG224: - | AH224: - | AI224: - | AJ224: - | AK224: - | AL224: - | AM224: - | AN224: - | AO224: - | AP224: - | AQ224: - | AR224: - | AS224: - | AT224: - | AU224: - | AV224: - | AW224: - | AX224: - | AY224: - | AZ224: - | BA224: - | BB224: - | BC224: - | BD224: - | BE224: - | BF224: - | BG224: - | BH224: - | BI224: - | BJ224: - | BK224: - | BL224: - | BM224: - | BN224: - | BO224: - | BP224: - | BQ224: - | BR224: - | BS224: - | BT224: - | BU224: - | BV224: - | BW224: - | BX224: - | BY224: - | BZ224: - | CA224: - | CB224: - | CC224: - | CD224: - | CE224: - | CF224: - | CG224: - | CH224: - | CI224: - | CJ224: - | CK224: - | CL224: - | CM224: - | CN224: - | CO224: -
B225: Activado exportación (GWh) | C225: - | D225: - | E225: - | F225: - | G225: - | H225: - | I225: - | J225: - | K225: - | L225: - | M225: - | N225: - | O225: - | P225: - | Q225: - | R225: - | S225: - | T225: - | U225: - | V225: - | W225: - | X225: - | Y225: - | Z225: - | AA225: - | AB225: - | AC225: - | AD225: - | AE225: - | AF225: - | AG225: - | AH225: - | AI225: - | AJ225: - | AK225: - | AL225: - | AM225: - | AN225: - | AO225: - | AP225: - | AQ225: - | AR225: - | AS225: - | AT225: - | AU225: - | AV225: - | AW225: - | AX225: - | AY225: - | AZ225: - | BA225: - | BB225: - | BC225: - | BD225: - | BE225: - | BF225: - | BG225: - | BH225: - | BI225: - | BJ225: - | BK225: - | BL225: - | BM225: - | BN225: - | BO225: - | BP225: - | BQ225: - | BR225: - | BS225: - | BT225: - | BU225: - | BV225: - | BW225: - | BX225: - | BY225: - | BZ225: - | CA225: - | CB225: - | CC225: - | CD225: - | CE225: - | CF225: - | CG225: - | CH225: - | CI225: - | CJ225: - | CK225: - | CL225: - | CM225: - | CN225: - | CO225: -
B226: Precio exportación (€/MWh) | C226: - | D226: - | E226: - | F226: - | G226: - | H226: - | I226: - | J226: - | K226: - | L226: - | M226: - | N226: - | O226: - | P226: - | Q226: - | R226: - | S226: - | T226: - | U226: - | V226: - | W226: - | X226: - | Y226: - | Z226: - | AA226: - | AB226: - | AC226: - | AD226: - | AE226: - | AF226: - | AG226: - | AH226: - | AI226: - | AJ226: - | AK226: - | AL226: - | AM226: - | AN226: - | AO226: - | AP226: - | AQ226: - | AR226: - | AS226: - | AT226: - | AU226: - | AV226: - | AW226: - | AX226: - | AY226: - | AZ226: - | BA226: - | BB226: - | BC226: - | BD226: - | BE226: - | BF226: - | BG226: - | BH226: - | BI226: - | BJ226: - | BK226: - | BL226: - | BM226: - | BN226: - | BO226: - | BP226: - | BQ226: - | BR226: - | BS226: - | BT226: - | BU226: - | BV226: - | BW226: - | BX226: - | BY226: - | BZ226: - | CA226: - | CB226: - | CC226: - | CD226: - | CE226: - | CF226: - | CG226: - | CH226: - | CI226: - | CJ226: - | CK226: - | CL226: - | CM226: - | CN226: - | CO226: -
B228: Energía y precios ofertados desde el sistema eléctrico español y activado por operadores externos
C229: 2007 | D229: 2008 | E229: 2009 | F229: 2010 | G229: 2011 | H229: 2012 | I229: 2013 | J229: 2014 | K229: 2015 | L229: 2016 | M229: 2017 | N229: 2018 | O229: 2019
B230: Capacidad ofertada importación | C230: - | D230: - | E230: - | F230: - | G230: - | H230: - | I230: - | J230: - | K230: - | L230: - | M230: - | N230: - | O230: -
B231: Precio ofertado importación | C231: - | D231: - | E231: - | F231: - | G231: - | H231: - | I231: - | J231: - | K231: - | L231: - | M231: - | N231: - | O231: -
B232: Capacidad ofertada exportación | C232: - | D232: - | E232: - | F232: - | G232: - | H232: - | I232: - | J232: - | K232: - | L232: - | M232: - | N232: - | O232: -
B233: Precio ofertado exportación | C233: - | D233: - | E233: - | F233: - | G233: - | H233: - | I233: - | J233: - | K233: - | L233: - | M233: - | N233: - | O233: -
B234: Activado Francia Importación | C234: - | D234: - | E234: - | F234: - | G234: - | H234: - | I234: - | J234: - | K234: - | L234: - | M234: - | N234: - | O234: -
B235: Precio Francia Importación | C235: - | D235: - | E235: - | F235: - | G235: - | H235: - | I235: - | J235: - | K235: - | L235: - | M235: - | N235: - | O235: -
B236: Activado Francia exportación | C236: - | D236: - | E236: - | F236: - | G236: - | H236: - | I236: - | J236: - | K236: - | L236: - | M236: - | N236: - | O236: -
B237: Precio Francia exportación | C237: - | D237: - | E237: - | F237: - | G237: - | H237: - | I237: - | J237: - | K237: - | L237: - | M237: - | N237: - | O237: -
B238: Activado Portugal Importación | C238: - | D238: - | E238: - | F238: - | G238: - | H238: - | I238: - | J238: - | K238: - | L238: - | M238: - | N238: - | O238: -
B239: Precio Portugal Importación | C239: - | D239: - | E239: - | F239: - | G239: - | H239: - | I239: - | J239: - | K239: - | L239: - | M239: - | N239: - | O239: -
B240: Activado Portugal exportación | C240: - | D240: - | E240: - | F240: - | G240: - | H240: - | I240: - | J240: - | K240: - | L240: - | M240: - | N240: - | O240: -
B241: Precio Portugal exportación | C241: - | D241: - | E241: - | F241: - | G241: - | H241: - | I241: - | J241: - | K241: - | L241: - | M241: - | N241: - | O241: -
B243: Energía y precios ofertados por RTE y activados por REE
B244: Capacidad ofertada importación (GWh) | C244: - | D244: - | E244: - | F244: - | G244: - | H244: - | I244: - | J244: - | K244: - | L244: - | M244: - | N244: - | O244: -
... 16 more rows

Sheet Año (hidden)
X1: 1 | Z1: 1
B2: 2010 | C2: 2010-2019 | N2: Precios finales | P2: Mensual
B3: 2011 | N3: Servicios de ajuste | P3: Anual
B4: 2012 | N4: Restricciones PBF
B5: 2013 | N5: Regulación secundaria
N6: Regulación terciaria
N7: Gestión de desvíos
N8: Restricciones en tiempo real
N9: Reserva adicional a subir
N10: Banda regulación secundaria
N11: Serv. transfront. balance
